Body Name,Body,Service Label,Service Code,CIPFA Detailed Expenditure Type,CIPFA Detailed Expenditure Code,Date,Transaction Number, Net Amount ,Supplier Name
Nottinghamshire County Council,1111/1001,Surplus or Deficit from Trading Undertak,TRADING,#N/A,#N/A,07/07/2016,04-10001," 1,317.00 ",Robert Scott & Sons Ltd
Nottinghamshire County Council,1111/1001,Surplus or Deficit from Trading Undertak,TRADING,#N/A,#N/A,27/07/2016,04-10001," 2,837.40 ",Robert Scott & Sons Ltd
Nottinghamshire County Council,1111/1001,Surplus or Deficit from Trading Undertak,TRADING,#N/A,#N/A,25/07/2016,04-10001," 1,166.60 ",Wybone Ltd
Nottinghamshire County Council,1111/1001,Surplus or Deficit from Trading Undertak,TRADING,#N/A,#N/A,22/07/2016,04-10001, 778.38 ,Commotion Ltd
Nottinghamshire County Council,1111/1001,Surplus or Deficit from Trading Undertak,TRADING,#N/A,#N/A,26/07/2016,04-10001, 627.75 ,Stabilo International Gmbh
Nottinghamshire County Council,1111/1001,Surplus or Deficit from Trading Undertak,TRADING,#N/A,#N/A,14/07/2016,04-10001, 529.84 ,Gopak Ltd
Nottinghamshire County Council,1111/1001,Surplus or Deficit from Trading Undertak,TRADING,#N/A,#N/A,18/07/2016,04-10001, 810.20 ,Gopak Ltd
Nottinghamshire County Council,1111/1001,Surplus or Deficit from Trading Undertak,TRADING,#N/A,#N/A,19/07/2016,04-10001, 736.36 ,Gopak Ltd
Nottinghamshire County Council,1111/1001,Surplus or Deficit from Trading Undertak,TRADING,#N/A,#N/A,20/07/2016,04-10001, 805.90 ,Esselte Uk Ltd
Nottinghamshire County Council,1111/1001,Surplus or Deficit from Trading Undertak,TRADING,#N/A,#N/A,08/07/2016,04-10001," 1,507.48 ",Flipfile Ltd
Nottinghamshire County Council,1111/1001,Surplus or Deficit from Trading Undertak,TRADING,#N/A,#N/A,12/07/2016,04-10001, 751.60 ,Flipfile Ltd
Nottinghamshire County Council,1111/1001,Surplus or Deficit from Trading Undertak,TRADING,#N/A,#N/A,08/07/2016,04-10001," 2,890.40 ",Antalis Ltd
Nottinghamshire County Council,1111/1001,Surplus or Deficit from Trading Undertak,TRADING,#N/A,#N/A,08/07/2016,04-10001, 527.40 ,Antalis Ltd
Nottinghamshire County Council,1111/1001,Surplus or Deficit from Trading Undertak,TRADING,#N/A,#N/A,08/07/2016,04-10001," 2,216.17 ",Antalis Ltd
Nottinghamshire County Council,1111/1001,Surplus or Deficit from Trading Undertak,TRADING,#N/A,#N/A,20/07/2016,04-10001," 1,721.40 ",Antalis Ltd
Nottinghamshire County Council,1111/1001,Surplus or Deficit from Trading Undertak,TRADING,#N/A,#N/A,28/07/2016,04-10001," 1,118.90 ",Antalis Ltd
Nottinghamshire County Council,1111/1001,Surplus or Deficit from Trading Undertak,TRADING,#N/A,#N/A,14/07/2016,04-10001," 1,203.00 ",R H Ritchings Ltd
Nottinghamshire County Council,1111/1001,Surplus or Deficit from Trading Undertak,TRADING,#N/A,#N/A,14/07/2016,04-10001," 1,791.80 ",R H Ritchings Ltd
Nottinghamshire County Council,1111/1001,Surplus or Deficit from Trading Undertak,TRADING,#N/A,#N/A,14/07/2016,04-10001," 1,203.00 ",R H Ritchings Ltd
Nottinghamshire County Council,1111/1001,Surplus or Deficit from Trading Undertak,TRADING,#N/A,#N/A,28/07/2016,04-10001," 1,502.45 ",R H Ritchings Ltd
Nottinghamshire County Council,1111/1001,Surplus or Deficit from Trading Undertak,TRADING,#N/A,#N/A,26/07/2016,04-10001, 737.84 ,Gratnells Ltd
Nottinghamshire County Council,1111/1001,Surplus or Deficit from Trading Undertak,TRADING,#N/A,#N/A,07/07/2016,04-10001," 3,291.00 ",Staedtler Uk Ltd
Nottinghamshire County Council,1111/1001,Surplus or Deficit from Trading Undertak,TRADING,#N/A,#N/A,07/07/2016,04-10001," 6,791.10 ",Staedtler Uk Ltd
Nottinghamshire County Council,1111/1001,Surplus or Deficit from Trading Undertak,TRADING,#N/A,#N/A,07/07/2016,04-10001, 560.00 ,Staedtler Uk Ltd
Nottinghamshire County Council,1111/1001,Surplus or Deficit from Trading Undertak,TRADING,#N/A,#N/A,07/07/2016,04-10001," 1,971.42 ",Staedtler Uk Ltd
Nottinghamshire County Council,1111/1001,Surplus or Deficit from Trading Undertak,TRADING,#N/A,#N/A,14/07/2016,04-10001," 1,362.90 ",Staedtler Uk Ltd
Nottinghamshire County Council,1111/1001,Surplus or Deficit from Trading Undertak,TRADING,#N/A,#N/A,18/07/2016,04-10001," 3,468.00 ",Staedtler Uk Ltd
Nottinghamshire County Council,1111/1001,Surplus or Deficit from Trading Undertak,TRADING,#N/A,#N/A,19/07/2016,04-10001," 2,273.11 ",Staedtler Uk Ltd
Nottinghamshire County Council,1111/1001,Surplus or Deficit from Trading Undertak,TRADING,#N/A,#N/A,26/07/2016,04-10001, 853.20 ,Staedtler Uk Ltd
Nottinghamshire County Council,1111/1001,Surplus or Deficit from Trading Undertak,TRADING,#N/A,#N/A,08/07/2016,04-10001," 1,422.80 ",Bic Uk Ltd
Nottinghamshire County Council,1111/1001,Surplus or Deficit from Trading Undertak,TRADING,#N/A,#N/A,14/07/2016,04-10001, 983.44 ,Bic Uk Ltd
Nottinghamshire County Council,1111/1001,Surplus or Deficit from Trading Undertak,TRADING,#N/A,#N/A,26/07/2016,04-10001," 1,562.63 ",Bic Uk Ltd
Nottinghamshire County Council,1111/1001,Surplus or Deficit from Trading Undertak,TRADING,#N/A,#N/A,26/07/2016,04-10001, 743.17 ,Bic Uk Ltd
Nottinghamshire County Council,1111/1001,Surplus or Deficit from Trading Undertak,TRADING,#N/A,#N/A,22/07/2016,04-10001, 694.10 ,Allen Glenold Ltd
Nottinghamshire County Council,1111/1001,Surplus or Deficit from Trading Undertak,TRADING,#N/A,#N/A,26/07/2016,04-10001," 1,270.08 ",Allen Glenold Ltd
Nottinghamshire County Council,1111/1001,Surplus or Deficit from Trading Undertak,TRADING,#N/A,#N/A,04/07/2016,04-10001," 3,504.40 ",Diversey
Nottinghamshire County Council,1111/1001,Surplus or Deficit from Trading Undertak,TRADING,#N/A,#N/A,14/07/2016,04-10001," 5,738.49 ",Diversey
Nottinghamshire County Council,1111/1001,Surplus or Deficit from Trading Undertak,TRADING,#N/A,#N/A,28/07/2016,04-10001, 640.48 ,Profile Education Ltd
Nottinghamshire County Council,1111/1001,Surplus or Deficit from Trading Undertak,TRADING,#N/A,#N/A,12/07/2016,04-10001," 1,630.14 ",Bostik Ltd
Nottinghamshire County Council,1111/1001,Surplus or Deficit from Trading Undertak,TRADING,#N/A,#N/A,08/07/2016,04-10001, 966.80 ,Edding Uk Ltd
Nottinghamshire County Council,1111/1001,Surplus or Deficit from Trading Undertak,TRADING,#N/A,#N/A,14/07/2016,04-10001, 973.24 ,Edding Uk Ltd
Nottinghamshire County Council,1111/1001,Surplus or Deficit from Trading Undertak,TRADING,#N/A,#N/A,18/07/2016,04-10001, 701.25 ,Edding Uk Ltd
Nottinghamshire County Council,1111/1001,Surplus or Deficit from Trading Undertak,TRADING,#N/A,#N/A,18/07/2016,04-10001, 954.36 ,Edding Uk Ltd
Nottinghamshire County Council,1111/1001,Surplus or Deficit from Trading Undertak,TRADING,#N/A,#N/A,22/07/2016,04-10001," 1,040.08 ",Edding Uk Ltd
Nottinghamshire County Council,1111/1001,Surplus or Deficit from Trading Undertak,TRADING,#N/A,#N/A,28/07/2016,04-10001, 722.30 ,Edding Uk Ltd
Nottinghamshire County Council,1111/1001,Surplus or Deficit from Trading Undertak,TRADING,#N/A,#N/A,20/07/2016,04-10001," 10,323.56 ",Henkel Ltd
Nottinghamshire County Council,1111/1001,Surplus or Deficit from Trading Undertak,TRADING,#N/A,#N/A,26/07/2016,04-10001, 617.56 ,Scot Young Research Ltd
Nottinghamshire County Council,1111/1001,Surplus or Deficit from Trading Undertak,TRADING,#N/A,#N/A,28/07/2016,04-10001, 801.32 ,3M United Kingdom Plc
Nottinghamshire County Council,1111/1001,Surplus or Deficit from Trading Undertak,TRADING,#N/A,#N/A,22/07/2016,04-10001," 1,027.62 ",Evans Vanodine International Ltd
Nottinghamshire County Council,1111/1001,Surplus or Deficit from Trading Undertak,TRADING,#N/A,#N/A,28/07/2016,04-10001, 769.65 ,Evans Vanodine International Ltd
Nottinghamshire County Council,1111/1001,Surplus or Deficit from Trading Undertak,TRADING,#N/A,#N/A,07/07/2016,04-10001, 717.89 ,Brian Clegg (Educational Products)
Nottinghamshire County Council,1111/1001,Surplus or Deficit from Trading Undertak,TRADING,#N/A,#N/A,07/07/2016,04-10001, 953.26 ,Brian Clegg (Educational Products)
Nottinghamshire County Council,1111/1001,Surplus or Deficit from Trading Undertak,TRADING,#N/A,#N/A,25/07/2016,04-10001," 2,821.97 ",Brian Clegg (Educational Products)
Nottinghamshire County Council,1111/1001,Surplus or Deficit from Trading Undertak,TRADING,#N/A,#N/A,27/07/2016,04-10001," 2,617.48 ",Brian Clegg (Educational Products)
Nottinghamshire County Council,1111/1001,Surplus or Deficit from Trading Undertak,TRADING,#N/A,#N/A,27/07/2016,04-10001," 3,398.48 ",Brian Clegg (Educational Products)
Nottinghamshire County Council,1111/1001,Surplus or Deficit from Trading Undertak,TRADING,#N/A,#N/A,04/07/2016,04-10001," 1,797.01 ",Vivid Laminating Technologies Ltd
Nottinghamshire County Council,1111/1001,Surplus or Deficit from Trading Undertak,TRADING,#N/A,#N/A,08/07/2016,04-10001," 3,662.20 ",Vivid Laminating Technologies Ltd
Nottinghamshire County Council,1111/1001,Surplus or Deficit from Trading Undertak,TRADING,#N/A,#N/A,08/07/2016,04-10001, 628.00 ,Vivid Laminating Technologies Ltd
Nottinghamshire County Council,1111/1001,Surplus or Deficit from Trading Undertak,TRADING,#N/A,#N/A,08/07/2016,04-10001," 1,715.06 ",Vivid Laminating Technologies Ltd
Nottinghamshire County Council,1111/1001,Surplus or Deficit from Trading Undertak,TRADING,#N/A,#N/A,18/07/2016,04-10001," 1,260.00 ",Vivid Laminating Technologies Ltd
Nottinghamshire County Council,1111/1001,Surplus or Deficit from Trading Undertak,TRADING,#N/A,#N/A,04/07/2016,04-10001, 510.22 ,Monarch Education Furniture
Nottinghamshire County Council,1111/1001,Surplus or Deficit from Trading Undertak,TRADING,#N/A,#N/A,20/07/2016,04-10001," 1,666.25 ",Monarch Education Furniture
Nottinghamshire County Council,1111/1001,Surplus or Deficit from Trading Undertak,TRADING,#N/A,#N/A,29/07/2016,04-10001, 748.80 ,Premier-Grip Trading Ltd
Nottinghamshire County Council,1111/1001,Surplus or Deficit from Trading Undertak,TRADING,#N/A,#N/A,28/07/2016,04-10001, 744.70 ,Grosvenor House Papers Ltd
Nottinghamshire County Council,1111/1001,Surplus or Deficit from Trading Undertak,TRADING,#N/A,#N/A,04/07/2016,04-10001, 999.12 ,Catering Supplies Wakefield Ltd
Nottinghamshire County Council,1111/1001,Surplus or Deficit from Trading Undertak,TRADING,#N/A,#N/A,18/07/2016,04-10001," 1,320.00 ",Premier Paper Group Ltd
Nottinghamshire County Council,1111/1001,Surplus or Deficit from Trading Undertak,TRADING,#N/A,#N/A,04/07/2016,04-10001," 6,107.84 ",Sca Hygiene Products Uk Ltd
Nottinghamshire County Council,1111/1001,Surplus or Deficit from Trading Undertak,TRADING,#N/A,#N/A,07/07/2016,04-10001, 809.28 ,Sca Hygiene Products Uk Ltd
Nottinghamshire County Council,1111/1001,Surplus or Deficit from Trading Undertak,TRADING,#N/A,#N/A,12/07/2016,04-10001, 622.80 ,Banner Group Limited
Nottinghamshire County Council,1111/1001,Surplus or Deficit from Trading Undertak,TRADING,#N/A,#N/A,08/07/2016,04-10001," 1,343.27 ",Banner Group Limited
Nottinghamshire County Council,1111/1001,Surplus or Deficit from Trading Undertak,TRADING,#N/A,#N/A,20/07/2016,04-10001," 2,122.59 ",Banner Group Limited
Nottinghamshire County Council,1111/1001,Surplus or Deficit from Trading Undertak,TRADING,#N/A,#N/A,20/07/2016,04-10001, 504.08 ,Banner Group Limited
Nottinghamshire County Council,1111/1001,Surplus or Deficit from Trading Undertak,TRADING,#N/A,#N/A,26/07/2016,04-10001, 849.13 ,Banner Group Limited
Nottinghamshire County Council,1111/1001,Surplus or Deficit from Trading Undertak,TRADING,#N/A,#N/A,28/07/2016,04-10001," 1,239.98 ",Banner Group Limited
Nottinghamshire County Council,1111/1001,Surplus or Deficit from Trading Undertak,TRADING,#N/A,#N/A,18/07/2016,04-10001, 516.60 ,Bright Ideas Marketing Ltd
Nottinghamshire County Council,1111/1001,Surplus or Deficit from Trading Undertak,TRADING,#N/A,#N/A,08/07/2016,04-10001, 504.20 ,Freudenberg Household Products Lp
Nottinghamshire County Council,1111/1001,Surplus or Deficit from Trading Undertak,TRADING,#N/A,#N/A,08/07/2016,04-10001," 8,919.58 ",Hamelin Brands Ltd
Nottinghamshire County Council,1111/1001,Surplus or Deficit from Trading Undertak,TRADING,#N/A,#N/A,12/07/2016,04-10001," 9,364.36 ",Hamelin Brands Ltd
Nottinghamshire County Council,1111/1001,Surplus or Deficit from Trading Undertak,TRADING,#N/A,#N/A,19/07/2016,04-10001," 8,288.19 ",Hamelin Brands Ltd
Nottinghamshire County Council,1111/1001,Surplus or Deficit from Trading Undertak,TRADING,#N/A,#N/A,22/07/2016,04-10001," 8,864.87 ",Hamelin Brands Ltd
Nottinghamshire County Council,1111/1001,Surplus or Deficit from Trading Undertak,TRADING,#N/A,#N/A,28/07/2016,04-10001," 2,799.11 ",Hamelin Brands Ltd
Nottinghamshire County Council,1111/1001,Surplus or Deficit from Trading Undertak,TRADING,#N/A,#N/A,14/07/2016,04-10001, 848.68 ,Dualit Ltd
Nottinghamshire County Council,1111/1001,Surplus or Deficit from Trading Undertak,TRADING,#N/A,#N/A,04/07/2016,04-10001, 699.20 ,Snopake Ltd
Nottinghamshire County Council,1111/1001,Surplus or Deficit from Trading Undertak,TRADING,#N/A,#N/A,26/07/2016,04-10001," 3,638.15 ",Higher Kings Mill Ltd
Nottinghamshire County Council,1111/1001,Surplus or Deficit from Trading Undertak,TRADING,#N/A,#N/A,08/07/2016,04-10001, 562.21 ,Exaclair Ltd
Nottinghamshire County Council,1111/1001,Surplus or Deficit from Trading Undertak,TRADING,#N/A,#N/A,26/07/2016,04-10001, 548.24 ,Exaclair Ltd
Nottinghamshire County Council,1111/1001,Surplus or Deficit from Trading Undertak,TRADING,#N/A,#N/A,26/07/2016,04-10001," 1,001.08 ",Creative Art Products Ltd
Nottinghamshire County Council,1111/1001,Surplus or Deficit from Trading Undertak,TRADING,#N/A,#N/A,08/07/2016,04-10001, 705.97 ,Creativity International Ltd
Nottinghamshire County Council,1111/1001,Surplus or Deficit from Trading Undertak,TRADING,#N/A,#N/A,08/07/2016,04-10001, 882.96 ,Creativity International Ltd
Nottinghamshire County Council,1111/1001,Surplus or Deficit from Trading Undertak,TRADING,#N/A,#N/A,07/07/2016,04-10001, 504.00 ,Creativity International Ltd
Nottinghamshire County Council,1111/1001,Surplus or Deficit from Trading Undertak,TRADING,#N/A,#N/A,26/07/2016,04-10001, 509.92 ,Creativity International Ltd
Nottinghamshire County Council,1111/1001,Surplus or Deficit from Trading Undertak,TRADING,#N/A,#N/A,26/07/2016,04-10001," 1,090.19 ",Creativity International Ltd
Nottinghamshire County Council,1111/1001,Surplus or Deficit from Trading Undertak,TRADING,#N/A,#N/A,04/07/2016,04-10001, 550.92 ,Acco Uk Ltd Services Division
Nottinghamshire County Council,1111/1001,Surplus or Deficit from Trading Undertak,TRADING,#N/A,#N/A,08/07/2016,04-10001," 1,213.43 ",Acco Uk Ltd Services Division
Nottinghamshire County Council,1111/1001,Surplus or Deficit from Trading Undertak,TRADING,#N/A,#N/A,07/07/2016,04-10001," 1,108.80 ",Acco Uk Ltd Services Division
Nottinghamshire County Council,1111/1001,Surplus or Deficit from Trading Undertak,TRADING,#N/A,#N/A,19/07/2016,04-10001," 1,108.80 ",Acco Uk Ltd Services Division
Nottinghamshire County Council,1111/1001,Surplus or Deficit from Trading Undertak,TRADING,#N/A,#N/A,26/07/2016,04-10001," 1,108.80 ",Acco Uk Ltd Services Division
Nottinghamshire County Council,1111/1001,Surplus or Deficit from Trading Undertak,TRADING,#N/A,#N/A,28/07/2016,04-10001, 570.48 ,Acco Uk Ltd Services Division
Nottinghamshire County Council,1111/1001,Surplus or Deficit from Trading Undertak,TRADING,#N/A,#N/A,08/07/2016,04-10001," 2,151.81 ",Newell Rubbermaid Uk Ltd
Nottinghamshire County Council,1111/1001,Surplus or Deficit from Trading Undertak,TRADING,#N/A,#N/A,08/07/2016,04-10001," 1,947.50 ",Newell Rubbermaid Uk Ltd
Nottinghamshire County Council,1111/1001,Surplus or Deficit from Trading Undertak,TRADING,#N/A,#N/A,08/07/2016,04-10001," 2,455.43 ",Newell Rubbermaid Uk Ltd
Nottinghamshire County Council,1111/1001,Surplus or Deficit from Trading Undertak,TRADING,#N/A,#N/A,14/07/2016,04-10001," 4,857.80 ",Newell Rubbermaid Uk Ltd
Nottinghamshire County Council,1111/1001,Surplus or Deficit from Trading Undertak,TRADING,#N/A,#N/A,14/07/2016,04-10001," 2,415.88 ",Newell Rubbermaid Uk Ltd
Nottinghamshire County Council,1111/1001,Surplus or Deficit from Trading Undertak,TRADING,#N/A,#N/A,18/07/2016,04-10001," 2,587.00 ",Newell Rubbermaid Uk Ltd
Nottinghamshire County Council,1111/1001,Surplus or Deficit from Trading Undertak,TRADING,#N/A,#N/A,19/07/2016,04-10001," 5,100.10 ",Newell Rubbermaid Uk Ltd
Nottinghamshire County Council,1111/1001,Surplus or Deficit from Trading Undertak,TRADING,#N/A,#N/A,19/07/2016,04-10001," 3,308.08 ",Newell Rubbermaid Uk Ltd
Nottinghamshire County Council,1111/1001,Surplus or Deficit from Trading Undertak,TRADING,#N/A,#N/A,19/07/2016,04-10001," 3,039.10 ",Newell Rubbermaid Uk Ltd
Nottinghamshire County Council,1111/1001,Surplus or Deficit from Trading Undertak,TRADING,#N/A,#N/A,20/07/2016,04-10001, 685.84 ,Newell Rubbermaid Uk Ltd
Nottinghamshire County Council,1111/1001,Surplus or Deficit from Trading Undertak,TRADING,#N/A,#N/A,26/07/2016,04-10001," 5,554.12 ",Newell Rubbermaid Uk Ltd
Nottinghamshire County Council,1111/1001,Surplus or Deficit from Trading Undertak,TRADING,#N/A,#N/A,28/07/2016,04-10001," 3,154.61 ",Newell Rubbermaid Uk Ltd
Nottinghamshire County Council,1111/1001,Surplus or Deficit from Trading Undertak,TRADING,#N/A,#N/A,14/07/2016,04-10001," 1,187.50 ",Candor Services Ltd
Nottinghamshire County Council,1111/1001,Surplus or Deficit from Trading Undertak,TRADING,#N/A,#N/A,26/07/2016,04-10001, 676.50 ,Candor Services Ltd
Nottinghamshire County Council,1111/1001,Surplus or Deficit from Trading Undertak,TRADING,#N/A,#N/A,12/07/2016,04-10001, 505.80 ,The Ruler Company
Nottinghamshire County Council,1111/1001,Surplus or Deficit from Trading Undertak,TRADING,#N/A,#N/A,08/07/2016,04-10001," 2,397.60 ",Slater Harrison & Company Ltd
Nottinghamshire County Council,1111/1001,Surplus or Deficit from Trading Undertak,TRADING,#N/A,#N/A,08/07/2016,04-10001," 2,778.68 ",Slater Harrison & Company Ltd
Nottinghamshire County Council,1111/1001,Surplus or Deficit from Trading Undertak,TRADING,#N/A,#N/A,08/07/2016,04-10001," 1,675.02 ",Slater Harrison & Company Ltd
Nottinghamshire County Council,1111/1001,Surplus or Deficit from Trading Undertak,TRADING,#N/A,#N/A,18/07/2016,04-10001, 572.80 ,Slater Harrison & Company Ltd
Nottinghamshire County Council,1111/1001,Surplus or Deficit from Trading Undertak,TRADING,#N/A,#N/A,18/07/2016,04-10001," 2,012.52 ",Slater Harrison & Company Ltd
Nottinghamshire County Council,1111/1001,Surplus or Deficit from Trading Undertak,TRADING,#N/A,#N/A,28/07/2016,04-10001," 2,665.55 ",Slater Harrison & Company Ltd
Nottinghamshire County Council,1111/1001,Surplus or Deficit from Trading Undertak,TRADING,#N/A,#N/A,28/07/2016,04-10001," 1,470.66 ",Slater Harrison & Company Ltd
Nottinghamshire County Council,1111/1001,Surplus or Deficit from Trading Undertak,TRADING,#N/A,#N/A,08/07/2016,04-10001," 1,183.07 ",Major Brushes Ltd
Nottinghamshire County Council,1111/1001,Surplus or Deficit from Trading Undertak,TRADING,#N/A,#N/A,12/07/2016,04-10001, 523.55 ,Major Brushes Ltd
Nottinghamshire County Council,1111/1001,Surplus or Deficit from Trading Undertak,TRADING,#N/A,#N/A,22/07/2016,04-10001, 500.20 ,Major Brushes Ltd
Nottinghamshire County Council,1111/1001,Surplus or Deficit from Trading Undertak,TRADING,#N/A,#N/A,14/07/2016,04-10001," 5,350.23 ",Polystar Plastics Ltd
Nottinghamshire County Council,1111/1001,Surplus or Deficit from Trading Undertak,TRADING,#N/A,#N/A,14/07/2016,04-10001," 7,599.26 ",Eastpoint
Nottinghamshire County Council,1111/1001,Surplus or Deficit from Trading Undertak,TRADING,#N/A,#N/A,28/07/2016,04-10001," 3,750.27 ",Eastpoint
Nottinghamshire County Council,1111/1001,Surplus or Deficit from Trading Undertak,TRADING,#N/A,#N/A,28/07/2016,04-10001," 7,166.58 ",Eastpoint
Nottinghamshire County Council,1111/1001,Surplus or Deficit from Trading Undertak,TRADING,#N/A,#N/A,14/07/2016,04-10001, 892.80 ,Bunzl Retail & Healthcare Supp Ltd
Nottinghamshire County Council,1111/1001,Surplus or Deficit from Trading Undertak,TRADING,#N/A,#N/A,18/07/2016,04-10001," 3,511.68 ",Bunzl Retail & Healthcare Supp Ltd
Nottinghamshire County Council,1111/1001,Surplus or Deficit from Trading Undertak,TRADING,#N/A,#N/A,19/07/2016,04-10001, 626.40 ,Bunzl Retail & Healthcare Supp Ltd
Nottinghamshire County Council,1111/1001,Surplus or Deficit from Trading Undertak,TRADING,#N/A,#N/A,18/07/2016,04-10001, 794.60 ,Tiger Stationery Ltd
Nottinghamshire County Council,1111/1001,Surplus or Deficit from Trading Undertak,TRADING,#N/A,#N/A,19/07/2016,04-10001, 630.00 ,Tiger Stationery Ltd
Nottinghamshire County Council,1111/1001,Surplus or Deficit from Trading Undertak,TRADING,#N/A,#N/A,05/07/2016,04-10001, 563.88 ,A & T Active Recruitment Ltd
Nottinghamshire County Council,1111/1001,Surplus or Deficit from Trading Undertak,TRADING,#N/A,#N/A,08/07/2016,04-10001," 1,144.38 ",A & T Active Recruitment Ltd
Nottinghamshire County Council,1111/1001,Surplus or Deficit from Trading Undertak,TRADING,#N/A,#N/A,14/07/2016,04-10001," 1,211.56 ",A & T Active Recruitment Ltd
Nottinghamshire County Council,1111/1001,Surplus or Deficit from Trading Undertak,TRADING,#N/A,#N/A,28/07/2016,04-10001, 918.72 ,A & T Active Recruitment Ltd
Nottinghamshire County Council,1111/1001,Surplus or Deficit from Trading Undertak,TRADING,#N/A,#N/A,28/07/2016,04-10001," 1,140.67 ",A & T Active Recruitment Ltd
Nottinghamshire County Council,1111/1001,Surplus or Deficit from Trading Undertak,TRADING,#N/A,#N/A,19/07/2016,04-10001, 904.34 ,Quality Metal Products Ltd
Nottinghamshire County Council,1111/1001,Surplus or Deficit from Trading Undertak,TRADING,#N/A,#N/A,19/07/2016,04-10001," 1,154.00 ",Mardel Office Interiors Ltd
Nottinghamshire County Council,1111/1001,Surplus or Deficit from Trading Undertak,TRADING,#N/A,#N/A,07/07/2016,04-10001," 1,137.60 ",Bunzl Cleaning & Hygiene Supplies
Nottinghamshire County Council,1111/1001,Surplus or Deficit from Trading Undertak,TRADING,#N/A,#N/A,14/07/2016,04-10001, 542.99 ,Bunzl Cleaning & Hygiene Supplies
Nottinghamshire County Council,1111/1001,Surplus or Deficit from Trading Undertak,TRADING,#N/A,#N/A,14/07/2016,04-10001, 537.90 ,Bunzl Cleaning & Hygiene Supplies
Nottinghamshire County Council,1111/1001,Surplus or Deficit from Trading Undertak,TRADING,#N/A,#N/A,14/07/2016,04-10001, 796.10 ,Bunzl Cleaning & Hygiene Supplies
Nottinghamshire County Council,1111/1001,Surplus or Deficit from Trading Undertak,TRADING,#N/A,#N/A,04/07/2016,04-10001, 513.00 ,Hille Educational Products Ltd
Nottinghamshire County Council,1111/1001,Surplus or Deficit from Trading Undertak,TRADING,#N/A,#N/A,04/07/2016,04-10001, 575.64 ,Hille Educational Products Ltd
Nottinghamshire County Council,1111/1001,Surplus or Deficit from Trading Undertak,TRADING,#N/A,#N/A,12/07/2016,04-10001, 501.24 ,North West Tea Service Ltd
Nottinghamshire County Council,1111/1001,Surplus or Deficit from Trading Undertak,TRADING,#N/A,#N/A,04/07/2016,04-10001, 770.75 ,Reliance Medical Ltd
Nottinghamshire County Council,1111/1001,Surplus or Deficit from Trading Undertak,TRADING,#N/A,#N/A,12/07/2016,04-10001," 1,091.40 ",G & S Corporate Supplies
Nottinghamshire County Council,1111/1001,Surplus or Deficit from Trading Undertak,TRADING,#N/A,#N/A,20/07/2016,04-10001, 950.00 ,Spaceright Europe Ltd
Nottinghamshire County Council,1111/1001,Surplus or Deficit from Trading Undertak,TRADING,#N/A,#N/A,22/07/2016,04-10001, 976.40 ,Decree Thermo Ltd
Nottinghamshire County Council,1111/1001,Surplus or Deficit from Trading Undertak,TRADING,#N/A,#N/A,14/07/2016,04-10001," 1,191.40 ",Fila Lyra Gb Ltd
Nottinghamshire County Council,1111/1001,Surplus or Deficit from Trading Undertak,TRADING,#N/A,#N/A,26/07/2016,04-10001," 1,367.80 ",Fila Lyra Gb Ltd
Nottinghamshire County Council,1111/1001,Surplus or Deficit from Trading Undertak,TRADING,#N/A,#N/A,14/07/2016,04-10001, 922.32 ,Rapesco Office Products Plc
Nottinghamshire County Council,1111/1001,Surplus or Deficit from Trading Undertak,TRADING,#N/A,#N/A,18/07/2016,04-10001," 1,318.52 ",Rapesco Office Products Plc
Nottinghamshire County Council,1111/1001,Surplus or Deficit from Trading Undertak,TRADING,#N/A,#N/A,28/07/2016,04-10001, 518.70 ,Heritage Envelopes
Nottinghamshire County Council,1111/1001,Surplus or Deficit from Trading Undertak,TRADING,#N/A,#N/A,04/07/2016,04-10001, 911.00 ,Kimberly Clark European Services Lt
Nottinghamshire County Council,1111/1001,Surplus or Deficit from Trading Undertak,TRADING,#N/A,#N/A,14/07/2016,04-10001, 904.00 ,Kimberly Clark European Services Lt
Nottinghamshire County Council,1111/1001,Surplus or Deficit from Trading Undertak,TRADING,#N/A,#N/A,14/07/2016,04-10001, 677.70 ,Kimberly Clark European Services Lt
Nottinghamshire County Council,1111/1001,Surplus or Deficit from Trading Undertak,TRADING,#N/A,#N/A,18/07/2016,04-10001," 1,428.00 ",Kimberly Clark European Services Lt
Nottinghamshire County Council,1111/1001,Surplus or Deficit from Trading Undertak,TRADING,#N/A,#N/A,18/07/2016,04-10001, 512.86 ,Plastoreg Smidt Gmbh
Nottinghamshire County Council,1111/1001,Surplus or Deficit from Trading Undertak,TRADING,#N/A,#N/A,04/07/2016,04-10001," 1,479.40 ",Kent County Supplies
Nottinghamshire County Council,1111/1001,Surplus or Deficit from Trading Undertak,TRADING,#N/A,#N/A,04/07/2016,04-10001," 3,343.80 ",Kent County Supplies
Nottinghamshire County Council,1111/1001,Surplus or Deficit from Trading Undertak,TRADING,#N/A,#N/A,11/07/2016,04-10001, 616.74 ,Kent County Supplies
Nottinghamshire County Council,1111/1001,Surplus or Deficit from Trading Undertak,TRADING,#N/A,#N/A,19/07/2016,04-10001," 1,226.10 ",Kent County Supplies
Nottinghamshire County Council,1111/1001,Surplus or Deficit from Trading Undertak,TRADING,#N/A,#N/A,26/07/2016,04-10001, 622.70 ,Kent County Supplies
Nottinghamshire County Council,1111/1001,Surplus or Deficit from Trading Undertak,TRADING,#N/A,#N/A,28/07/2016,04-10001," 3,585.00 ",Kent County Supplies
Nottinghamshire County Council,1111/1001,Surplus or Deficit from Trading Undertak,TRADING,#N/A,#N/A,28/07/2016,04-10001," 2,277.00 ",Kent County Supplies
Nottinghamshire County Council,1111/1001,Surplus or Deficit from Trading Undertak,TRADING,#N/A,#N/A,28/07/2016,04-10001," 1,145.50 ",Kent County Supplies
Nottinghamshire County Council,1111/1001,Surplus or Deficit from Trading Undertak,TRADING,#N/A,#N/A,08/07/2016,04-10001," 4,102.56 ",Omser (Scotland) Ltd
Nottinghamshire County Council,1111/1001,Surplus or Deficit from Trading Undertak,TRADING,#N/A,#N/A,15/07/2016,04-10001," 1,320.00 ",James Briggs Holdingst/Apremier Pro
Nottinghamshire County Council,1111/1001,Surplus or Deficit from Trading Undertak,TRADING,#N/A,#N/A,15/07/2016,04-10001," 3,888.50 ",James Briggs Holdingst/Apremier Pro
Nottinghamshire County Council,1111/1001,Surplus or Deficit from Trading Undertak,TRADING,#N/A,#N/A,15/07/2016,04-10001," 4,681.28 ",James Briggs Holdingst/Apremier Pro
Nottinghamshire County Council,1111/1001,Surplus or Deficit from Trading Undertak,TRADING,#N/A,#N/A,25/07/2016,04-10001," 1,623.51 ",James Briggs Holdingst/Apremier Pro
Nottinghamshire County Council,1111/1001,Surplus or Deficit from Trading Undertak,TRADING,#N/A,#N/A,04/07/2016,04-10001, 851.20 ,Greenspeed Nv/Sa
Nottinghamshire County Council,1111/1001,Surplus or Deficit from Trading Undertak,TRADING,#N/A,#N/A,18/07/2016,04-10001, 685.92 ,Greenspeed Nv/Sa
Nottinghamshire County Council,1111/1001,Children and Young People,CYP,Employee Related,ABA,25/07/2016,04-16856," 1,298.53 ",Aspiro Education Ltd
Nottinghamshire County Council,1111/1001,Children and Young People,CYP,Premises Related,BAA,27/07/2016,04-15025," 4,407.95 ",ARC Property Services Partnership L
Nottinghamshire County Council,1111/1001,Children and Young People,CYP,Premises Related,BAA,29/07/2016,04-16089," 20,823.05 ",ARC Property Services Partnership L
Nottinghamshire County Council,1111/1001,Children and Young People,CYP,Premises Related,BCA,01/07/2016,04-10113, 660.15 ,British Gas Business
Nottinghamshire County Council,1111/1001,Children and Young People,CYP,Premises Related,BCA,28/07/2016,04-16864, 965.76 ,Ollerton Primary School
Nottinghamshire County Council,1111/1001,Children and Young People,CYP,Premises Related,BDA,04/07/2016,04-10002," 3,297.64 ",Making It! Enterprises Ltd
Nottinghamshire County Council,1111/1001,Children and Young People,CYP,Premises Related,BDA,04/07/2016,04-10003," 5,862.49 ",Making It! Enterprises Ltd
Nottinghamshire County Council,1111/1001,Children and Young People,CYP,Premises Related,BDA,04/07/2016,04-10004," 5,784.88 ",Sherwood Forest Hosp Nhs Trust
Nottinghamshire County Council,1111/1001,Children and Young People,CYP,Premises Related,BDA,04/07/2016,04-10007, 605.00 ,High Peak Borough Council
Nottinghamshire County Council,1111/1001,Children and Young People,CYP,Premises Related,BDA,04/07/2016,04-10009," 4,768.26 ",Making It! Enterprises Ltd
Nottinghamshire County Council,1111/1001,Children and Young People,CYP,Premises Related,BDA,04/07/2016,04-10011, 606.67 ,J Sedoo t/a Sedoo Investments
Nottinghamshire County Council,1111/1001,Children and Young People,CYP,Premises Related,BDA,04/07/2016,04-10012, 606.67 ,J Sedoo t/a Sedoo Investments
Nottinghamshire County Council,1111/1001,Children and Young People,CYP,Premises Related,BDA,04/07/2016,04-10013, 606.67 ,J Sedoo t/a Sedoo Investments
Nottinghamshire County Council,1111/1001,Children and Young People,CYP,Premises Related,BDA,04/07/2016,04-10018, 675.00 ,[Redacted]
Nottinghamshire County Council,1111/1001,Children and Young People,CYP,Premises Related,BDA,04/07/2016,04-10019," 1,949.45 ",Refuge
Nottinghamshire County Council,1111/1001,Children and Young People,CYP,Premises Related,BDA,04/07/2016,04-10020, 575.00 ,Jillings Estates Ltd
Nottinghamshire County Council,1111/1001,Children and Young People,CYP,Premises Related,BDA,13/07/2016,04-16222, 800.00 ,PB UK Ltd
Nottinghamshire County Council,1111/1001,Children and Young People,CYP,Premises Related,BDA,13/07/2016,04-16476, 690.67 ,Alfred Mcalpine Business Services L
Nottinghamshire County Council,1111/1001,Children and Young People,CYP,Premises Related,BDA,14/07/2016,04-16520, 643.58 ,Alfred Mcalpine Business Services L
Nottinghamshire County Council,1111/1001,Children and Young People,CYP,Premises Related,BDA,15/07/2016,04-10021, 731.37 ,Nottingham Community Housing
Nottinghamshire County Council,1111/1001,Children and Young People,CYP,Premises Related,BDA,20/07/2016,04-16563, 514.65 ,The Nottinghamshire Golf and Countr
Nottinghamshire County Council,1111/1001,Children and Young People,CYP,Premises Related,BDA,25/07/2016,04-16248," 1,202.10 ",Woodhead Enterprises Ltd
Nottinghamshire County Council,1111/1001,Children and Young People,CYP,Premises Related,BDA,27/07/2016,04-10022," 3,918.75 ",Lakehill Estates
Nottinghamshire County Council,1111/1001,Children and Young People,CYP,Premises Related,BDA,27/07/2016,04-10023," 66,717.81 ",Gedling Borough Council
Nottinghamshire County Council,1111/1001,Children and Young People,CYP,Premises Related,BDA,28/07/2016,04-10024," 1,291.07 ",Refuge
Nottinghamshire County Council,1111/1001,Children and Young People,CYP,Premises Related,BDA,29/07/2016,04-10025," 1,334.11 ",Refuge
Nottinghamshire County Council,1111/1001,Children and Young People,CYP,Premises Related,BDA,29/07/2016,04-16601," 6,000.00 ",Mansfield Woodhouse Youth Project L
Nottinghamshire County Council,1111/1001,Children and Young People,CYP,Premises Related,BFA,25/07/2016,04-14822," 1,688.89 ",Severn Trent Water Ltd
Nottinghamshire County Council,1111/1001,Children and Young People,CYP,Premises Related,BFA,25/07/2016,04-14840," 1,526.74 ",Colonel Frank Seely School
Nottinghamshire County Council,1111/1001,Children and Young People,CYP,Premises Related,BFA,28/07/2016,04-14792," 1,275.16 ",Severn Trent Water Ltd
Nottinghamshire County Council,1111/1001,Children and Young People,CYP,Premises Related,BFA,28/07/2016,04-16864, 183.84 ,Ollerton Primary School
Nottinghamshire County Council,1111/1001,Children and Young People,CYP,Premises Related,BJA,11/07/2016,04-16360, 554.06 ,Solutions 4 Cleaning Ltd
Nottinghamshire County Council,1111/1001,Children and Young People,CYP,Premises Related,BJA,11/07/2016,04-16364, 563.33 ,Solutions 4 Cleaning Ltd
Nottinghamshire County Council,1111/1001,Children and Young People,CYP,Premises Related,BJA,11/07/2016,04-16365," 1,950.70 ",Solutions 4 Cleaning Ltd
Nottinghamshire County Council,1111/1001,Children and Young People,CYP,Premises Related,BJA,22/07/2016,04-16628," 1,019.39 ",Hi Spec Facilities Services Plc
Nottinghamshire County Council,1111/1001,Children and Young People,CYP,Premises Related,BJA,29/07/2016,04-16117, 677.00 ,Solutions 4 Cleaning Ltd
Nottinghamshire County Council,1111/1001,Children and Young People,CYP,Premises Related,BJA,29/07/2016,04-16118," 1,950.70 ",Solutions 4 Cleaning Ltd
Nottinghamshire County Council,1111/1001,Children and Young People,CYP,Premises Related,BJA,29/07/2016,04-16330, 554.06 ,Solutions 4 Cleaning Ltd
Nottinghamshire County Council,1111/1001,Children and Young People,CYP,Premises Related,BJA,29/07/2016,04-16564, 563.33 ,Solutions 4 Cleaning Ltd
Nottinghamshire County Council,1111/1001,Children and Young People,CYP,Transport Related,CCA,05/07/2016,04-10244," 3,002.00 ",Taxicover Uk Ltd
Nottinghamshire County Council,1111/1001,Children and Young People,CYP,Transport Related,CCA,05/07/2016,04-10245," 2,763.36 ",Taxicover Uk Ltd
Nottinghamshire County Council,1111/1001,Children and Young People,CYP,Transport Related,CCA,05/07/2016,04-10246," 1,813.50 ",Taxicover Uk Ltd
Nottinghamshire County Council,1111/1001,Children and Young People,CYP,Transport Related,CCA,05/07/2016,04-10247," 3,607.72 ",Taxicover Uk Ltd
Nottinghamshire County Council,1111/1001,Children and Young People,CYP,Transport Related,CCA,05/07/2016,04-10248," 3,780.43 ",Taxicover Uk Ltd
Nottinghamshire County Council,1111/1001,Children and Young People,CYP,Transport Related,CCA,05/07/2016,04-10249," 3,510.00 ",Taxicover Uk Ltd
Nottinghamshire County Council,1111/1001,Children and Young People,CYP,Transport Related,CCA,05/07/2016,04-10250," 2,689.20 ",Taxicover Uk Ltd
Nottinghamshire County Council,1111/1001,Children and Young People,CYP,Transport Related,CCA,05/07/2016,04-10251," 2,860.20 ",Taxicover Uk Ltd
Nottinghamshire County Council,1111/1001,Children and Young People,CYP,Transport Related,CCA,05/07/2016,04-10252," 3,312.00 ",Taxicover Uk Ltd
Nottinghamshire County Council,1111/1001,Children and Young People,CYP,Transport Related,CCA,05/07/2016,04-10253," 3,312.00 ",Taxicover Uk Ltd
Nottinghamshire County Council,1111/1001,Children and Young People,CYP,Transport Related,CCA,05/07/2016,04-10255," 2,974.45 ",Taxicover Uk Ltd
Nottinghamshire County Council,1111/1001,Children and Young People,CYP,Transport Related,CCA,05/07/2016,04-10256," 2,667.41 ",Taxicover Uk Ltd
Nottinghamshire County Council,1111/1001,Children and Young People,CYP,Transport Related,CCA,05/07/2016,04-10257," 2,840.12 ",Taxicover Uk Ltd
Nottinghamshire County Council,1111/1001,Children and Young People,CYP,Transport Related,CCA,05/07/2016,04-10258," 3,223.92 ",Taxicover Uk Ltd
Nottinghamshire County Council,1111/1001,Children and Young People,CYP,Transport Related,CCA,05/07/2016,04-10259," 2,993.64 ",Taxicover Uk Ltd
Nottinghamshire County Council,1111/1001,Children and Young People,CYP,Transport Related,CCA,05/07/2016,04-10260," 3,002.00 ",Taxicover Uk Ltd
Nottinghamshire County Council,1111/1001,Children and Young People,CYP,Transport Related,CCA,05/07/2016,04-10261," 1,877.20 ",Southside Cars
Nottinghamshire County Council,1111/1001,Children and Young People,CYP,Transport Related,CCA,05/07/2016,04-10262," 1,353.00 ",Southside Cars
Nottinghamshire County Council,1111/1001,Children and Young People,CYP,Transport Related,CCA,05/07/2016,04-10263," 2,318.40 ",Southside Cars
Nottinghamshire County Council,1111/1001,Children and Young People,CYP,Transport Related,CCA,05/07/2016,04-10264," 2,208.00 ",Southside Cars
Nottinghamshire County Council,1111/1001,Children and Young People,CYP,Transport Related,CCA,05/07/2016,04-10265," 1,025.00 ",Southside Cars
Nottinghamshire County Council,1111/1001,Children and Young People,CYP,Transport Related,CCA,05/07/2016,04-10266," 1,623.50 ",Southside Cars
Nottinghamshire County Council,1111/1001,Children and Young People,CYP,Transport Related,CCA,05/07/2016,04-10269," 1,887.34 ",All Wayz Travel
Nottinghamshire County Council,1111/1001,Children and Young People,CYP,Transport Related,CCA,05/07/2016,04-10271," 2,967.71 ",Wrights Coaches
Nottinghamshire County Council,1111/1001,Children and Young People,CYP,Transport Related,CCA,05/07/2016,04-10274, 865.62 ,Arrow Specialised Transport Ltd
Nottinghamshire County Council,1111/1001,Children and Young People,CYP,Transport Related,CCA,05/07/2016,04-10275," 2,080.00 ",Arrow Specialised Transport Ltd
Nottinghamshire County Council,1111/1001,Children and Young People,CYP,Transport Related,CCA,05/07/2016,04-10276," 2,270.50 ",Arrow Specialised Transport Ltd
Nottinghamshire County Council,1111/1001,Children and Young People,CYP,Transport Related,CCA,05/07/2016,04-10284, 903.95 ,Bridges Transport Services
Nottinghamshire County Council,1111/1001,Children and Young People,CYP,Transport Related,CCA,05/07/2016,04-10287," 1,919.00 ",Bridges Transport Services
Nottinghamshire County Council,1111/1001,Children and Young People,CYP,Transport Related,CCA,05/07/2016,04-10288," 2,394.00 ",Bridges Transport Services
Nottinghamshire County Council,1111/1001,Children and Young People,CYP,Transport Related,CCA,05/07/2016,04-10289," 1,615.00 ",Bridges Transport Services
Nottinghamshire County Council,1111/1001,Children and Young People,CYP,Transport Related,CCA,05/07/2016,04-10290," 1,277.75 ",Bridges Transport Services
Nottinghamshire County Council,1111/1001,Children and Young People,CYP,Transport Related,CCA,05/07/2016,04-10291," 1,567.50 ",Bridges Transport Services
Nottinghamshire County Council,1111/1001,Children and Young People,CYP,Transport Related,CCA,05/07/2016,04-10292, 974.25 ,Bridges Transport Services
Nottinghamshire County Council,1111/1001,Children and Young People,CYP,Transport Related,CCA,05/07/2016,04-10293, 876.09 ,Bridges Transport Services
Nottinghamshire County Council,1111/1001,Children and Young People,CYP,Transport Related,CCA,05/07/2016,04-10294, 918.00 ,Bridges Transport Services
Nottinghamshire County Council,1111/1001,Children and Young People,CYP,Transport Related,CCA,05/07/2016,04-10295," 2,358.15 ",Bridges Transport Services
Nottinghamshire County Council,1111/1001,Children and Young People,CYP,Transport Related,CCA,05/07/2016,04-10296," 1,753.51 ",Bridges Transport Services
Nottinghamshire County Council,1111/1001,Children and Young People,CYP,Transport Related,CCA,05/07/2016,04-10297," 4,135.35 ",Bridges Transport Services
Nottinghamshire County Council,1111/1001,Children and Young People,CYP,Transport Related,CCA,05/07/2016,04-10298," 2,660.00 ",Bridges Transport Services
Nottinghamshire County Council,1111/1001,Children and Young People,CYP,Transport Related,CCA,05/07/2016,04-10299," 1,981.89 ",Bridges Transport Services
Nottinghamshire County Council,1111/1001,Children and Young People,CYP,Transport Related,CCA,05/07/2016,04-10300," 2,681.28 ",Bridges Transport Services
Nottinghamshire County Council,1111/1001,Children and Young People,CYP,Transport Related,CCA,05/07/2016,04-10301," 2,748.16 ",Bridges Transport Services
Nottinghamshire County Council,1111/1001,Children and Young People,CYP,Transport Related,CCA,05/07/2016,04-10302," 1,394.60 ",Bridges Transport Services
Nottinghamshire County Council,1111/1001,Children and Young People,CYP,Transport Related,CCA,05/07/2016,04-10303, 973.61 ,Bridges Transport Services
Nottinghamshire County Council,1111/1001,Children and Young People,CYP,Transport Related,CCA,05/07/2016,04-10305," 1,125.00 ",Bridges Transport Services
Nottinghamshire County Council,1111/1001,Children and Young People,CYP,Transport Related,CCA,05/07/2016,04-10306," 1,881.00 ",Bridges Transport Services
Nottinghamshire County Council,1111/1001,Children and Young People,CYP,Transport Related,CCA,05/07/2016,04-10307," 2,162.01 ",Bridges Transport Services
Nottinghamshire County Council,1111/1001,Children and Young People,CYP,Transport Related,CCA,05/07/2016,04-10308," 2,270.50 ",Bridges Transport Services
Nottinghamshire County Council,1111/1001,Children and Young People,CYP,Transport Related,CCA,05/07/2016,04-10309," 2,605.66 ",Bridges Transport Services
Nottinghamshire County Council,1111/1001,Children and Young People,CYP,Transport Related,CCA,05/07/2016,04-10310," 2,508.00 ",Bridges Transport Services
Nottinghamshire County Council,1111/1001,Children and Young People,CYP,Transport Related,CCA,05/07/2016,04-10314," 3,619.31 ",Galaxy Cabs
Nottinghamshire County Council,1111/1001,Children and Young People,CYP,Transport Related,CCA,05/07/2016,04-10315," 1,174.39 ",Galaxy Cabs
Nottinghamshire County Council,1111/1001,Children and Young People,CYP,Transport Related,CCA,05/07/2016,04-10317, 855.00 ,Galaxy Cabs
Nottinghamshire County Council,1111/1001,Children and Young People,CYP,Transport Related,CCA,05/07/2016,04-10318," 3,262.30 ",Vallances Coaches
Nottinghamshire County Council,1111/1001,Children and Young People,CYP,Transport Related,CCA,05/07/2016,04-10320," 2,840.12 ",Vallances Coaches
Nottinghamshire County Council,1111/1001,Children and Young People,CYP,Transport Related,CCA,05/07/2016,04-10321," 2,029.65 ",Vallances Coaches
Nottinghamshire County Council,1111/1001,Children and Young People,CYP,Transport Related,CCA,05/07/2016,04-10322, 528.00 ,Elkingtons Park Garage
Nottinghamshire County Council,1111/1001,Children and Young People,CYP,Transport Related,CCA,05/07/2016,04-10323," 2,485.20 ",K & S Coaches
Nottinghamshire County Council,1111/1001,Children and Young People,CYP,Transport Related,CCA,05/07/2016,04-10335, 834.86 ,P & P Taxis
Nottinghamshire County Council,1111/1001,Children and Young People,CYP,Transport Related,CCA,05/07/2016,04-10338," 1,520.00 ",P & P Taxis
Nottinghamshire County Council,1111/1001,Children and Young People,CYP,Transport Related,CCA,05/07/2016,04-10343," 2,880.00 ",K Matthews Travel
Nottinghamshire County Council,1111/1001,Children and Young People,CYP,Transport Related,CCA,05/07/2016,04-10344," 3,060.00 ",K Matthews Travel
Nottinghamshire County Council,1111/1001,Children and Young People,CYP,Transport Related,CCA,05/07/2016,04-10361," 2,559.30 ",L A Travel
Nottinghamshire County Council,1111/1001,Children and Young People,CYP,Transport Related,CCA,05/07/2016,04-10363, 504.11 ,Diamond Cars
Nottinghamshire County Council,1111/1001,Children and Young People,CYP,Transport Related,CCA,06/07/2016,04-10517," 2,380.00 ",Johnson Bros Tours Ltd
Nottinghamshire County Council,1111/1001,Children and Young People,CYP,Transport Related,CCA,06/07/2016,04-10518," 2,869.00 ",Johnson Bros Tours Ltd
Nottinghamshire County Council,1111/1001,Children and Young People,CYP,Transport Related,CCA,06/07/2016,04-10522, 805.00 ,Ace Of Mansfield Ltd
Nottinghamshire County Council,1111/1001,Children and Young People,CYP,Transport Related,CCA,06/07/2016,04-10524," 1,012.00 ",Ace Of Mansfield Ltd
Nottinghamshire County Council,1111/1001,Children and Young People,CYP,Transport Related,CCA,06/07/2016,04-10525," 1,430.00 ",Ace Of Mansfield Ltd
Nottinghamshire County Council,1111/1001,Children and Young People,CYP,Transport Related,CCA,06/07/2016,04-10528, 950.00 ,Acorn Contracts
Nottinghamshire County Council,1111/1001,Children and Young People,CYP,Transport Related,CCA,06/07/2016,04-10530, 720.19 ,Acorn Contracts
Nottinghamshire County Council,1111/1001,Children and Young People,CYP,Transport Related,CCA,06/07/2016,04-10532," 2,215.97 ",D G Private Hire Ltd
Nottinghamshire County Council,1111/1001,Children and Young People,CYP,Transport Related,CCA,06/07/2016,04-10533," 2,415.85 ",D G Private Hire Ltd
Nottinghamshire County Council,1111/1001,Children and Young People,CYP,Transport Related,CCA,06/07/2016,04-10535," 1,785.00 ",Fozcabs Newark Taxis
Nottinghamshire County Council,1111/1001,Children and Young People,CYP,Transport Related,CCA,06/07/2016,04-10536, 874.00 ,Fozcabs Newark Taxis
Nottinghamshire County Council,1111/1001,Children and Young People,CYP,Transport Related,CCA,06/07/2016,04-10538," 2,072.52 ",Fozcabs Newark Taxis
Nottinghamshire County Council,1111/1001,Children and Young People,CYP,Transport Related,CCA,06/07/2016,04-10539," 1,410.77 ",Fozcabs Newark Taxis
Nottinghamshire County Council,1111/1001,Children and Young People,CYP,Transport Related,CCA,06/07/2016,04-10542," 2,375.00 ",Sprays Transport Ltd
Nottinghamshire County Council,1111/1001,Children and Young People,CYP,Transport Related,CCA,06/07/2016,04-10543," 2,147.00 ",Sprays Transport Ltd
Nottinghamshire County Council,1111/1001,Children and Young People,CYP,Transport Related,CCA,06/07/2016,04-10544," 2,020.46 ",Sprays Transport Ltd
Nottinghamshire County Council,1111/1001,Children and Young People,CYP,Transport Related,CCA,06/07/2016,04-10545," 1,859.53 ",Sprays Transport Ltd
Nottinghamshire County Council,1111/1001,Children and Young People,CYP,Transport Related,CCA,06/07/2016,04-10546," 1,380.00 ",Sprays Transport Ltd
Nottinghamshire County Council,1111/1001,Children and Young People,CYP,Transport Related,CCA,06/07/2016,04-10547," 2,280.00 ",Sprays Transport Ltd
Nottinghamshire County Council,1111/1001,Children and Young People,CYP,Transport Related,CCA,06/07/2016,04-10548," 2,264.42 ",Sprays Transport Ltd
Nottinghamshire County Council,1111/1001,Children and Young People,CYP,Transport Related,CCA,06/07/2016,04-10549," 1,956.62 ",Sprays Transport Ltd
Nottinghamshire County Council,1111/1001,Children and Young People,CYP,Transport Related,CCA,06/07/2016,04-10550," 1,862.00 ",Sprays Transport Ltd
Nottinghamshire County Council,1111/1001,Children and Young People,CYP,Transport Related,CCA,06/07/2016,04-10551," 1,800.82 ",Sprays Transport Ltd
Nottinghamshire County Council,1111/1001,Children and Young People,CYP,Transport Related,CCA,06/07/2016,04-10552," 1,814.88 ",Sprays Transport Ltd
Nottinghamshire County Council,1111/1001,Children and Young People,CYP,Transport Related,CCA,06/07/2016,04-10553," 2,110.90 ",Sprays Transport Ltd
Nottinghamshire County Council,1111/1001,Children and Young People,CYP,Transport Related,CCA,06/07/2016,04-10554," 2,014.95 ",Sprays Transport Ltd
Nottinghamshire County Council,1111/1001,Children and Young People,CYP,Transport Related,CCA,06/07/2016,04-10555," 2,072.52 ",Sprays Transport Ltd
Nottinghamshire County Council,1111/1001,Children and Young People,CYP,Transport Related,CCA,06/07/2016,04-10557," 2,072.52 ",Sprays Transport Ltd
Nottinghamshire County Council,1111/1001,Children and Young People,CYP,Transport Related,CCA,06/07/2016,04-10558," 2,086.20 ",Sprays Transport Ltd
Nottinghamshire County Council,1111/1001,Children and Young People,CYP,Transport Related,CCA,06/07/2016,04-10560," 1,830.00 ",Sprays Transport Ltd
Nottinghamshire County Council,1111/1001,Children and Young People,CYP,Transport Related,CCA,06/07/2016,04-10562," 2,552.27 ",D G Private Hire Ltd
Nottinghamshire County Council,1111/1001,Children and Young People,CYP,Transport Related,CCA,06/07/2016,04-10563," 1,140.00 ",D G Private Hire Ltd
Nottinghamshire County Council,1111/1001,Children and Young People,CYP,Transport Related,CCA,06/07/2016,04-10564, 600.00 ,D G Private Hire Ltd
Nottinghamshire County Council,1111/1001,Children and Young People,CYP,Transport Related,CCA,06/07/2016,04-10565," 1,816.97 ",D G Private Hire Ltd
Nottinghamshire County Council,1111/1001,Children and Young People,CYP,Transport Related,CCA,06/07/2016,04-10566, 665.00 ,D G Private Hire Ltd
Nottinghamshire County Council,1111/1001,Children and Young People,CYP,Transport Related,CCA,06/07/2016,04-10567, 848.40 ,D G Private Hire Ltd
Nottinghamshire County Council,1111/1001,Children and Young People,CYP,Transport Related,CCA,06/07/2016,04-10568," 1,212.00 ",D G Private Hire Ltd
Nottinghamshire County Council,1111/1001,Children and Young People,CYP,Transport Related,CCA,06/07/2016,04-10569," 1,272.24 ",D G Private Hire Ltd
Nottinghamshire County Council,1111/1001,Children and Young People,CYP,Transport Related,CCA,06/07/2016,04-10570," 1,520.00 ",D G Private Hire Ltd
Nottinghamshire County Council,1111/1001,Children and Young People,CYP,Transport Related,CCA,06/07/2016,04-10581," 1,740.00 ",Town Cars (UK) Ltd
Nottinghamshire County Council,1111/1001,Children and Young People,CYP,Transport Related,CCA,06/07/2016,04-10583, 587.29 ,Town Cars (UK) Ltd
Nottinghamshire County Council,1111/1001,Children and Young People,CYP,Transport Related,CCA,06/07/2016,04-10584, 315.24 ,Town Cars (UK) Ltd
Nottinghamshire County Council,1111/1001,Children and Young People,CYP,Transport Related,CCA,06/07/2016,04-10586, 648.00 ,Town Cars (UK) Ltd
Nottinghamshire County Council,1111/1001,Children and Young People,CYP,Transport Related,CCA,06/07/2016,04-10587, 812.00 ,Town Cars (UK) Ltd
Nottinghamshire County Council,1111/1001,Children and Young People,CYP,Transport Related,CCA,06/07/2016,04-10589, 630.00 ,Cable Cars Taxis Nottm Ltd
Nottinghamshire County Council,1111/1001,Children and Young People,CYP,Transport Related,CCA,06/07/2016,04-10594, 900.00 ,Nottingham Coaches
Nottinghamshire County Council,1111/1001,Children and Young People,CYP,Transport Related,CCA,06/07/2016,04-10597, 792.00 ,Forest Cars
Nottinghamshire County Council,1111/1001,Children and Young People,CYP,Transport Related,CCA,06/07/2016,04-10598," 1,862.00 ",Forest Cars
Nottinghamshire County Council,1111/1001,Children and Young People,CYP,Transport Related,CCA,06/07/2016,04-10599, 600.40 ,Forest Cars
Nottinghamshire County Council,1111/1001,Children and Young People,CYP,Transport Related,CCA,06/07/2016,04-10600," 1,216.00 ",Forest Cars
Nottinghamshire County Council,1111/1001,Children and Young People,CYP,Transport Related,CCA,07/07/2016,04-10623, 943.00 ,Mars Cars Ltd
Nottinghamshire County Council,1111/1001,Children and Young People,CYP,Transport Related,CCA,07/07/2016,04-10624," 1,140.00 ",6 Five 2s
Nottinghamshire County Council,1111/1001,Children and Young People,CYP,Transport Related,CCA,07/07/2016,04-10625," 1,672.00 ",6 Five 2s
Nottinghamshire County Council,1111/1001,Children and Young People,CYP,Transport Related,CCA,07/07/2016,04-10626," 1,972.77 ",6 Five 2s
Nottinghamshire County Council,1111/1001,Children and Young People,CYP,Transport Related,CCA,07/07/2016,04-10627," 1,611.96 ",6 Five 2s
Nottinghamshire County Council,1111/1001,Children and Young People,CYP,Transport Related,CCA,07/07/2016,04-10628," 1,961.18 ",6 Five 2s
Nottinghamshire County Council,1111/1001,Children and Young People,CYP,Transport Related,CCA,07/07/2016,04-10629," 1,803.86 ",6 Five 2s
Nottinghamshire County Council,1111/1001,Children and Young People,CYP,Transport Related,CCA,07/07/2016,04-10630," 1,074.64 ",6 Five 2s
Nottinghamshire County Council,1111/1001,Children and Young People,CYP,Transport Related,CCA,07/07/2016,04-10631," 1,988.16 ",6 Five 2s
Nottinghamshire County Council,1111/1001,Children and Young People,CYP,Transport Related,CCA,07/07/2016,04-10632, 798.76 ,6 Five 2s
Nottinghamshire County Council,1111/1001,Children and Young People,CYP,Transport Related,CCA,07/07/2016,04-10633, 746.13 ,6 Five 2s
Nottinghamshire County Council,1111/1001,Children and Young People,CYP,Transport Related,CCA,07/07/2016,04-10635," 2,341.18 ",Martins Travel
Nottinghamshire County Council,1111/1001,Children and Young People,CYP,Transport Related,CCA,07/07/2016,04-10639," 2,978.63 ",CBC Taxis Ltd
Nottinghamshire County Council,1111/1001,Children and Young People,CYP,Transport Related,CCA,07/07/2016,04-10640," 1,520.00 ",CBC Taxis Ltd
Nottinghamshire County Council,1111/1001,Children and Young People,CYP,Transport Related,CCA,07/07/2016,04-10641," 1,387.00 ",CBC Taxis Ltd
Nottinghamshire County Council,1111/1001,Children and Young People,CYP,Transport Related,CCA,07/07/2016,04-10648," 2,090.00 ",CBC Taxis Ltd
Nottinghamshire County Council,1111/1001,Children and Young People,CYP,Transport Related,CCA,07/07/2016,04-10649, 665.00 ,CBC Taxis Ltd
Nottinghamshire County Council,1111/1001,Children and Young People,CYP,Transport Related,CCA,07/07/2016,04-10650," 1,520.00 ",CBC Taxis Ltd
Nottinghamshire County Council,1111/1001,Children and Young People,CYP,Transport Related,CCA,07/07/2016,04-10651," 1,170.00 ",CBC Taxis Ltd
Nottinghamshire County Council,1111/1001,Children and Young People,CYP,Transport Related,CCA,07/07/2016,04-10652, 522.50 ,CBC Taxis Ltd
Nottinghamshire County Council,1111/1001,Children and Young People,CYP,Transport Related,CCA,07/07/2016,04-10654," 1,045.00 ",CBC Taxis Ltd
Nottinghamshire County Council,1111/1001,Children and Young People,CYP,Transport Related,CCA,07/07/2016,04-10655," 2,090.00 ",CBC Taxis Ltd
Nottinghamshire County Council,1111/1001,Children and Young People,CYP,Transport Related,CCA,07/07/2016,04-10657, 870.00 ,Ace Of Mansfield Ltd
Nottinghamshire County Council,1111/1001,Children and Young People,CYP,Transport Related,CCA,07/07/2016,04-10658, 650.00 ,Ace Of Mansfield Ltd
Nottinghamshire County Council,1111/1001,Children and Young People,CYP,Transport Related,CCA,07/07/2016,04-10660," 1,110.00 ",Ace Of Mansfield Ltd
Nottinghamshire County Council,1111/1001,Children and Young People,CYP,Transport Related,CCA,07/07/2016,04-10661, 597.92 ,Ace Of Mansfield Ltd
Nottinghamshire County Council,1111/1001,Children and Young People,CYP,Transport Related,CCA,07/07/2016,04-10662," 1,741.30 ",Ace Of Mansfield Ltd
Nottinghamshire County Council,1111/1001,Children and Young People,CYP,Transport Related,CCA,07/07/2016,04-10664," 2,110.90 ",Horizon Travel
Nottinghamshire County Council,1111/1001,Children and Young People,CYP,Transport Related,CCA,07/07/2016,04-10665," 2,275.37 ",Horizon Travel
Nottinghamshire County Council,1111/1001,Children and Young People,CYP,Transport Related,CCA,07/07/2016,04-10667," 1,343.30 ",Ng11 Cars
Nottinghamshire County Council,1111/1001,Children and Young People,CYP,Transport Related,CCA,07/07/2016,04-10669, 707.00 ,Ng11 Cars
Nottinghamshire County Council,1111/1001,Children and Young People,CYP,Transport Related,CCA,07/07/2016,04-10670," 1,666.50 ",Ng11 Cars
Nottinghamshire County Council,1111/1001,Children and Young People,CYP,Transport Related,CCA,07/07/2016,04-10671," 1,020.00 ",Ng11 Cars
Nottinghamshire County Council,1111/1001,Children and Young People,CYP,Transport Related,CCA,07/07/2016,04-10672, 684.00 ,Ng11 Cars
Nottinghamshire County Council,1111/1001,Children and Young People,CYP,Transport Related,CCA,07/07/2016,04-10673, 950.00 ,Ng11 Cars
Nottinghamshire County Council,1111/1001,Children and Young People,CYP,Transport Related,CCA,07/07/2016,04-10675, 972.00 ,Ng11 Cars
Nottinghamshire County Council,1111/1001,Children and Young People,CYP,Transport Related,CCA,07/07/2016,04-10676," 1,330.00 ",Ng11 Cars
Nottinghamshire County Council,1111/1001,Children and Young People,CYP,Transport Related,CCA,07/07/2016,04-10677," 1,372.00 ",Sprays Transport Ltd
Nottinghamshire County Council,1111/1001,Children and Young People,CYP,Transport Related,CCA,07/07/2016,04-10679," 2,491.85 ",Midfield Travel
Nottinghamshire County Council,1111/1001,Children and Young People,CYP,Transport Related,CCA,07/07/2016,04-10682," 1,247.54 ",Abacus Cars
Nottinghamshire County Council,1111/1001,Children and Young People,CYP,Transport Related,CCA,07/07/2016,04-10690," 1,343.30 ",Abacus Cars
Nottinghamshire County Council,1111/1001,Children and Young People,CYP,Transport Related,CCA,07/07/2016,04-10691," 1,748.00 ",Abacus Cars
Nottinghamshire County Council,1111/1001,Children and Young People,CYP,Transport Related,CCA,07/07/2016,04-10694," 1,072.00 ",Abacus Cars
Nottinghamshire County Council,1111/1001,Children and Young People,CYP,Transport Related,CCA,07/07/2016,04-10695," 1,615.00 ",Abacus Cars
Nottinghamshire County Council,1111/1001,Children and Young People,CYP,Transport Related,CCA,07/07/2016,04-10696," 1,615.00 ",Abacus Cars
Nottinghamshire County Council,1111/1001,Children and Young People,CYP,Transport Related,CCA,07/07/2016,04-10697," 1,296.00 ",Abacus Cars
Nottinghamshire County Council,1111/1001,Children and Young People,CYP,Transport Related,CCA,07/07/2016,04-10699," 1,520.00 ",Abacus Cars
Nottinghamshire County Council,1111/1001,Children and Young People,CYP,Transport Related,CCA,07/07/2016,04-10702," 1,343.30 ",Abacus Cars
Nottinghamshire County Council,1111/1001,Children and Young People,CYP,Transport Related,CCA,07/07/2016,04-10704," 1,277.94 ",Abacus Cars
Nottinghamshire County Council,1111/1001,Children and Young People,CYP,Transport Related,CCA,07/07/2016,04-10705," 6,366.72 ",Gem Mini Travel Ltd
Nottinghamshire County Council,1111/1001,Children and Young People,CYP,Transport Related,CCA,07/07/2016,04-10706, 792.33 ,Gem Mini Travel Ltd
Nottinghamshire County Council,1111/1001,Children and Young People,CYP,Transport Related,CCA,07/07/2016,04-10710," 2,675.39 ",Travel Wright Ltd
Nottinghamshire County Council,1111/1001,Children and Young People,CYP,Transport Related,CCA,07/07/2016,04-10712," 1,295.60 ",Travel Wright Ltd
Nottinghamshire County Council,1111/1001,Children and Young People,CYP,Transport Related,CCA,07/07/2016,04-10721," 1,140.50 ",Travel Wright Ltd
Nottinghamshire County Council,1111/1001,Children and Young People,CYP,Transport Related,CCA,07/07/2016,04-10722," 1,683.90 ",Travel Wright Ltd
Nottinghamshire County Council,1111/1001,Children and Young People,CYP,Transport Related,CCA,07/07/2016,04-10725," 3,847.00 ",Freeway Coaches Ltd
Nottinghamshire County Council,1111/1001,Children and Young People,CYP,Transport Related,CCA,07/07/2016,04-10726," 3,191.00 ",Freeway Coaches Ltd
Nottinghamshire County Council,1111/1001,Children and Young People,CYP,Transport Related,CCA,07/07/2016,04-10731," 1,284.83 ",Rio Cabs
Nottinghamshire County Council,1111/1001,Children and Young People,CYP,Transport Related,CCA,07/07/2016,04-10733, 594.93 ,Rio Cabs
Nottinghamshire County Council,1111/1001,Children and Young People,CYP,Transport Related,CCA,07/07/2016,04-10735," 2,754.00 ",Wallis Coachways
Nottinghamshire County Council,1111/1001,Children and Young People,CYP,Transport Related,CCA,07/07/2016,04-10740," 1,900.00 ",Trevor Bailey t/a Trevor Bailey Tra
Nottinghamshire County Council,1111/1001,Children and Young People,CYP,Transport Related,CCA,07/07/2016,04-10741," 4,333.65 ",Target Taxis
Nottinghamshire County Council,1111/1001,Children and Young People,CYP,Transport Related,CCA,07/07/2016,04-10764," 2,270.50 ",Arrow Specialised Transport Ltd
Nottinghamshire County Council,1111/1001,Children and Young People,CYP,Transport Related,CCA,07/07/2016,04-10765," 1,456.05 ",Arrow Specialised Transport Ltd
Nottinghamshire County Council,1111/1001,Children and Young People,CYP,Transport Related,CCA,07/07/2016,04-10766," 1,995.00 ",Arrow Specialised Transport Ltd
Nottinghamshire County Council,1111/1001,Children and Young People,CYP,Transport Related,CCA,07/07/2016,04-10767," 1,862.00 ",Arrow Specialised Transport Ltd
Nottinghamshire County Council,1111/1001,Children and Young People,CYP,Transport Related,CCA,07/07/2016,04-10769," 2,470.00 ",Arrow Specialised Transport Ltd
Nottinghamshire County Council,1111/1001,Children and Young People,CYP,Transport Related,CCA,07/07/2016,04-10770," 1,938.00 ",Arrow Specialised Transport Ltd
Nottinghamshire County Council,1111/1001,Children and Young People,CYP,Transport Related,CCA,07/07/2016,04-10771," 2,755.00 ",Arrow Specialised Transport Ltd
Nottinghamshire County Council,1111/1001,Children and Young People,CYP,Transport Related,CCA,07/07/2016,04-10772," 2,755.00 ",Arrow Specialised Transport Ltd
Nottinghamshire County Council,1111/1001,Children and Young People,CYP,Transport Related,CCA,07/07/2016,04-10773," 1,805.00 ",Arrow Specialised Transport Ltd
Nottinghamshire County Council,1111/1001,Children and Young People,CYP,Transport Related,CCA,07/07/2016,04-10774," 2,128.00 ",Arrow Specialised Transport Ltd
Nottinghamshire County Council,1111/1001,Children and Young People,CYP,Transport Related,CCA,07/07/2016,04-10775," 2,033.00 ",Arrow Specialised Transport Ltd
Nottinghamshire County Council,1111/1001,Children and Young People,CYP,Transport Related,CCA,07/07/2016,04-10776," 2,270.50 ",Arrow Specialised Transport Ltd
Nottinghamshire County Council,1111/1001,Children and Young People,CYP,Transport Related,CCA,07/07/2016,04-10777," 1,264.40 ",Arrow Specialised Transport Ltd
Nottinghamshire County Council,1111/1001,Children and Young People,CYP,Transport Related,CCA,07/07/2016,04-10778," 1,805.00 ",Arrow Specialised Transport Ltd
Nottinghamshire County Council,1111/1001,Children and Young People,CYP,Transport Related,CCA,07/07/2016,04-10779," 2,071.00 ",Arrow Specialised Transport Ltd
Nottinghamshire County Council,1111/1001,Children and Young People,CYP,Transport Related,CCA,07/07/2016,04-10780," 2,565.00 ",Arrow Specialised Transport Ltd
Nottinghamshire County Council,1111/1001,Children and Young People,CYP,Transport Related,CCA,07/07/2016,04-10781," 1,805.00 ",Arrow Specialised Transport Ltd
Nottinghamshire County Council,1111/1001,Children and Young People,CYP,Transport Related,CCA,07/07/2016,04-10782," 1,501.00 ",Arrow Specialised Transport Ltd
Nottinghamshire County Council,1111/1001,Children and Young People,CYP,Transport Related,CCA,07/07/2016,04-10783," 3,228.29 ",Arrow Specialised Transport Ltd
Nottinghamshire County Council,1111/1001,Children and Young People,CYP,Transport Related,CCA,07/07/2016,04-10784," 2,733.34 ",Arrow Specialised Transport Ltd
Nottinghamshire County Council,1111/1001,Children and Young People,CYP,Transport Related,CCA,07/07/2016,04-10785," 1,705.63 ",Arrow Specialised Transport Ltd
Nottinghamshire County Council,1111/1001,Children and Young People,CYP,Transport Related,CCA,07/07/2016,04-10786," 2,277.15 ",Arrow Specialised Transport Ltd
Nottinghamshire County Council,1111/1001,Children and Young People,CYP,Transport Related,CCA,07/07/2016,04-10787," 1,983.98 ",Arrow Specialised Transport Ltd
Nottinghamshire County Council,1111/1001,Children and Young People,CYP,Transport Related,CCA,07/07/2016,04-10788," 1,830.65 ",Arrow Specialised Transport Ltd
Nottinghamshire County Council,1111/1001,Children and Young People,CYP,Transport Related,CCA,07/07/2016,04-10789," 2,264.61 ",Arrow Specialised Transport Ltd
Nottinghamshire County Council,1111/1001,Children and Young People,CYP,Transport Related,CCA,07/07/2016,04-10790," 2,726.69 ",Arrow Specialised Transport Ltd
Nottinghamshire County Council,1111/1001,Children and Young People,CYP,Transport Related,CCA,07/07/2016,04-10791," 3,174.90 ",Arrow Specialised Transport Ltd
Nottinghamshire County Council,1111/1001,Children and Young People,CYP,Transport Related,CCA,07/07/2016,04-10792," 1,961.18 ",Arrow Specialised Transport Ltd
Nottinghamshire County Council,1111/1001,Children and Young People,CYP,Transport Related,CCA,07/07/2016,04-10793," 1,985.94 ",Arrow Specialised Transport Ltd
Nottinghamshire County Council,1111/1001,Children and Young People,CYP,Transport Related,CCA,07/07/2016,04-10794," 1,855.35 ",Arrow Specialised Transport Ltd
Nottinghamshire County Council,1111/1001,Children and Young People,CYP,Transport Related,CCA,07/07/2016,04-10795," 1,767.00 ",Arrow Specialised Transport Ltd
Nottinghamshire County Council,1111/1001,Children and Young People,CYP,Transport Related,CCA,07/07/2016,04-10796," 1,985.50 ",Arrow Specialised Transport Ltd
Nottinghamshire County Council,1111/1001,Children and Young People,CYP,Transport Related,CCA,07/07/2016,04-10797," 1,957.00 ",Arrow Specialised Transport Ltd
Nottinghamshire County Council,1111/1001,Children and Young People,CYP,Transport Related,CCA,07/07/2016,04-10798," 1,995.00 ",Arrow Specialised Transport Ltd
Nottinghamshire County Council,1111/1001,Children and Young People,CYP,Transport Related,CCA,07/07/2016,04-10799," 1,976.00 ",Arrow Specialised Transport Ltd
Nottinghamshire County Council,1111/1001,Children and Young People,CYP,Transport Related,CCA,07/07/2016,04-10800," 2,391.15 ",Arrow Specialised Transport Ltd
Nottinghamshire County Council,1111/1001,Children and Young People,CYP,Transport Related,CCA,07/07/2016,04-10801," 2,204.00 ",Arrow Specialised Transport Ltd
Nottinghamshire County Council,1111/1001,Children and Young People,CYP,Transport Related,CCA,07/07/2016,04-10802," 1,824.00 ",Arrow Specialised Transport Ltd
Nottinghamshire County Council,1111/1001,Children and Young People,CYP,Transport Related,CCA,07/07/2016,04-10803," 2,280.00 ",Arrow Specialised Transport Ltd
Nottinghamshire County Council,1111/1001,Children and Young People,CYP,Transport Related,CCA,07/07/2016,04-10804," 2,204.00 ",Arrow Specialised Transport Ltd
Nottinghamshire County Council,1111/1001,Children and Young People,CYP,Transport Related,CCA,07/07/2016,04-10805," 2,280.00 ",Arrow Specialised Transport Ltd
Nottinghamshire County Council,1111/1001,Children and Young People,CYP,Transport Related,CCA,07/07/2016,04-10806," 2,432.00 ",Arrow Specialised Transport Ltd
Nottinghamshire County Council,1111/1001,Children and Young People,CYP,Transport Related,CCA,07/07/2016,04-10808," 1,957.00 ",Arrow Specialised Transport Ltd
Nottinghamshire County Council,1111/1001,Children and Young People,CYP,Transport Related,CCA,07/07/2016,04-10809," 1,976.00 ",Arrow Specialised Transport Ltd
Nottinghamshire County Council,1111/1001,Children and Young People,CYP,Transport Related,CCA,07/07/2016,04-10810," 2,588.58 ",Arrow Specialised Transport Ltd
Nottinghamshire County Council,1111/1001,Children and Young People,CYP,Transport Related,CCA,07/07/2016,04-10811," 1,824.00 ",Arrow Specialised Transport Ltd
Nottinghamshire County Council,1111/1001,Children and Young People,CYP,Transport Related,CCA,07/07/2016,04-10812," 1,729.00 ",Arrow Specialised Transport Ltd
Nottinghamshire County Council,1111/1001,Children and Young People,CYP,Transport Related,CCA,07/07/2016,04-10813," 1,995.76 ",Arrow Specialised Transport Ltd
Nottinghamshire County Council,1111/1001,Children and Young People,CYP,Transport Related,CCA,07/07/2016,04-10814," 3,223.92 ",Arrow Specialised Transport Ltd
Nottinghamshire County Council,1111/1001,Children and Young People,CYP,Transport Related,CCA,07/07/2016,04-10815," 8,898.30 ",Arrow Specialised Transport Ltd
Nottinghamshire County Council,1111/1001,Children and Young People,CYP,Transport Related,CCA,07/07/2016,04-10816," 2,475.51 ",Arrow Specialised Transport Ltd
Nottinghamshire County Council,1111/1001,Children and Young People,CYP,Transport Related,CCA,07/07/2016,04-10817," 2,565.00 ",Arrow Specialised Transport Ltd
Nottinghamshire County Council,1111/1001,Children and Young People,CYP,Transport Related,CCA,07/07/2016,04-10818," 1,454.40 ",Arrow Specialised Transport Ltd
Nottinghamshire County Council,1111/1001,Children and Young People,CYP,Transport Related,CCA,07/07/2016,04-10819," 2,418.32 ",Arrow Specialised Transport Ltd
Nottinghamshire County Council,1111/1001,Children and Young People,CYP,Transport Related,CCA,07/07/2016,04-10821," 2,690.86 ",Arrow Specialised Transport Ltd
Nottinghamshire County Council,1111/1001,Children and Young People,CYP,Transport Related,CCA,07/07/2016,04-10823," 1,185.95 ",Arrow Specialised Transport Ltd
Nottinghamshire County Council,1111/1001,Children and Young People,CYP,Transport Related,CCA,07/07/2016,04-10825," 2,525.48 ",Arrow Specialised Transport Ltd
Nottinghamshire County Council,1111/1001,Children and Young People,CYP,Transport Related,CCA,07/07/2016,04-10826," 1,899.81 ",Arrow Specialised Transport Ltd
Nottinghamshire County Council,1111/1001,Children and Young People,CYP,Transport Related,CCA,07/07/2016,04-10827," 2,283.61 ",Arrow Specialised Transport Ltd
Nottinghamshire County Council,1111/1001,Children and Young People,CYP,Transport Related,CCA,07/07/2016,04-10829," 1,627.35 ",Arrow Specialised Transport Ltd
Nottinghamshire County Council,1111/1001,Children and Young People,CYP,Transport Related,CCA,07/07/2016,04-10830," 2,381.85 ",Arrow Specialised Transport Ltd
Nottinghamshire County Council,1111/1001,Children and Young People,CYP,Transport Related,CCA,07/07/2016,04-10832," 1,870.00 ",Arrow Specialised Transport Ltd
Nottinghamshire County Council,1111/1001,Children and Young People,CYP,Transport Related,CCA,07/07/2016,04-10833," 1,987.20 ",Arrow Specialised Transport Ltd
Nottinghamshire County Council,1111/1001,Children and Young People,CYP,Transport Related,CCA,07/07/2016,04-10834," 1,431.46 ",Arrow Specialised Transport Ltd
Nottinghamshire County Council,1111/1001,Children and Young People,CYP,Transport Related,CCA,07/07/2016,04-10835," 2,446.82 ",Arrow Specialised Transport Ltd
Nottinghamshire County Council,1111/1001,Children and Young People,CYP,Transport Related,CCA,07/07/2016,04-10836," 1,742.11 ",Arrow Specialised Transport Ltd
Nottinghamshire County Council,1111/1001,Children and Young People,CYP,Transport Related,CCA,07/07/2016,04-10837," 2,172.65 ",Arrow Specialised Transport Ltd
Nottinghamshire County Council,1111/1001,Children and Young People,CYP,Transport Related,CCA,07/07/2016,04-10838," 2,456.32 ",Arrow Specialised Transport Ltd
Nottinghamshire County Council,1111/1001,Children and Young People,CYP,Transport Related,CCA,07/07/2016,04-10839," 1,633.43 ",Arrow Specialised Transport Ltd
Nottinghamshire County Council,1111/1001,Children and Young People,CYP,Transport Related,CCA,07/07/2016,04-10840, 730.93 ,Arrow Specialised Transport Ltd
Nottinghamshire County Council,1111/1001,Children and Young People,CYP,Transport Related,CCA,07/07/2016,04-10842," 1,713.99 ",Arrow Specialised Transport Ltd
Nottinghamshire County Council,1111/1001,Children and Young People,CYP,Transport Related,CCA,07/07/2016,04-10843," 1,892.59 ",Arrow Specialised Transport Ltd
Nottinghamshire County Council,1111/1001,Children and Young People,CYP,Transport Related,CCA,07/07/2016,04-10844," 1,908.17 ",Arrow Specialised Transport Ltd
Nottinghamshire County Council,1111/1001,Children and Young People,CYP,Transport Related,CCA,07/07/2016,04-10845," 1,385.67 ",Arrow Specialised Transport Ltd
Nottinghamshire County Council,1111/1001,Children and Young People,CYP,Transport Related,CCA,07/07/2016,04-10848," 2,177.78 ",Arrow Specialised Transport Ltd
Nottinghamshire County Council,1111/1001,Children and Young People,CYP,Transport Related,CCA,07/07/2016,04-10849," 2,266.13 ",Arrow Specialised Transport Ltd
Nottinghamshire County Council,1111/1001,Children and Young People,CYP,Transport Related,CCA,07/07/2016,04-10850," 2,840.12 ",Arrow Specialised Transport Ltd
Nottinghamshire County Council,1111/1001,Children and Young People,CYP,Transport Related,CCA,07/07/2016,04-10851," 1,899.81 ",Arrow Specialised Transport Ltd
Nottinghamshire County Council,1111/1001,Children and Young People,CYP,Transport Related,CCA,07/07/2016,04-10852," 1,176.00 ",Headland Taxi Services
Nottinghamshire County Council,1111/1001,Children and Young People,CYP,Transport Related,CCA,07/07/2016,04-10853," 3,118.47 ",Ja Travel Ltd
Nottinghamshire County Council,1111/1001,Children and Young People,CYP,Transport Related,CCA,07/07/2016,04-10854," 3,070.40 ",Ja Travel Ltd
Nottinghamshire County Council,1111/1001,Children and Young People,CYP,Transport Related,CCA,07/07/2016,04-10855," 1,697.46 ",Ja Travel Ltd
Nottinghamshire County Council,1111/1001,Children and Young People,CYP,Transport Related,CCA,07/07/2016,04-10860," 1,544.00 ",Abacus Cars
Nottinghamshire County Council,1111/1001,Children and Young People,CYP,Transport Related,CCA,07/07/2016,04-10872," 3,275.03 ",Marshalls Of Sutton On Trent Ltd
Nottinghamshire County Council,1111/1001,Children and Young People,CYP,Transport Related,CCA,07/07/2016,04-10880," 3,378.20 ",Marshalls Of Sutton On Trent Ltd
Nottinghamshire County Council,1111/1001,Children and Young People,CYP,Transport Related,CCA,07/07/2016,04-10882," 2,035.60 ",Nunns Cars
Nottinghamshire County Council,1111/1001,Children and Young People,CYP,Transport Related,CCA,07/07/2016,04-10884," 2,609.84 ",K Matthews Travel
Nottinghamshire County Council,1111/1001,Children and Young People,CYP,Transport Related,CCA,07/07/2016,04-10885," 1,521.00 ",Ace Cars
Nottinghamshire County Council,1111/1001,Children and Young People,CYP,Transport Related,CCA,07/07/2016,04-10887," 1,927.80 ",Ace Cars
Nottinghamshire County Council,1111/1001,Children and Young People,CYP,Transport Related,CCA,07/07/2016,04-10888," 2,646.00 ",Ace Cars
Nottinghamshire County Council,1111/1001,Children and Young People,CYP,Transport Related,CCA,07/07/2016,04-10889, 779.28 ,I Can Charity
Nottinghamshire County Council,1111/1001,Children and Young People,CYP,Transport Related,CCA,07/07/2016,04-10890, 720.00 ,I Can Charity
Nottinghamshire County Council,1111/1001,Children and Young People,CYP,Transport Related,CCA,08/07/2016,04-10893," 1,330.00 ",CBC Taxis Ltd
Nottinghamshire County Council,1111/1001,Children and Young People,CYP,Transport Related,CCA,08/07/2016,04-10894," 2,149.28 ",Arrow Specialised Transport Ltd
Nottinghamshire County Council,1111/1001,Children and Young People,CYP,Transport Related,CCA,08/07/2016,04-10895," 2,110.90 ",Arrow Specialised Transport Ltd
Nottinghamshire County Council,1111/1001,Children and Young People,CYP,Transport Related,CCA,08/07/2016,04-10896," 1,976.00 ",Arrow Specialised Transport Ltd
Nottinghamshire County Council,1111/1001,Children and Young People,CYP,Transport Related,CCA,08/07/2016,04-10897," 1,560.00 ",Ng11 Cars
Nottinghamshire County Council,1111/1001,Children and Young People,CYP,Transport Related,CCA,08/07/2016,04-10902, 678.87 ,Bassetlaw Action Centre
Nottinghamshire County Council,1111/1001,Children and Young People,CYP,Transport Related,CCA,08/07/2016,04-10903, 747.27 ,Bassetlaw Action Centre
Nottinghamshire County Council,1111/1001,Children and Young People,CYP,Transport Related,CCA,08/07/2016,04-10904," 1,606.50 ",Ace Cars
Nottinghamshire County Council,1111/1001,Children and Young People,CYP,Transport Related,CCA,08/07/2016,04-10905," 1,700.50 ",Ace Cars
Nottinghamshire County Council,1111/1001,Children and Young People,CYP,Transport Related,CCA,08/07/2016,04-10906," 1,700.50 ",Ace Cars
Nottinghamshire County Council,1111/1001,Children and Young People,CYP,Transport Related,CCA,08/07/2016,04-10907," 1,445.40 ",Ace Cars
Nottinghamshire County Council,1111/1001,Children and Young People,CYP,Transport Related,CCA,08/07/2016,04-10908," 1,525.70 ",Ace Cars
Nottinghamshire County Council,1111/1001,Children and Young People,CYP,Transport Related,CCA,08/07/2016,04-10911," 2,546.00 ",Ace Cars
Nottinghamshire County Council,1111/1001,Children and Young People,CYP,Transport Related,CCA,08/07/2016,04-10912," 2,056.00 ",Ace Cars
Nottinghamshire County Council,1111/1001,Children and Young People,CYP,Transport Related,CCA,08/07/2016,04-10913," 2,270.50 ",Ace Cars
Nottinghamshire County Council,1111/1001,Children and Young People,CYP,Transport Related,CCA,08/07/2016,04-10914," 2,270.50 ",Ace Cars
Nottinghamshire County Council,1111/1001,Children and Young People,CYP,Transport Related,CCA,08/07/2016,04-10915," 2,055.80 ",Ace Cars
Nottinghamshire County Council,1111/1001,Children and Young People,CYP,Transport Related,CCA,08/07/2016,04-10916," 2,158.40 ",Ace Cars
Nottinghamshire County Council,1111/1001,Children and Young People,CYP,Transport Related,CCA,08/07/2016,04-10917," 1,797.40 ",Ace Cars
Nottinghamshire County Council,1111/1001,Children and Young People,CYP,Transport Related,CCA,08/07/2016,04-10918," 1,419.00 ",Ace Cars
Nottinghamshire County Council,1111/1001,Children and Young People,CYP,Transport Related,CCA,08/07/2016,04-10919," 1,760.00 ",Ace Cars
Nottinghamshire County Council,1111/1001,Children and Young People,CYP,Transport Related,CCA,08/07/2016,04-10920," 1,623.00 ",Ace Cars
Nottinghamshire County Council,1111/1001,Children and Young People,CYP,Transport Related,CCA,08/07/2016,04-10921," 1,047.20 ",Ace Cars
Nottinghamshire County Council,1111/1001,Children and Young People,CYP,Transport Related,CCA,08/07/2016,04-10922," 1,142.40 ",Ace Cars
Nottinghamshire County Council,1111/1001,Children and Young People,CYP,Transport Related,CCA,08/07/2016,04-10923," 1,132.88 ",Ace Cars
Nottinghamshire County Council,1111/1001,Children and Young People,CYP,Transport Related,CCA,08/07/2016,04-10925, 894.38 ,Ace Cars
Nottinghamshire County Council,1111/1001,Children and Young People,CYP,Transport Related,CCA,08/07/2016,04-10927," 1,496.25 ",Ace Cars
Nottinghamshire County Council,1111/1001,Children and Young People,CYP,Transport Related,CCA,08/07/2016,04-10928," 2,151.00 ",Ace Cars
Nottinghamshire County Council,1111/1001,Children and Young People,CYP,Transport Related,CCA,08/07/2016,04-10929," 2,270.50 ",Ace Cars
Nottinghamshire County Council,1111/1001,Children and Young People,CYP,Transport Related,CCA,08/07/2016,04-10930," 2,270.50 ",Ace Cars
Nottinghamshire County Council,1111/1001,Children and Young People,CYP,Transport Related,CCA,08/07/2016,04-10931," 1,440.00 ",Ace Cars
Nottinghamshire County Council,1111/1001,Children and Young People,CYP,Transport Related,CCA,08/07/2016,04-10932, 767.60 ,A2B Licensed Taxis
Nottinghamshire County Council,1111/1001,Children and Young People,CYP,Transport Related,CCA,08/07/2016,04-10934," 1,330.00 ",Sean's Taxi Services
Nottinghamshire County Council,1111/1001,Children and Young People,CYP,Transport Related,CCA,11/07/2016,04-13561," 2,375.00 ",Central Cars Nottm Ltd
Nottinghamshire County Council,1111/1001,Children and Young People,CYP,Transport Related,CCA,11/07/2016,04-13562," 1,644.15 ",Central Cars Nottm Ltd
Nottinghamshire County Council,1111/1001,Children and Young People,CYP,Transport Related,CCA,11/07/2016,04-13564," 1,250.34 ",Central Cars Nottm Ltd
Nottinghamshire County Council,1111/1001,Children and Young People,CYP,Transport Related,CCA,11/07/2016,04-13565," 2,092.47 ",Central Cars Nottm Ltd
Nottinghamshire County Council,1111/1001,Children and Young People,CYP,Transport Related,CCA,11/07/2016,04-13566," 2,331.68 ",Central Cars Nottm Ltd
Nottinghamshire County Council,1111/1001,Children and Young People,CYP,Transport Related,CCA,11/07/2016,04-13568," 2,206.47 ",F4Control Ltd (t/a First4care)
Nottinghamshire County Council,1111/1001,Children and Young People,CYP,Transport Related,CCA,11/07/2016,04-13571," 2,158.02 ",F4Control Ltd (t/a First4care)
Nottinghamshire County Council,1111/1001,Children and Young People,CYP,Transport Related,CCA,11/07/2016,04-13573," 2,390.04 ",F4Control Ltd (t/a First4care)
Nottinghamshire County Council,1111/1001,Children and Young People,CYP,Transport Related,CCA,11/07/2016,04-13575," 2,575.26 ",F4Control Ltd (t/a First4care)
Nottinghamshire County Council,1111/1001,Children and Young People,CYP,Transport Related,CCA,11/07/2016,04-13576," 1,431.46 ",F4Control Ltd (t/a First4care)
Nottinghamshire County Council,1111/1001,Children and Young People,CYP,Transport Related,CCA,11/07/2016,04-13579," 2,264.42 ",F4Control Ltd (t/a First4care)
Nottinghamshire County Council,1111/1001,Children and Young People,CYP,Transport Related,CCA,11/07/2016,04-13580," 2,283.61 ",F4Control Ltd (t/a First4care)
Nottinghamshire County Council,1111/1001,Children and Young People,CYP,Transport Related,CCA,11/07/2016,04-13581," 2,149.28 ",F4Control Ltd (t/a First4care)
Nottinghamshire County Council,1111/1001,Children and Young People,CYP,Transport Related,CCA,11/07/2016,04-13582," 1,919.25 ",F4Control Ltd (t/a First4care)
Nottinghamshire County Council,1111/1001,Children and Young People,CYP,Transport Related,CCA,11/07/2016,04-13583," 1,690.95 ",F4Control Ltd (t/a First4care)
Nottinghamshire County Council,1111/1001,Children and Young People,CYP,Transport Related,CCA,11/07/2016,04-13584," 2,464.87 ",F4Control Ltd (t/a First4care)
Nottinghamshire County Council,1111/1001,Children and Young People,CYP,Transport Related,CCA,11/07/2016,04-13587," 1,899.05 ",F4Control Ltd (t/a First4care)
Nottinghamshire County Council,1111/1001,Children and Young People,CYP,Transport Related,CCA,11/07/2016,04-13588," 1,924.56 ",F4Control Ltd (t/a First4care)
Nottinghamshire County Council,1111/1001,Children and Young People,CYP,Transport Related,CCA,11/07/2016,04-13589," 2,062.44 ",F4Control Ltd (t/a First4care)
Nottinghamshire County Council,1111/1001,Children and Young People,CYP,Transport Related,CCA,11/07/2016,04-13590," 2,084.94 ",F4Control Ltd (t/a First4care)
Nottinghamshire County Council,1111/1001,Children and Young People,CYP,Transport Related,CCA,11/07/2016,04-13591," 2,263.14 ",F4Control Ltd (t/a First4care)
Nottinghamshire County Council,1111/1001,Children and Young People,CYP,Transport Related,CCA,11/07/2016,04-13592," 2,114.64 ",F4Control Ltd (t/a First4care)
Nottinghamshire County Council,1111/1001,Children and Young People,CYP,Transport Related,CCA,11/07/2016,04-13593, 600.00 ,200 Cars Ltd
Nottinghamshire County Council,1111/1001,Children and Young People,CYP,Transport Related,CCA,11/07/2016,04-13596, 666.00 ,200 Cars Ltd
Nottinghamshire County Council,1111/1001,Children and Young People,CYP,Transport Related,CCA,12/07/2016,04-13597, 572.00 ,200 Cars Ltd
Nottinghamshire County Council,1111/1001,Children and Young People,CYP,Transport Related,CCA,12/07/2016,04-13598, 381.86 ,200 Cars Ltd
Nottinghamshire County Council,1111/1001,Children and Young People,CYP,Transport Related,CCA,12/07/2016,04-13600, 760.00 ,200 Cars Ltd
Nottinghamshire County Council,1111/1001,Children and Young People,CYP,Transport Related,CCA,12/07/2016,04-13601, 888.80 ,Alpha Cars
Nottinghamshire County Council,1111/1001,Children and Young People,CYP,Transport Related,CCA,12/07/2016,04-13602," 1,151.40 ",Alpha Cars
Nottinghamshire County Council,1111/1001,Children and Young People,CYP,Transport Related,CCA,12/07/2016,04-13605," 1,722.00 ",Alpha Cars
Nottinghamshire County Council,1111/1001,Children and Young People,CYP,Transport Related,CCA,12/07/2016,04-13606," 2,489.00 ",Arrow Specialised Transport Ltd
Nottinghamshire County Council,1111/1001,Children and Young People,CYP,Transport Related,CCA,12/07/2016,04-13608," 3,243.11 ",Butler Brothers Ltd
Nottinghamshire County Council,1111/1001,Children and Young People,CYP,Transport Related,CCA,12/07/2016,04-13609," 2,035.80 ",F4Control Ltd (t/a First4care)
Nottinghamshire County Council,1111/1001,Children and Young People,CYP,Transport Related,CCA,12/07/2016,04-13667, 504.11 ,Diamond Cars
Nottinghamshire County Council,1111/1001,Children and Young People,CYP,Transport Related,CCA,12/07/2016,04-13693, 373.75 ,F4Control Ltd (t/a First4care)
Nottinghamshire County Council,1111/1001,Children and Young People,CYP,Transport Related,CCA,12/07/2016,04-13701," 1,617.00 ",Forest Cars
Nottinghamshire County Council,1111/1001,Children and Young People,CYP,Transport Related,CCA,12/07/2016,04-13702, 566.40 ,Forest Cars
Nottinghamshire County Council,1111/1001,Children and Young People,CYP,Transport Related,CCA,12/07/2016,04-13704," 1,332.00 ",Forest Cars
Nottinghamshire County Council,1111/1001,Children and Young People,CYP,Transport Related,CCA,14/07/2016,04-13919, 777.70 ,D G Private Hire Ltd
Nottinghamshire County Council,1111/1001,Children and Young People,CYP,Transport Related,CCA,14/07/2016,04-13921, 646.40 ,D G Private Hire Ltd
Nottinghamshire County Council,1111/1001,Children and Young People,CYP,Transport Related,CCA,14/07/2016,04-13924, 690.84 ,D G Private Hire Ltd
Nottinghamshire County Council,1111/1001,Children and Young People,CYP,Transport Related,CCA,14/07/2016,04-13931, 767.60 ,D G Private Hire Ltd
Nottinghamshire County Council,1111/1001,Children and Young People,CYP,Transport Related,CCA,14/07/2016,04-13932," 1,710.00 ",D G Private Hire Ltd
Nottinghamshire County Council,1111/1001,Children and Young People,CYP,Transport Related,CCA,14/07/2016,04-13934, 531.60 ,D G Private Hire Ltd
Nottinghamshire County Council,1111/1001,Children and Young People,CYP,Transport Related,CCA,15/07/2016,04-14115," 2,424.00 ",Abacus Cars
Nottinghamshire County Council,1111/1001,Children and Young People,CYP,Transport Related,CCA,19/07/2016,04-14514," 15,295.00 ",Sharpes Of Nottingham
Nottinghamshire County Council,1111/1001,Children and Young People,CYP,Transport Related,CCA,19/07/2016,04-14519," 2,158.21 ",Erewash Community Transport
Nottinghamshire County Council,1111/1001,Children and Young People,CYP,Transport Related,CCA,19/07/2016,04-14520," 14,085.08 ",Erewash Community Transport
Nottinghamshire County Council,1111/1001,Children and Young People,CYP,Transport Related,CCA,19/07/2016,04-14530, 960.00 ,Nottingham Cars Ltd
Nottinghamshire County Council,1111/1001,Children and Young People,CYP,Transport Related,CCA,19/07/2016,04-14531, 495.00 ,Nottingham Cars Ltd
Nottinghamshire County Council,1111/1001,Children and Young People,CYP,Transport Related,CCA,21/07/2016,04-14657," 2,157.12 ",F4Control Ltd (t/a First4care)
Nottinghamshire County Council,1111/1001,Children and Young People,CYP,Transport Related,CCA,21/07/2016,04-14658, 622.71 ,Arrow Specialised Transport Ltd
Nottinghamshire County Council,1111/1001,Children and Young People,CYP,Transport Related,CCA,21/07/2016,04-14659, 648.00 ,Ng11 Cars
Nottinghamshire County Council,1111/1001,Children and Young People,CYP,Transport Related,CCA,21/07/2016,04-14660," 1,200.00 ",Sprays Transport Ltd
Nottinghamshire County Council,1111/1001,Children and Young People,CYP,Transport Related,CCA,21/07/2016,04-14664," 2,120.00 ",Silverdale Tours Nottm Ltd
Nottinghamshire County Council,1111/1001,Children and Young People,CYP,Transport Related,CCA,21/07/2016,04-14675," 2,090.00 ",AAA Cabs
Nottinghamshire County Council,1111/1001,Children and Young People,CYP,Transport Related,CCA,25/07/2016,04-15004," 1,151.40 ",SJW (Muskham) Ltd T/A Z Cars
Nottinghamshire County Council,1111/1001,Children and Young People,CYP,Transport Related,CCA,25/07/2016,04-15006, 946.20 ,SJW (Muskham) Ltd T/A Z Cars
Nottinghamshire County Council,1111/1001,Children and Young People,CYP,Transport Related,CCA,25/07/2016,04-15007, 707.00 ,SJW (Muskham) Ltd T/A Z Cars
Nottinghamshire County Council,1111/1001,Children and Young People,CYP,Transport Related,CCA,25/07/2016,04-15009," 1,094.00 ",CBC Taxis Ltd
Nottinghamshire County Council,1111/1001,Children and Young People,CYP,Transport Related,CCA,25/07/2016,04-15013," 1,845.00 ",Tiger European Uk Ltd
Nottinghamshire County Council,1111/1001,Children and Young People,CYP,Transport Related,CDA,05/07/2016,04-10303, 486.73 ,Bridges Transport Services
Nottinghamshire County Council,1111/1001,Children and Young People,CYP,Transport Related,CDA,05/07/2016,04-10315," 1,174.39 ",Galaxy Cabs
Nottinghamshire County Council,1111/1001,Children and Young People,CYP,Transport Related,CDA,05/07/2016,04-10325," 2,660.00 ",Nottingham Minibuses & Coaches
Nottinghamshire County Council,1111/1001,Children and Young People,CYP,Transport Related,CDA,05/07/2016,04-10326," 2,470.00 ",Nottingham Minibuses & Coaches
Nottinghamshire County Council,1111/1001,Children and Young People,CYP,Transport Related,CDA,05/07/2016,04-10327," 2,971.60 ",Nottingham Minibuses & Coaches
Nottinghamshire County Council,1111/1001,Children and Young People,CYP,Transport Related,CDA,05/07/2016,04-10328," 1,805.00 ",Nottingham Minibuses & Coaches
Nottinghamshire County Council,1111/1001,Children and Young People,CYP,Transport Related,CDA,05/07/2016,04-10329," 2,375.00 ",Nottingham Minibuses & Coaches
Nottinghamshire County Council,1111/1001,Children and Young People,CYP,Transport Related,CDA,05/07/2016,04-10331," 2,686.60 ",Nottingham Minibuses & Coaches
Nottinghamshire County Council,1111/1001,Children and Young People,CYP,Transport Related,CDA,05/07/2016,04-10332," 2,470.00 ",Nottingham Minibuses & Coaches
Nottinghamshire County Council,1111/1001,Children and Young People,CYP,Transport Related,CDA,05/07/2016,04-10334," 8,171.90 ",Nottingham Minibuses & Coaches
Nottinghamshire County Council,1111/1001,Children and Young People,CYP,Transport Related,CDA,05/07/2016,04-10337, 870.96 ,P & P Taxis
Nottinghamshire County Council,1111/1001,Children and Young People,CYP,Transport Related,CDA,05/07/2016,04-10339, 672.00 ,P & P Taxis
Nottinghamshire County Council,1111/1001,Children and Young People,CYP,Transport Related,CDA,06/07/2016,04-10521, 556.00 ,Ace Of Mansfield Ltd
Nottinghamshire County Council,1111/1001,Children and Young People,CYP,Transport Related,CDA,06/07/2016,04-10536, 874.00 ,Fozcabs Newark Taxis
Nottinghamshire County Council,1111/1001,Children and Young People,CYP,Transport Related,CDA,06/07/2016,04-10555, 230.28 ,Sprays Transport Ltd
Nottinghamshire County Council,1111/1001,Children and Young People,CYP,Transport Related,CDA,06/07/2016,04-10561," 2,693.05 ",Sprays Transport Ltd
Nottinghamshire County Council,1111/1001,Children and Young People,CYP,Transport Related,CDA,06/07/2016,04-10571," 3,427.60 ",AOT Coaches
Nottinghamshire County Council,1111/1001,Children and Young People,CYP,Transport Related,CDA,06/07/2016,04-10577," 2,090.00 ",AOT Coaches
Nottinghamshire County Council,1111/1001,Children and Young People,CYP,Transport Related,CDA,06/07/2016,04-10578," 1,546.60 ",AOT Coaches
Nottinghamshire County Council,1111/1001,Children and Young People,CYP,Transport Related,CDA,06/07/2016,04-10582, 524.00 ,Town Cars (UK) Ltd
Nottinghamshire County Council,1111/1001,Children and Young People,CYP,Transport Related,CDA,06/07/2016,04-10595, 940.50 ,Forest Cars
Nottinghamshire County Council,1111/1001,Children and Young People,CYP,Transport Related,CDA,07/07/2016,04-10652, 522.50 ,CBC Taxis Ltd
Nottinghamshire County Council,1111/1001,Children and Young People,CYP,Transport Related,CDA,07/07/2016,04-10656," 1,148.40 ",Ace Of Mansfield Ltd
Nottinghamshire County Council,1111/1001,Children and Young People,CYP,Transport Related,CDA,07/07/2016,04-10665, 449.61 ,Horizon Travel
Nottinghamshire County Council,1111/1001,Children and Young People,CYP,Transport Related,CDA,07/07/2016,04-10674," 3,040.00 ",Ng11 Cars
Nottinghamshire County Council,1111/1001,Children and Young People,CYP,Transport Related,CDA,07/07/2016,04-10700, 866.58 ,Abacus Cars
Nottinghamshire County Council,1111/1001,Children and Young People,CYP,Transport Related,CDA,07/07/2016,04-10731," 1,284.82 ",Rio Cabs
Nottinghamshire County Council,1111/1001,Children and Young People,CYP,Transport Related,CDA,07/07/2016,04-10767, 266.00 ,Arrow Specialised Transport Ltd
Nottinghamshire County Council,1111/1001,Children and Young People,CYP,Transport Related,CDA,07/07/2016,04-10828," 1,381.30 ",Arrow Specialised Transport Ltd
Nottinghamshire County Council,1111/1001,Children and Young People,CYP,Transport Related,CDA,07/07/2016,04-10845," 1,385.67 ",Arrow Specialised Transport Ltd
Nottinghamshire County Council,1111/1001,Children and Young People,CYP,Transport Related,CDA,07/07/2016,04-10881, 795.60 ,Nunns Cars
Nottinghamshire County Council,1111/1001,Children and Young People,CYP,Transport Related,CDA,11/07/2016,04-13562, 704.63 ,Central Cars Nottm Ltd
Nottinghamshire County Council,1111/1001,Children and Young People,CYP,Transport Related,CDA,11/07/2016,04-13594, 270.00 ,200 Cars Ltd
Nottinghamshire County Council,1111/1001,Children and Young People,CYP,Transport Related,CDA,12/07/2016,04-13598, 410.14 ,200 Cars Ltd
Nottinghamshire County Council,1111/1001,Children and Young People,CYP,Transport Related,CDA,12/07/2016,04-13603, 516.10 ,Alpha Cars
Nottinghamshire County Council,1111/1001,Children and Young People,CYP,Transport Related,CDA,12/07/2016,04-13693, 776.25 ,F4Control Ltd (t/a First4care)
Nottinghamshire County Council,1111/1001,Children and Young People,CYP,Transport Related,CDA,12/07/2016,04-13695," 2,780.61 ",Ng11 Cars
Nottinghamshire County Council,1111/1001,Children and Young People,CYP,Transport Related,CDA,14/07/2016,04-13923, 681.75 ,D G Private Hire Ltd
Nottinghamshire County Council,1111/1001,Children and Young People,CYP,Transport Related,CDA,14/07/2016,04-13929," 1,755.00 ",D G Private Hire Ltd
Nottinghamshire County Council,1111/1001,Children and Young People,CYP,Transport Related,CDA,14/07/2016,04-13933," 1,565.98 ",D G Private Hire Ltd
Nottinghamshire County Council,1111/1001,Children and Young People,CYP,Transport Related,CDA,14/07/2016,04-13935, 261.00 ,D G Private Hire Ltd
Nottinghamshire County Council,1111/1001,Children and Young People,CYP,Transport Related,CDA,19/07/2016,04-14529," 2,046.00 ",Nottingham Cars Ltd
Nottinghamshire County Council,1111/1001,Children and Young People,CYP,Transport Related,CDA,19/07/2016,04-14531, 495.00 ,Nottingham Cars Ltd
Nottinghamshire County Council,1111/1001,Children and Young People,CYP,Supplies & Services,DAA,07/07/2016,04-16270, 540.00 ,Alere Toxicology Plc
Nottinghamshire County Council,1111/1001,Children and Young People,CYP,Supplies & Services,DAA,08/07/2016,04-16302," 1,695.00 ",Access Expeditions
Nottinghamshire County Council,1111/1001,Children and Young People,CYP,Supplies & Services,DAA,14/07/2016,04-16479, 977.50 ,[Redacted]
Nottinghamshire County Council,1111/1001,Children and Young People,CYP,Supplies & Services,DAA,29/07/2016,04-16180, 950.00 ,Cochlear Europe Ltd
Nottinghamshire County Council,1111/1001,Children and Young People,CYP,Supplies & Services,DBA,05/07/2016,04-10368, 460.50 ,John Palin (Wholesale) Ltd
Nottinghamshire County Council,1111/1001,Children and Young People,CYP,Supplies & Services,DBA,06/07/2016,04-10618, 141.85 ,John Palin (Wholesale) Ltd
Nottinghamshire County Council,1111/1001,Children and Young People,CYP,Supplies & Services,DBA,13/07/2016,04-13814, 227.94 ,Brake Bros Ltd
Nottinghamshire County Council,1111/1001,Children and Young People,CYP,Supplies & Services,DBA,13/07/2016,04-13817, 41.62 ,Brake Bros Ltd
Nottinghamshire County Council,1111/1001,Children and Young People,CYP,Supplies & Services,DBA,13/07/2016,04-13823, 560.21 ,Brake Bros Ltd
Nottinghamshire County Council,1111/1001,Children and Young People,CYP,Supplies & Services,DBA,14/07/2016,04-13954, 848.00 ,Brake Bros Ltd
Nottinghamshire County Council,1111/1001,Children and Young People,CYP,Supplies & Services,DBA,14/07/2016,04-13957, 71.14 ,Brake Bros Ltd
Nottinghamshire County Council,1111/1001,Children and Young People,CYP,Supplies & Services,DBA,14/07/2016,04-13963, 716.86 ,Brake Bros Ltd
Nottinghamshire County Council,1111/1001,Children and Young People,CYP,Supplies & Services,DBA,14/07/2016,04-13967, 489.48 ,Brake Bros Ltd
Nottinghamshire County Council,1111/1001,Children and Young People,CYP,Supplies & Services,DBA,14/07/2016,04-13975, 472.20 ,Brake Bros Ltd
Nottinghamshire County Council,1111/1001,Children and Young People,CYP,Supplies & Services,DBA,20/07/2016,04-14608, 329.26 ,Brake Bros Ltd
Nottinghamshire County Council,1111/1001,Children and Young People,CYP,Supplies & Services,DBA,20/07/2016,04-14610, 171.94 ,Brake Bros Ltd
Nottinghamshire County Council,1111/1001,Children and Young People,CYP,Supplies & Services,DBA,20/07/2016,04-14616, 83.04 ,Brake Bros Ltd
Nottinghamshire County Council,1111/1001,Children and Young People,CYP,Supplies & Services,DBA,20/07/2016,04-14623, 351.05 ,Brake Bros Ltd
Nottinghamshire County Council,1111/1001,Children and Young People,CYP,Supplies & Services,DBA,25/07/2016,04-14828, 619.30 ,Brake Bros Ltd
Nottinghamshire County Council,1111/1001,Children and Young People,CYP,Supplies & Services,DBA,25/07/2016,04-14830, 313.54 ,Brake Bros Ltd
Nottinghamshire County Council,1111/1001,Children and Young People,CYP,Supplies & Services,DBA,25/07/2016,04-14834, 496.11 ,Brake Bros Ltd
Nottinghamshire County Council,1111/1001,Children and Young People,CYP,Supplies & Services,DCA,29/07/2016,04-16304, 668.77 ,Clean Sheet Laundry Ltd
Nottinghamshire County Council,1111/1001,Children and Young People,CYP,Supplies & Services,DCA,29/07/2016,04-16307, 517.82 ,Clean Sheet Laundry Ltd
Nottinghamshire County Council,1111/1001,Children and Young People,CYP,Supplies & Services,DEA,04/07/2016,04-10092," 3,006.00 ",Bassetlaw District Council
Nottinghamshire County Council,1111/1001,Children and Young People,CYP,Supplies & Services,DEA,05/07/2016,04-16191," 2,500.00 ",F4 Group Ltd T/A Performing Artiste
Nottinghamshire County Council,1111/1001,Children and Young People,CYP,Supplies & Services,DEA,07/07/2016,04-16259," 1,125.00 ",[Redacted]
Nottinghamshire County Council,1111/1001,Children and Young People,CYP,Supplies & Services,DEA,07/07/2016,04-16260," 2,500.00 ",Anna Pinkerton Ltd
Nottinghamshire County Council,1111/1001,Children and Young People,CYP,Supplies & Services,DEA,07/07/2016,04-16261," 2,500.00 ",Anna Pinkerton Ltd
Nottinghamshire County Council,1111/1001,Children and Young People,CYP,Supplies & Services,DEA,08/07/2016,04-16284," 4,300.00 ",Benson Community School
Nottinghamshire County Council,1111/1001,Children and Young People,CYP,Supplies & Services,DEA,11/07/2016,04-16265," 5,921.00 ",Partnership Projects UK (Ltd)
Nottinghamshire County Council,1111/1001,Children and Young People,CYP,Supplies & Services,DEA,11/07/2016,04-16266," 1,027.40 ",Partnership Projects UK (Ltd)
Nottinghamshire County Council,1111/1001,Children and Young People,CYP,Supplies & Services,DEA,11/07/2016,04-16267," 1,042.20 ",Partnership Projects UK (Ltd)
Nottinghamshire County Council,1111/1001,Children and Young People,CYP,Supplies & Services,DEA,11/07/2016,04-16268," 1,062.40 ",Partnership Projects UK (Ltd)
Nottinghamshire County Council,1111/1001,Children and Young People,CYP,Supplies & Services,DEA,13/07/2016,04-16407," 1,800.00 ",[Redacted]
Nottinghamshire County Council,1111/1001,Children and Young People,CYP,Supplies & Services,DEA,13/07/2016,04-16423, 750.00 ,[Redacted]
Nottinghamshire County Council,1111/1001,Children and Young People,CYP,Supplies & Services,DEA,13/07/2016,04-16442," 1,237.70 ",APW Consultancy Service Ltd
Nottinghamshire County Council,1111/1001,Children and Young People,CYP,Supplies & Services,DEA,13/07/2016,04-16466, 810.00 ,Balderton Village Day Nursery
Nottinghamshire County Council,1111/1001,Children and Young People,CYP,Supplies & Services,DEA,13/07/2016,04-16467," 2,400.00 ",Home Start Nottm
Nottinghamshire County Council,1111/1001,Children and Young People,CYP,Supplies & Services,DEA,13/07/2016,04-16468, 688.00 ,Balderton Village Day Nursery
Nottinghamshire County Council,1111/1001,Children and Young People,CYP,Supplies & Services,DEA,13/07/2016,04-16475, 504.00 ,Little Lambs Childcare
Nottinghamshire County Council,1111/1001,Children and Young People,CYP,Supplies & Services,DEA,13/07/2016,04-16478, 750.00 ,Family Action Enterprises Ltd
Nottinghamshire County Council,1111/1001,Children and Young People,CYP,Supplies & Services,DEA,19/07/2016,04-16524," 1,500.00 ",We Love Learning Ltd
Nottinghamshire County Council,1111/1001,Children and Young People,CYP,Supplies & Services,DEA,19/07/2016,04-16570," 1,125.00 ",[Redacted]
Nottinghamshire County Council,1111/1001,Children and Young People,CYP,Supplies & Services,DEA,19/07/2016,04-16589, 750.00 ,[Redacted]
Nottinghamshire County Council,1111/1001,Children and Young People,CYP,Supplies & Services,DEA,20/07/2016,04-16612," 4,212.00 ",Outwood Academy Portland
Nottinghamshire County Council,1111/1001,Children and Young People,CYP,Supplies & Services,DEA,20/07/2016,04-16637, 675.00 ,Andrew Pearson Education Consultanc
Nottinghamshire County Council,1111/1001,Children and Young People,CYP,Supplies & Services,DEA,21/07/2016,04-16613, 500.00 ,Mark Gray Associates Ltd
Nottinghamshire County Council,1111/1001,Children and Young People,CYP,Supplies & Services,DEA,22/07/2016,04-16706," 2,420.00 ",G-Map Services Ltd
Nottinghamshire County Council,1111/1001,Children and Young People,CYP,Supplies & Services,DEA,22/07/2016,04-16722," 6,500.00 ","Futures Advice, Skills & Employment"
Nottinghamshire County Council,1111/1001,Children and Young People,CYP,Supplies & Services,DEA,22/07/2016,04-16752," 4,275.00 ",Schofield Education
Nottinghamshire County Council,1111/1001,Children and Young People,CYP,Supplies & Services,DEA,25/07/2016,04-16854," 1,783.54 ",Family Focused Ltd
Nottinghamshire County Council,1111/1001,Children and Young People,CYP,Supplies & Services,DEA,26/07/2016,04-16857, 906.00 ,[Redacted]
Nottinghamshire County Council,1111/1001,Children and Young People,CYP,Supplies & Services,DEA,26/07/2016,04-16862, 750.00 ,[Redacted]
Nottinghamshire County Council,1111/1001,Children and Young People,CYP,Supplies & Services,DEA,26/07/2016,04-16863, 750.00 ,[Redacted]
Nottinghamshire County Council,1111/1001,Children and Young People,CYP,Supplies & Services,DEA,27/07/2016,04-16710, 679.20 ,Hallam Learning Consultancy Ltd
Nottinghamshire County Council,1111/1001,Children and Young People,CYP,Supplies & Services,DEA,28/07/2016,04-16420, 500.00 ,[Redacted]
Nottinghamshire County Council,1111/1001,Children and Young People,CYP,Supplies & Services,DEA,28/07/2016,04-16579," 1,114.68 ","Futures Advice, Skills & Employment"
Nottinghamshire County Council,1111/1001,Children and Young People,CYP,Supplies & Services,DEA,28/07/2016,04-16766, 891.40 ,RE Today Services
Nottinghamshire County Council,1111/1001,Children and Young People,CYP,Supplies & Services,DEA,29/07/2016,04-16469," 1,168.75 ",Chris Few Consultancy Ltd
Nottinghamshire County Council,1111/1001,Children and Young People,CYP,Supplies & Services,DEA,29/07/2016,04-16895," 1,470.00 ",National Development Team for Inclu
Nottinghamshire County Council,1111/1001,Children and Young People,CYP,Supplies & Services,DEA,29/07/2016,04-16918, 504.00 ,Little Lambs Childcare
Nottinghamshire County Council,1111/1001,Children and Young People,CYP,Supplies & Services,DEA,29/07/2016,04-16938," 1,237.70 ",APW Consultancy Service Ltd
Nottinghamshire County Council,1111/1001,Children and Young People,CYP,Supplies & Services,DFA,01/07/2016,04-10094," 1,439.28 ",Adept Telecom
Nottinghamshire County Council,1111/1001,Children and Young People,CYP,Supplies & Services,DFA,05/07/2016,04-16101," 3,000.00 ",Servelec Corelogic Ltd
Nottinghamshire County Council,1111/1001,Children and Young People,CYP,Supplies & Services,DFA,08/07/2016,04-10935, 603.58 ,Lantec Services Ltd
Nottinghamshire County Council,1111/1001,Children and Young People,CYP,Supplies & Services,DFA,12/07/2016,04-13670, 515.88 ,Lantec Services Ltd
Nottinghamshire County Council,1111/1001,Children and Young People,CYP,Supplies & Services,DFA,19/07/2016,04-16606," 7,400.00 ",Signis Ltd
Nottinghamshire County Council,1111/1001,Children and Young People,CYP,Supplies & Services,DFA,20/07/2016,04-14595," 1,579.28 ",Adept Telecom
Nottinghamshire County Council,1111/1001,Children and Young People,CYP,Supplies & Services,DFA,27/07/2016,04-16875, 790.72 ,Hands Free Computing Ltd
Nottinghamshire County Council,1111/1001,Children and Young People,CYP,Supplies & Services,DHA,01/07/2016,04-10067," 1,354.00 ",Ellis Riley & Son Ltd
Nottinghamshire County Council,1111/1001,Children and Young People,CYP,Supplies & Services,DHA,14/07/2016,04-16523," 1,000.00 ",Derbyshire County Council
Nottinghamshire County Council,1111/1001,Children and Young People,CYP,Supplies & Services,DHA,21/07/2016,04-14677," 2,500.00 ",The Lime Trees
Nottinghamshire County Council,1111/1001,Children and Young People,CYP,Supplies & Services,DHA,27/07/2016,04-15135," 3,000.00 ",T Kieran & Son Builders
Nottinghamshire County Council,1111/1001,Children and Young People,CYP,Supplies & Services,DHA,29/07/2016,04-16774," 2,500.00 ",Children & Families Across Borders
Nottinghamshire County Council,1111/1001,Children and Young People,CYP,Supplies & Services,DKA,06/07/2016,04-16225, 741.86 ,Progressive Care
Nottinghamshire County Council,1111/1001,Children and Young People,CYP,Supplies & Services,DKA,21/07/2016,04-14791," 13,486.55 ",Brookside Primary School
Nottinghamshire County Council,1111/1001,Children and Young People,CYP,Supplies & Services,DNA,06/07/2016,04-16227, 880.00 ,Rose Callan Education Services
Nottinghamshire County Council,1111/1001,Children and Young People,CYP,Third Party Payments,EAA,13/07/2016,04-16124," 130,462.50 ",Rushcliffe Borough Council
Nottinghamshire County Council,1111/1001,Children and Young People,CYP,Third Party Payments,EAA,20/07/2016,04-16569, 500.00 ,Abbey Road Primary School
Nottinghamshire County Council,1111/1001,Children and Young People,CYP,Third Party Payments,EBA,19/07/2016,04-16602," 9,545.00 ",Lincolnshire County Council
Nottinghamshire County Council,1111/1001,Children and Young People,CYP,Third Party Payments,EBA,22/07/2016,04-16582," 7,852.43 ",Derbyshire County Council
Nottinghamshire County Council,1111/1001,Children and Young People,CYP,Third Party Payments,EBA,27/07/2016,04-14812," 9,071.88 ",Transform Schools
Nottinghamshire County Council,1111/1001,Children and Young People,CYP,Third Party Payments,EBA,27/07/2016,04-14813," 42,744.00 ",Transform Schools
Nottinghamshire County Council,1111/1001,Children and Young People,CYP,Third Party Payments,EBA,27/07/2016,04-14814," 22,042.90 ",Transform Schools
Nottinghamshire County Council,1111/1001,Children and Young People,CYP,Third Party Payments,EBA,27/07/2016,04-14815," 8,943.06 ",Transform Schools
Nottinghamshire County Council,1111/1001,Children and Young People,CYP,Third Party Payments,EBA,27/07/2016,04-14816," 1,203.61 ",Transform Schools
Nottinghamshire County Council,1111/1001,Children and Young People,CYP,Third Party Payments,EBA,27/07/2016,04-14817," 10,230.80 ",East Leake Schools Ltd
Nottinghamshire County Council,1111/1001,Children and Young People,CYP,Third Party Payments,EBA,27/07/2016,04-14820," 16,241.04 ",Transform Schools
Nottinghamshire County Council,1111/1001,Children and Young People,CYP,Third Party Payments,EBA,27/07/2016,04-15020," 244,644.19 ",East Leake Schools Ltd
Nottinghamshire County Council,1111/1001,Children and Young People,CYP,Third Party Payments,EBA,27/07/2016,04-15143," 1,481,725.37 ",Transform Schools
Nottinghamshire County Council,1111/1001,Children and Young People,CYP,Third Party Payments,EBA,29/07/2016,04-16537," 4,971.66 ",The Priory Witham Academy
Nottinghamshire County Council,1111/1001,Children and Young People,CYP,Third Party Payments,EDA,01/07/2016,04-10058," 36,501.00 ",Joseph Whittaker Academy
Nottinghamshire County Council,1111/1001,Children and Young People,CYP,Third Party Payments,EDA,06/07/2016,04-10505," 148,562.50 ",Foxwood Academy
Nottinghamshire County Council,1111/1001,Children and Young People,CYP,Third Party Payments,EDA,06/07/2016,04-10506," 8,333.33 ",The Beech Academy
Nottinghamshire County Council,1111/1001,Children and Young People,CYP,Third Party Payments,EDA,06/07/2016,04-10507," 33,333.33 ",The Beech Academy
Nottinghamshire County Council,1111/1001,Children and Young People,CYP,Third Party Payments,EDA,06/07/2016,04-10508," 132,162.50 ",The Beech Academy
Nottinghamshire County Council,1111/1001,Children and Young People,CYP,Third Party Payments,EDA,08/07/2016,04-10937," 3,288.00 ",Retford Oaks Academy
Nottinghamshire County Council,1111/1001,Children and Young People,CYP,Third Party Payments,EDA,08/07/2016,04-10938," 36,588.00 ",George Spencer Academy
Nottinghamshire County Council,1111/1001,Children and Young People,CYP,Third Party Payments,EDA,08/07/2016,04-10939," 18,787.00 ",Chetwynd Road Primary Academy
Nottinghamshire County Council,1111/1001,Children and Young People,CYP,Third Party Payments,EDA,08/07/2016,04-10940," 3,576.00 ",George Spencer Academy
Nottinghamshire County Council,1111/1001,Children and Young People,CYP,Third Party Payments,EDA,12/07/2016,04-13705," 1,343.55 ",Peafield Lane Academy
Nottinghamshire County Council,1111/1001,Children and Young People,CYP,Third Party Payments,EDA,12/07/2016,04-13706," 1,653.60 ",Flying High Trust Beeston Fields Pr
Nottinghamshire County Council,1111/1001,Children and Young People,CYP,Third Party Payments,EDA,12/07/2016,04-13707," 1,033.50 ",The Flying High Academy
Nottinghamshire County Council,1111/1001,Children and Young People,CYP,Third Party Payments,EDA,12/07/2016,04-13708, 723.45 ,Hillside Academy
Nottinghamshire County Council,1111/1001,Children and Young People,CYP,Third Party Payments,EDA,12/07/2016,04-13709, 620.10 ,Holy Trinity Catholic Voluntary Aca
Nottinghamshire County Council,1111/1001,Children and Young People,CYP,Third Party Payments,EDA,12/07/2016,04-13710," 2,480.40 ",Leamington Primary & Nursery Academ
Nottinghamshire County Council,1111/1001,Children and Young People,CYP,Third Party Payments,EDA,12/07/2016,04-13711," 1,033.50 ",Norbridge Academy
Nottinghamshire County Council,1111/1001,Children and Young People,CYP,Third Party Payments,EDA,12/07/2016,04-13712," 1,963.65 ",Sparken Hill Academy
Nottinghamshire County Council,1111/1001,Children and Young People,CYP,Third Party Payments,EDA,12/07/2016,04-13713," 1,343.55 ",St Josephs Catholic Primary Sch Aca
Nottinghamshire County Council,1111/1001,Children and Young People,CYP,Third Party Payments,EDA,12/07/2016,04-13714," 1,240.20 ",Sunnyside Spencer Academy
Nottinghamshire County Council,1111/1001,Children and Young People,CYP,Third Party Payments,EDA,12/07/2016,04-13715, 826.80 ,The Bramble Academy
Nottinghamshire County Council,1111/1001,Children and Young People,CYP,Third Party Payments,EDA,12/07/2016,04-13716, 723.45 ,Arnbrook Primary Academy
Nottinghamshire County Council,1111/1001,Children and Young People,CYP,Third Party Payments,EDA,15/07/2016,04-14124," 1,372.50 ",The Flying High Academy
Nottinghamshire County Council,1111/1001,Children and Young People,CYP,Third Party Payments,EDA,15/07/2016,04-14125," 3,100.50 ",Sir Donald Bailey Academy
Nottinghamshire County Council,1111/1001,Children and Young People,CYP,Third Party Payments,EDA,18/07/2016,04-14274, 802.95 ,Wainwright Primary Academy
Nottinghamshire County Council,1111/1001,Children and Young People,CYP,Third Party Payments,EDA,18/07/2016,04-14275," 7,991.70 ",Tuxford Primary Academy
Nottinghamshire County Council,1111/1001,Children and Young People,CYP,Third Party Payments,EDA,18/07/2016,04-14276, 723.45 ,Barnby Road Academy Prim & Nursery
Nottinghamshire County Council,1111/1001,Children and Young People,CYP,Third Party Payments,EDA,18/07/2016,04-14277," 1,033.50 ",Bishop Alexander LEAD Academy
Nottinghamshire County Council,1111/1001,Children and Young People,CYP,Third Party Payments,EDA,18/07/2016,04-14278," 3,101.00 ",Mansfield Primary Academy
Nottinghamshire County Council,1111/1001,Children and Young People,CYP,Third Party Payments,EDA,18/07/2016,04-14279," 1,653.60 ",Serlby Park Academy
Nottinghamshire County Council,1111/1001,Children and Young People,CYP,Third Party Payments,EDA,18/07/2016,04-14280," 1,198.86 ",The Candleby Lane Academy
Nottinghamshire County Council,1111/1001,Children and Young People,CYP,Third Party Payments,EDA,18/07/2016,04-14281," 15,077.25 ",Barnby Road Academy Prim & Nursery
Nottinghamshire County Council,1111/1001,Children and Young People,CYP,Third Party Payments,EDA,18/07/2016,04-14282," 20,293.03 ",Sparken Hill Academy
Nottinghamshire County Council,1111/1001,Children and Young People,CYP,Third Party Payments,EDA,18/07/2016,04-14283," 5,994.83 ",Flying High Trust Bilsthorpe High A
Nottinghamshire County Council,1111/1001,Children and Young People,CYP,Third Party Payments,EDA,18/07/2016,04-14284," 11,507.25 ",Flying High Trust Beeston Fields Pr
Nottinghamshire County Council,1111/1001,Children and Young People,CYP,Third Party Payments,EDA,18/07/2016,04-14285," 4,339.80 ",The Bramble Academy
Nottinghamshire County Council,1111/1001,Children and Young People,CYP,Third Party Payments,EDA,18/07/2016,04-14286," 20,762.68 ",Sir Donald Bailey Academy
Nottinghamshire County Council,1111/1001,Children and Young People,CYP,Third Party Payments,EDA,18/07/2016,04-14287," 3,860.04 ",Archbishop Cranmer C of E Academy
Nottinghamshire County Council,1111/1001,Children and Young People,CYP,Third Party Payments,EDA,18/07/2016,04-14288," 10,739.58 ",Sacred Heart Catholic Voluntary Aca
Nottinghamshire County Council,1111/1001,Children and Young People,CYP,Third Party Payments,EDA,18/07/2016,04-14289," 5,984.74 ",St Joseph's RC Primary Academy
Nottinghamshire County Council,1111/1001,Children and Young People,CYP,Third Party Payments,EDA,18/07/2016,04-14290," 11,090.55 ",Holy Trinity Catholic Voluntary Aca
Nottinghamshire County Council,1111/1001,Children and Young People,CYP,Third Party Payments,EDA,18/07/2016,04-14291," 11,248.00 ",St Patricks Catholic Voluntary Acad
Nottinghamshire County Council,1111/1001,Children and Young People,CYP,Third Party Payments,EDA,18/07/2016,04-14292," 20,560.15 ",St Philip Neri with St Bede Vol Aca
Nottinghamshire County Council,1111/1001,Children and Young People,CYP,Third Party Payments,EDA,18/07/2016,04-14293," 16,538.23 ",The Candleby Lane Academy
Nottinghamshire County Council,1111/1001,Children and Young People,CYP,Third Party Payments,EDA,18/07/2016,04-14294," 12,887.65 ",Hillside Academy
Nottinghamshire County Council,1111/1001,Children and Young People,CYP,Third Party Payments,EDA,18/07/2016,04-14295," 15,168.85 ",The Flying High Academy
Nottinghamshire County Council,1111/1001,Children and Young People,CYP,Third Party Payments,EDA,18/07/2016,04-14296," 10,234.70 ",Serlby Park Academy
Nottinghamshire County Council,1111/1001,Children and Young People,CYP,Third Party Payments,EDA,18/07/2016,04-14297," 28,415.40 ",Norbridge Academy
Nottinghamshire County Council,1111/1001,Children and Young People,CYP,Third Party Payments,EDA,19/07/2016,04-14538, 585.00 ,The Carlton Academy
Nottinghamshire County Council,1111/1001,Children and Young People,CYP,Third Party Payments,EDA,19/07/2016,04-14539," 5,904.65 ",Mansfield Primary Academy
Nottinghamshire County Council,1111/1001,Children and Young People,CYP,Third Party Payments,EDA,19/07/2016,04-14540," 7,070.93 ",Kingston Park Academy
Nottinghamshire County Council,1111/1001,Children and Young People,CYP,Third Party Payments,EDA,19/07/2016,04-14541," 13,672.25 ",Peafield Lane Academy
Nottinghamshire County Council,1111/1001,Children and Young People,CYP,Third Party Payments,EDA,19/07/2016,04-14542," 16,971.40 ",Leamington Primary & Nursery Academ
Nottinghamshire County Council,1111/1001,Children and Young People,CYP,Third Party Payments,EDA,19/07/2016,04-14543," 5,589.00 ",Sunnyside Spencer Academy
Nottinghamshire County Council,1111/1001,Children and Young People,CYP,Third Party Payments,EDA,19/07/2016,04-14544," 16,061.35 ",Bishop Alexander LEAD Academy
Nottinghamshire County Council,1111/1001,Children and Young People,CYP,Third Party Payments,EDA,20/07/2016,04-10936," 4,019.00 ",Leverton C Of E Academy
Nottinghamshire County Council,1111/1001,Children and Young People,CYP,Third Party Payments,EDA,21/07/2016,04-14649," 13,384.78 ",Wainwright Primary Academy
Nottinghamshire County Council,1111/1001,Children and Young People,CYP,Third Party Payments,EFA,04/07/2016,04-16107," 3,781.00 ",Newbridge High School Academy Trust
Nottinghamshire County Council,1111/1001,Children and Young People,CYP,Third Party Payments,EFA,05/07/2016,04-16138," 5,394.42 ",Buxton Training Enterprises Ltd
Nottinghamshire County Council,1111/1001,Children and Young People,CYP,Third Party Payments,EFA,05/07/2016,04-16152," 6,455.20 ",Maple Hayes School
Nottinghamshire County Council,1111/1001,Children and Young People,CYP,Third Party Payments,EFA,06/07/2016,04-16190," 1,215.00 ",Hill Holt Wood
Nottinghamshire County Council,1111/1001,Children and Young People,CYP,Third Party Payments,EFA,06/07/2016,04-16224," 1,200.00 ",Hill Holt Wood
Nottinghamshire County Council,1111/1001,Children and Young People,CYP,Third Party Payments,EFA,08/07/2016,04-10891," 1,000.00 ",Steele Homes Ltd
Nottinghamshire County Council,1111/1001,Children and Young People,CYP,Third Party Payments,EFA,08/07/2016,04-16262," 1,080.00 ",Buxton Training Enterprises Ltd
Nottinghamshire County Council,1111/1001,Children and Young People,CYP,Third Party Payments,EFA,12/07/2016,04-16373," 3,916.00 ",Alternative Programme Education Ltd
Nottinghamshire County Council,1111/1001,Children and Young People,CYP,Third Party Payments,EFA,13/07/2016,04-16139," 4,020.00 ",East Midlands Vocational Academy Lt
Nottinghamshire County Council,1111/1001,Children and Young People,CYP,Third Party Payments,EFA,13/07/2016,04-16462," 2,700.00 ",Rainbow Horses Learning Centre
Nottinghamshire County Council,1111/1001,Children and Young People,CYP,Third Party Payments,EFA,14/07/2016,04-16494," 1,090.00 ",First Class Tailored Solutions Ltd
Nottinghamshire County Council,1111/1001,Children and Young People,CYP,Third Party Payments,EFA,14/07/2016,04-16495," 1,090.00 ",First Class Tailored Solutions Ltd
Nottinghamshire County Council,1111/1001,Children and Young People,CYP,Third Party Payments,EFA,14/07/2016,04-16496," 1,090.00 ",First Class Tailored Solutions Ltd
Nottinghamshire County Council,1111/1001,Children and Young People,CYP,Third Party Payments,EFA,14/07/2016,04-16497," 1,090.00 ",First Class Tailored Solutions Ltd
Nottinghamshire County Council,1111/1001,Children and Young People,CYP,Third Party Payments,EFA,14/07/2016,04-16498," 1,090.00 ",First Class Tailored Solutions Ltd
Nottinghamshire County Council,1111/1001,Children and Young People,CYP,Third Party Payments,EFA,14/07/2016,04-16499," 1,090.00 ",First Class Tailored Solutions Ltd
Nottinghamshire County Council,1111/1001,Children and Young People,CYP,Third Party Payments,EFA,14/07/2016,04-16506," 1,090.00 ",First Class Tailored Solutions Ltd
Nottinghamshire County Council,1111/1001,Children and Young People,CYP,Third Party Payments,EFA,18/07/2016,04-16473," 14,210.52 ",Hope House School Ltd
Nottinghamshire County Council,1111/1001,Children and Young People,CYP,Third Party Payments,EFA,18/07/2016,04-16474," 12,553.58 ",Hope House School Ltd
Nottinghamshire County Council,1111/1001,Children and Young People,CYP,Third Party Payments,EFA,18/07/2016,04-16535," 1,560.00 ",Rettech Ltd
Nottinghamshire County Council,1111/1001,Children and Young People,CYP,Third Party Payments,EFA,18/07/2016,04-16550," 20,000.00 ","Culture, Learning & Libraries (Midl"
Nottinghamshire County Council,1111/1001,Children and Young People,CYP,Third Party Payments,EFA,19/07/2016,04-16593," 7,726.79 ",Teaching Personnel Ltd
Nottinghamshire County Council,1111/1001,Children and Young People,CYP,Third Party Payments,EFA,19/07/2016,04-16594," 7,726.79 ",Teaching Personnel Ltd
Nottinghamshire County Council,1111/1001,Children and Young People,CYP,Third Party Payments,EFA,19/07/2016,04-16595," 7,726.79 ",Teaching Personnel Ltd
Nottinghamshire County Council,1111/1001,Children and Young People,CYP,Third Party Payments,EFA,19/07/2016,04-16596," 7,726.79 ",Teaching Personnel Ltd
Nottinghamshire County Council,1111/1001,Children and Young People,CYP,Third Party Payments,EFA,20/07/2016,04-16617," 4,080.00 ",Fresh Start in Education Ltd
Nottinghamshire County Council,1111/1001,Children and Young People,CYP,Third Party Payments,EFA,21/07/2016,04-16641," 7,726.79 ",Teaching Personnel Ltd
Nottinghamshire County Council,1111/1001,Children and Young People,CYP,Third Party Payments,EFA,21/07/2016,04-16686," 7,726.79 ",Teaching Personnel Ltd
Nottinghamshire County Council,1111/1001,Children and Young People,CYP,Third Party Payments,EFA,21/07/2016,04-16688, 968.00 ,Excel for Training @ Chesterfield C
Nottinghamshire County Council,1111/1001,Children and Young People,CYP,Third Party Payments,EFA,22/07/2016,04-16737," 1,090.00 ",First Class Tailored Solutions Ltd
Nottinghamshire County Council,1111/1001,Children and Young People,CYP,Third Party Payments,EFA,22/07/2016,04-16738," 1,090.00 ",First Class Tailored Solutions Ltd
Nottinghamshire County Council,1111/1001,Children and Young People,CYP,Third Party Payments,EFA,22/07/2016,04-16739," 1,090.00 ",First Class Tailored Solutions Ltd
Nottinghamshire County Council,1111/1001,Children and Young People,CYP,Third Party Payments,EFA,22/07/2016,04-16740," 7,726.79 ",Teaching Personnel Ltd
Nottinghamshire County Council,1111/1001,Children and Young People,CYP,Third Party Payments,EFA,25/07/2016,04-16782," 1,710.00 ",Good Apple Education
Nottinghamshire County Council,1111/1001,Children and Young People,CYP,Third Party Payments,EFA,27/07/2016,04-16876," 51,624.56 ",First Class Tailored Solutions Ltd
Nottinghamshire County Council,1111/1001,Children and Young People,CYP,Third Party Payments,EFA,28/07/2016,04-16899," 1,090.00 ",First Class Tailored Solutions Ltd
Nottinghamshire County Council,1111/1001,Children and Young People,CYP,Third Party Payments,EFA,28/07/2016,04-16900," 1,090.00 ",First Class Tailored Solutions Ltd
Nottinghamshire County Council,1111/1001,Children and Young People,CYP,Third Party Payments,EFA,28/07/2016,04-16909," 1,090.00 ",First Class Tailored Solutions Ltd
Nottinghamshire County Council,1111/1001,Children and Young People,CYP,Third Party Payments,EFA,28/07/2016,04-16910," 1,090.00 ",First Class Tailored Solutions Ltd
Nottinghamshire County Council,1111/1001,Children and Young People,CYP,Third Party Payments,EFA,29/07/2016,04-16200," 2,775.00 ",First Universal Enterprises Ltd
Nottinghamshire County Council,1111/1001,Children and Young People,CYP,Third Party Payments,EFA,29/07/2016,04-16600, 544.00 ,[Redacted]
Nottinghamshire County Council,1111/1001,Children and Young People,CYP,Third Party Payments,EFA,29/07/2016,04-16723," 9,895.00 ",Stone Soup Academy
Nottinghamshire County Council,1111/1001,Children and Young People,CYP,Third Party Payments,EGA,01/07/2016,04-10070," 1,772.55 ",Nurseryworld & Friends Nursery & Pr
Nottinghamshire County Council,1111/1001,Children and Young People,CYP,Third Party Payments,EGA,01/07/2016,04-10071, 661.70 ,Noahs Ark Playgroup
Nottinghamshire County Council,1111/1001,Children and Young People,CYP,Third Party Payments,EGA,01/07/2016,04-10072, 920.00 ,Sutton Bonington Playgroup
Nottinghamshire County Council,1111/1001,Children and Young People,CYP,Third Party Payments,EGA,01/07/2016,04-10073, 840.00 ,The Enchanted Garden Day Nursery
Nottinghamshire County Council,1111/1001,Children and Young People,CYP,Third Party Payments,EGA,01/07/2016,04-10074," 1,551.06 ",The Lime Trees
Nottinghamshire County Council,1111/1001,Children and Young People,CYP,Third Party Payments,EGA,01/07/2016,04-10075," 1,480.00 ",The Lime Trees
Nottinghamshire County Council,1111/1001,Children and Young People,CYP,Third Party Payments,EGA,01/07/2016,04-10076," 3,583.20 ",Toddlers University (Bee)
Nottinghamshire County Council,1111/1001,Children and Young People,CYP,Third Party Payments,EGA,01/07/2016,04-10077, 691.60 ,Tollerton Playgroup
Nottinghamshire County Council,1111/1001,Children and Young People,CYP,Third Party Payments,EGA,01/07/2016,04-10078," 1,297.95 ",Townrow Tiny Tots Ltd
Nottinghamshire County Council,1111/1001,Children and Young People,CYP,Third Party Payments,EGA,01/07/2016,04-10079, 521.84 ,Wellow House School
Nottinghamshire County Council,1111/1001,Children and Young People,CYP,Third Party Payments,EGA,01/07/2016,04-10080, 610.80 ,West Bridgford Out Of School Care L
Nottinghamshire County Council,1111/1001,Children and Young People,CYP,Third Party Payments,EGA,01/07/2016,04-10081," 1,062.00 ",Wishing Well Day Nursery
Nottinghamshire County Council,1111/1001,Children and Young People,CYP,Third Party Payments,EGA,01/07/2016,04-10082," 3,020.25 ",Wollaton Village Day Nurseries Ltd.
Nottinghamshire County Council,1111/1001,Children and Young People,CYP,Third Party Payments,EGA,01/07/2016,04-10083," 1,297.95 ",Zoes Childcare Ltd
Nottinghamshire County Council,1111/1001,Children and Young People,CYP,Third Party Payments,EGA,01/07/2016,04-10105, 684.60 ,Treetops Nurseries Ltd
Nottinghamshire County Council,1111/1001,Children and Young People,CYP,Third Party Payments,EGA,01/07/2016,04-10107," 4,537.65 ",PSLA Newstead Childcare (HO)
Nottinghamshire County Council,1111/1001,Children and Young People,CYP,Third Party Payments,EGA,01/07/2016,04-10108," 1,545.50 ",PSLA Newstead Childcare (HO)
Nottinghamshire County Council,1111/1001,Children and Young People,CYP,Third Party Payments,EGA,01/07/2016,04-10109, 954.45 ,PSLA Newstead Childcare (HO)
Nottinghamshire County Council,1111/1001,Children and Young People,CYP,Third Party Payments,EGA,04/07/2016,04-10216, 840.00 ,Young Rascals Day Nursery
Nottinghamshire County Council,1111/1001,Children and Young People,CYP,Third Party Payments,EGA,04/07/2016,04-10217," 2,890.50 ",Shaping Futures Day Nursery
Nottinghamshire County Council,1111/1001,Children and Young People,CYP,Third Party Payments,EGA,04/07/2016,04-10218," 2,677.25 ",Radcliffe On Trent Pre School Playg
Nottinghamshire County Council,1111/1001,Children and Young People,CYP,Third Party Payments,EGA,04/07/2016,04-10219," 3,065.25 ",Phoenix Park Nursery
Nottinghamshire County Council,1111/1001,Children and Young People,CYP,Third Party Payments,EGA,04/07/2016,04-10220," 1,543.50 ",Papermoon Day Nursery Sutton In Ash
Nottinghamshire County Council,1111/1001,Children and Young People,CYP,Third Party Payments,EGA,04/07/2016,04-10221," 3,986.55 ",Oceans Day Nursery
Nottinghamshire County Council,1111/1001,Children and Young People,CYP,Third Party Payments,EGA,04/07/2016,04-10222, 794.04 ,Learning Ladder Childcare Ltd
Nottinghamshire County Council,1111/1001,Children and Young People,CYP,Third Party Payments,EGA,04/07/2016,04-10223, 595.53 ,Kimberley Pre-School Playgroup
Nottinghamshire County Council,1111/1001,Children and Young People,CYP,Third Party Payments,EGA,04/07/2016,04-10224," 2,945.10 ",Claremont Early Years Ltd
Nottinghamshire County Council,1111/1001,Children and Young People,CYP,Third Party Payments,EGA,04/07/2016,04-10225, 695.01 ,Cared 4 Ltd T/A Brookhill House Day
Nottinghamshire County Council,1111/1001,Children and Young People,CYP,Third Party Payments,EGA,04/07/2016,04-10226, 701.50 ,Beeston Nursery
Nottinghamshire County Council,1111/1001,Children and Young People,CYP,Third Party Payments,EGA,04/07/2016,04-10227, 839.85 ,Abacus Pre-School
Nottinghamshire County Council,1111/1001,Children and Young People,CYP,Third Party Payments,EGA,04/07/2016,04-16126," 26,679.49 ",Treehouse Care Fostering Solutions
Nottinghamshire County Council,1111/1001,Children and Young People,CYP,Third Party Payments,EGA,05/07/2016,04-10232, 660.00 ,Elston Pre-school Playgroup Newark
Nottinghamshire County Council,1111/1001,Children and Young People,CYP,Third Party Payments,EGA,05/07/2016,04-16184, 537.50 ,Cherubs Childcare Centre Ladybrook
Nottinghamshire County Council,1111/1001,Children and Young People,CYP,Third Party Payments,EGA,05/07/2016,04-16193," 6,775.67 ",Banya Family Placement Agency Ltd
Nottinghamshire County Council,1111/1001,Children and Young People,CYP,Third Party Payments,EGA,05/07/2016,04-16198, 753.06 ,Framework Housing Association
Nottinghamshire County Council,1111/1001,Children and Young People,CYP,Third Party Payments,EGA,06/07/2016,04-10602, 526.95 ,Ashfield Plaza Day Nursery
Nottinghamshire County Council,1111/1001,Children and Young People,CYP,Third Party Payments,EGA,06/07/2016,04-10603, 610.80 ,[Redacted]
Nottinghamshire County Council,1111/1001,Children and Young People,CYP,Third Party Payments,EGA,06/07/2016,04-10604, 780.00 ,[Redacted]
Nottinghamshire County Council,1111/1001,Children and Young People,CYP,Third Party Payments,EGA,06/07/2016,04-10605, 780.00 ,Little Seedlings
Nottinghamshire County Council,1111/1001,Children and Young People,CYP,Third Party Payments,EGA,06/07/2016,04-10606," 1,140.00 ",Leo's Childrens Nurseries Ltd
Nottinghamshire County Council,1111/1001,Children and Young People,CYP,Third Party Payments,EGA,06/07/2016,04-10607, 920.00 ,North Muskham Playgroup
Nottinghamshire County Council,1111/1001,Children and Young People,CYP,Third Party Payments,EGA,06/07/2016,04-10608," 2,109.00 ",Serendipity's Day Nursery
Nottinghamshire County Council,1111/1001,Children and Young People,CYP,Third Party Payments,EGA,06/07/2016,04-10609, 992.55 ,Staunton Montessori Nursery School
Nottinghamshire County Council,1111/1001,Children and Young People,CYP,Third Party Payments,EGA,06/07/2016,04-10610, 915.84 ,The Learning Tree Nursery
Nottinghamshire County Council,1111/1001,Children and Young People,CYP,Third Party Payments,EGA,06/07/2016,04-10611," 3,030.05 ",Tiny World Mansfield
Nottinghamshire County Council,1111/1001,Children and Young People,CYP,Third Party Payments,EGA,06/07/2016,04-10612," 1,985.10 ",Treetops Nursery (Clipstone)
Nottinghamshire County Council,1111/1001,Children and Young People,CYP,Third Party Payments,EGA,06/07/2016,04-10613, 539.76 ,Zoe's Childcare Ltd
Nottinghamshire County Council,1111/1001,Children and Young People,CYP,Third Party Payments,EGA,06/07/2016,04-10614, 818.97 ,Cherubs Childrens Centre Pleasley
Nottinghamshire County Council,1111/1001,Children and Young People,CYP,Third Party Payments,EGA,06/07/2016,04-10615," 2,016.00 ",Wolds Childcare Ltd
Nottinghamshire County Council,1111/1001,Children and Young People,CYP,Third Party Payments,EGA,06/07/2016,04-10616, 960.00 ,Collingham & District Pre-School
Nottinghamshire County Council,1111/1001,Children and Young People,CYP,Third Party Payments,EGA,06/07/2016,04-10617, 672.00 ,Breedon House Nurseries Ltd
Nottinghamshire County Council,1111/1001,Children and Young People,CYP,Third Party Payments,EGA,06/07/2016,04-16204, 537.50 ,Cherubs Childcare Centre Ladybrook
Nottinghamshire County Council,1111/1001,Children and Young People,CYP,Third Party Payments,EGA,06/07/2016,04-16213," 13,333.33 ",Remedi
Nottinghamshire County Council,1111/1001,Children and Young People,CYP,Third Party Payments,EGA,06/07/2016,04-16218," 903,407.67 ",Nottinghamshire Healthcare Nhs F Tr
Nottinghamshire County Council,1111/1001,Children and Young People,CYP,Third Party Payments,EGA,06/07/2016,04-16220," 34,618.42 ","Culture, Learning & Libraries (Midl"
Nottinghamshire County Council,1111/1001,Children and Young People,CYP,Third Party Payments,EGA,06/07/2016,04-16226," 33,107.00 ",Nottinghamshire YMCA (HO)
Nottinghamshire County Council,1111/1001,Children and Young People,CYP,Third Party Payments,EGA,06/07/2016,04-16228," 26,925.00 ",Nottinghamshire YMCA (HO)
Nottinghamshire County Council,1111/1001,Children and Young People,CYP,Third Party Payments,EGA,06/07/2016,04-16229, 573.76 ,Framework Housing Association
Nottinghamshire County Council,1111/1001,Children and Young People,CYP,Third Party Payments,EGA,06/07/2016,04-16230," 1,297.80 ",Framework Housing Association
Nottinghamshire County Council,1111/1001,Children and Young People,CYP,Third Party Payments,EGA,07/07/2016,04-10742, 515.71 ,Carnarvon Pre-School
Nottinghamshire County Council,1111/1001,Children and Young People,CYP,Third Party Payments,EGA,07/07/2016,04-10749," 8,856.60 ",Stanhope Primary School
Nottinghamshire County Council,1111/1001,Children and Young People,CYP,Third Party Payments,EGA,07/07/2016,04-10750," 11,910.60 ",Netherfield Primary School
Nottinghamshire County Council,1111/1001,Children and Young People,CYP,Third Party Payments,EGA,07/07/2016,04-10751," 3,970.20 ",Christ Church C Of E Infant School
Nottinghamshire County Council,1111/1001,Children and Young People,CYP,Third Party Payments,EGA,07/07/2016,04-10752," 12,903.15 ",Blidworth Oaks Primary School
Nottinghamshire County Council,1111/1001,Children and Young People,CYP,Third Party Payments,EGA,07/07/2016,04-10753," 24,584.70 ",Abbey Hill Primary & Nursery School
Nottinghamshire County Council,1111/1001,Children and Young People,CYP,Third Party Payments,EGA,07/07/2016,04-16235, 502.02 ,Framework Housing Association
Nottinghamshire County Council,1111/1001,Children and Young People,CYP,Third Party Payments,EGA,07/07/2016,04-16238," 30,930.31 ",Compass Fostering Central Ltd
Nottinghamshire County Council,1111/1001,Children and Young People,CYP,Third Party Payments,EGA,07/07/2016,04-16247," 16,986.10 ",Banya Family Placement Agency Ltd
Nottinghamshire County Council,1111/1001,Children and Young People,CYP,Third Party Payments,EGA,07/07/2016,04-16269," 10,400.00 ",Piers (UK) Ltd
Nottinghamshire County Council,1111/1001,Children and Young People,CYP,Third Party Payments,EGA,07/07/2016,04-16278," 32,674.28 ",East Midlands Care Matters
Nottinghamshire County Council,1111/1001,Children and Young People,CYP,Third Party Payments,EGA,08/07/2016,04-16283," 26,168.25 ",[Redacted]
Nottinghamshire County Council,1111/1001,Children and Young People,CYP,Third Party Payments,EGA,08/07/2016,04-16287," 60,426.25 ",Kisimul School
Nottinghamshire County Council,1111/1001,Children and Young People,CYP,Third Party Payments,EGA,08/07/2016,04-16288," 60,426.25 ",Kisimul School
Nottinghamshire County Council,1111/1001,Children and Young People,CYP,Third Party Payments,EGA,08/07/2016,04-16289," 60,426.25 ",Kisimul School
Nottinghamshire County Council,1111/1001,Children and Young People,CYP,Third Party Payments,EGA,08/07/2016,04-16291," 37,855.88 ",Pathway Care Solutions Ltd
Nottinghamshire County Council,1111/1001,Children and Young People,CYP,Third Party Payments,EGA,11/07/2016,04-16326," 44,907.74 ",Fostering Solutions Ltd
Nottinghamshire County Council,1111/1001,Children and Young People,CYP,Third Party Payments,EGA,11/07/2016,04-16331," 20,332.03 ",Barnardos Family Placement Unit
Nottinghamshire County Council,1111/1001,Children and Young People,CYP,Third Party Payments,EGA,12/07/2016,04-16366," 12,096.00 ",Safe Haven Accommodation Ltd
Nottinghamshire County Council,1111/1001,Children and Young People,CYP,Third Party Payments,EGA,12/07/2016,04-16402," 37,855.88 ",Pathway Care Solutions Ltd
Nottinghamshire County Council,1111/1001,Children and Young People,CYP,Third Party Payments,EGA,12/07/2016,04-16405," 24,113.99 ",Fosterplus Ltd
Nottinghamshire County Council,1111/1001,Children and Young People,CYP,Third Party Payments,EGA,12/07/2016,04-16408," 3,995.00 ",Crystal Care Solutions Ltd
Nottinghamshire County Council,1111/1001,Children and Young People,CYP,Third Party Payments,EGA,12/07/2016,04-16409," 3,995.00 ",Crystal Care Solutions Ltd
Nottinghamshire County Council,1111/1001,Children and Young People,CYP,Third Party Payments,EGA,12/07/2016,04-16410," 3,995.00 ",Crystal Care Solutions Ltd
Nottinghamshire County Council,1111/1001,Children and Young People,CYP,Third Party Payments,EGA,12/07/2016,04-16415," 41,185.05 ",Total Care Matters Ltd
Nottinghamshire County Council,1111/1001,Children and Young People,CYP,Third Party Payments,EGA,12/07/2016,04-16416," 3,995.00 ",Crystal Care Solutions Ltd
Nottinghamshire County Council,1111/1001,Children and Young People,CYP,Third Party Payments,EGA,12/07/2016,04-16417," 3,995.00 ",Crystal Care Solutions Ltd
Nottinghamshire County Council,1111/1001,Children and Young People,CYP,Third Party Payments,EGA,12/07/2016,04-16418," 3,995.00 ",Crystal Care Solutions Ltd
Nottinghamshire County Council,1111/1001,Children and Young People,CYP,Third Party Payments,EGA,13/07/2016,04-13798," 1,565.20 ",Wollaton Village Day Nurseries Ltd.
Nottinghamshire County Council,1111/1001,Children and Young People,CYP,Third Party Payments,EGA,13/07/2016,04-13799, 506.10 ,The Learning Tree Nursery
Nottinghamshire County Council,1111/1001,Children and Young People,CYP,Third Party Payments,EGA,13/07/2016,04-13800, 992.55 ,Papermoon Day Nursery Sutton In Ash
Nottinghamshire County Council,1111/1001,Children and Young People,CYP,Third Party Payments,EGA,13/07/2016,04-13801, 534.90 ,Learning Ladder Childcare Ltd
Nottinghamshire County Council,1111/1001,Children and Young People,CYP,Third Party Payments,EGA,13/07/2016,04-16371," 1,210.22 ",Kone Plc
Nottinghamshire County Council,1111/1001,Children and Young People,CYP,Third Party Payments,EGA,13/07/2016,04-16429," 4,105.85 ",Wyntax
Nottinghamshire County Council,1111/1001,Children and Young People,CYP,Third Party Payments,EGA,13/07/2016,04-16430," 3,424.20 ",Fosterplus Ltd
Nottinghamshire County Council,1111/1001,Children and Young People,CYP,Third Party Payments,EGA,13/07/2016,04-16477," 3,321.34 ",Teen Support Services Ltd
Nottinghamshire County Council,1111/1001,Children and Young People,CYP,Third Party Payments,EGA,14/07/2016,04-13939, 660.00 ,Jubilee House Christian School
Nottinghamshire County Council,1111/1001,Children and Young People,CYP,Third Party Payments,EGA,14/07/2016,04-16489," 7,040.00 ",Safe Haven Accommodation Ltd
Nottinghamshire County Council,1111/1001,Children and Young People,CYP,Third Party Payments,EGA,14/07/2016,04-16507," 12,459.05 ",Sunbeam Fostering Agency Ltd
Nottinghamshire County Council,1111/1001,Children and Young People,CYP,Third Party Payments,EGA,15/07/2016,04-14117, 992.55 ,Nurseryworld & Friends Nursery & Pr
Nottinghamshire County Council,1111/1001,Children and Young People,CYP,Third Party Payments,EGA,15/07/2016,04-14118," 5,619.36 ",Ordsall Primary School
Nottinghamshire County Council,1111/1001,Children and Young People,CYP,Third Party Payments,EGA,15/07/2016,04-14119, 992.55 ,[Redacted]
Nottinghamshire County Council,1111/1001,Children and Young People,CYP,Third Party Payments,EGA,15/07/2016,04-14120," 1,248.00 ",Appletree House Childminding
Nottinghamshire County Council,1111/1001,Children and Young People,CYP,Third Party Payments,EGA,15/07/2016,04-14135, 953.04 ,Carnarvon Pre-School
Nottinghamshire County Council,1111/1001,Children and Young People,CYP,Third Party Payments,EGA,15/07/2016,04-16526, 896.10 ,Framework Housing Association
Nottinghamshire County Council,1111/1001,Children and Young People,CYP,Third Party Payments,EGA,15/07/2016,04-16543, 544.00 ,Carers Trust East Midlands
Nottinghamshire County Council,1111/1001,Children and Young People,CYP,Third Party Payments,EGA,15/07/2016,04-16544," 1,752.00 ",Carers Trust East Midlands
Nottinghamshire County Council,1111/1001,Children and Young People,CYP,Third Party Payments,EGA,18/07/2016,04-16551," 6,202.43 ",Sunbeam Fostering Agency Ltd
Nottinghamshire County Council,1111/1001,Children and Young People,CYP,Third Party Payments,EGA,18/07/2016,04-16552," 6,079.55 ",Sunbeam Fostering Agency Ltd
Nottinghamshire County Council,1111/1001,Children and Young People,CYP,Third Party Payments,EGA,18/07/2016,04-16561," 11,299.51 ",Acorn Fostering Services Ltd
Nottinghamshire County Council,1111/1001,Children and Young People,CYP,Third Party Payments,EGA,19/07/2016,04-16528, 680.38 ,Framework Housing Association
Nottinghamshire County Council,1111/1001,Children and Young People,CYP,Third Party Payments,EGA,19/07/2016,04-16583," 9,955.50 ",Teen Support Services Ltd
Nottinghamshire County Council,1111/1001,Children and Young People,CYP,Third Party Payments,EGA,19/07/2016,04-16592," 104,045.81 ",Pathway Care Solutions II Ltd
Nottinghamshire County Council,1111/1001,Children and Young People,CYP,Third Party Payments,EGA,19/07/2016,04-16599," 41,918.58 ",The Place Young Peoples Company Ltd
Nottinghamshire County Council,1111/1001,Children and Young People,CYP,Third Party Payments,EGA,20/07/2016,04-16603," 7,814.56 ",Hope Fostering Services Ltd
Nottinghamshire County Council,1111/1001,Children and Young People,CYP,Third Party Payments,EGA,20/07/2016,04-16604," 21,000.16 ",Hope Fostering Services Ltd
Nottinghamshire County Council,1111/1001,Children and Young People,CYP,Third Party Payments,EGA,20/07/2016,04-16621, 775.00 ,A Place To Call Our Own Ltd
Nottinghamshire County Council,1111/1001,Children and Young People,CYP,Third Party Payments,EGA,20/07/2016,04-16622, 555.00 ,A Place To Call Our Own Ltd
Nottinghamshire County Council,1111/1001,Children and Young People,CYP,Third Party Payments,EGA,20/07/2016,04-16623," 3,277.00 ",Parallel Parents
Nottinghamshire County Council,1111/1001,Children and Young People,CYP,Third Party Payments,EGA,20/07/2016,04-16624," 3,559.80 ",Parallel Parents
Nottinghamshire County Council,1111/1001,Children and Young People,CYP,Third Party Payments,EGA,20/07/2016,04-16625," 3,678.46 ",Parallel Parents
Nottinghamshire County Council,1111/1001,Children and Young People,CYP,Third Party Payments,EGA,20/07/2016,04-16626," 8,300.00 ",Piers (UK) Ltd
Nottinghamshire County Council,1111/1001,Children and Young People,CYP,Third Party Payments,EGA,21/07/2016,04-16562," 20,742.86 ",GBA Care Ltd
Nottinghamshire County Council,1111/1001,Children and Young People,CYP,Third Party Payments,EGA,21/07/2016,04-16679," 70,954.28 ",Blue Mountain Homes Ltd
Nottinghamshire County Council,1111/1001,Children and Young People,CYP,Third Party Payments,EGA,21/07/2016,04-16681," 70,954.28 ",Blue Mountain Homes Ltd
Nottinghamshire County Council,1111/1001,Children and Young People,CYP,Third Party Payments,EGA,21/07/2016,04-16685," 70,954.28 ",Blue Mountain Homes Ltd
Nottinghamshire County Council,1111/1001,Children and Young People,CYP,Third Party Payments,EGA,21/07/2016,04-16691," 137,171.45 ",Esland North Ltd
Nottinghamshire County Council,1111/1001,Children and Young People,CYP,Third Party Payments,EGA,21/07/2016,04-16703," 34,759.50 ",Jay Fostering
Nottinghamshire County Council,1111/1001,Children and Young People,CYP,Third Party Payments,EGA,21/07/2016,04-16711," 2,000.00 ",Social Home Choices
Nottinghamshire County Council,1111/1001,Children and Young People,CYP,Third Party Payments,EGA,22/07/2016,04-16741, 551.00 ,[Redacted]
Nottinghamshire County Council,1111/1001,Children and Young People,CYP,Third Party Payments,EGA,22/07/2016,04-16757, 540.00 ,I Can Services Ltd
Nottinghamshire County Council,1111/1001,Children and Young People,CYP,Third Party Payments,EGA,22/07/2016,04-16758," 3,432.94 ",TACT
Nottinghamshire County Council,1111/1001,Children and Young People,CYP,Third Party Payments,EGA,22/07/2016,04-16771," 38,250.00 ",Framework Housing Association
Nottinghamshire County Council,1111/1001,Children and Young People,CYP,Third Party Payments,EGA,22/07/2016,04-16772," 68,083.33 ",Framework Housing Association
Nottinghamshire County Council,1111/1001,Children and Young People,CYP,Third Party Payments,EGA,22/07/2016,04-16773," 38,250.00 ",Framework Housing Association
Nottinghamshire County Council,1111/1001,Children and Young People,CYP,Third Party Payments,EGA,22/07/2016,04-16778," 38,250.00 ",Framework Housing Association
Nottinghamshire County Council,1111/1001,Children and Young People,CYP,Third Party Payments,EGA,22/07/2016,04-16779," 68,083.33 ",Framework Housing Association
Nottinghamshire County Council,1111/1001,Children and Young People,CYP,Third Party Payments,EGA,25/07/2016,04-10892," 2,800.00 ",International Care & Assessment Ser
Nottinghamshire County Council,1111/1001,Children and Young People,CYP,Third Party Payments,EGA,25/07/2016,04-16797," 38,250.00 ",Framework Housing Association
Nottinghamshire County Council,1111/1001,Children and Young People,CYP,Third Party Payments,EGA,25/07/2016,04-16839," 101,758.38 ",Fostering People Ltd
Nottinghamshire County Council,1111/1001,Children and Young People,CYP,Third Party Payments,EGA,25/07/2016,04-16846," 68,083.33 ",Framework Housing Association
Nottinghamshire County Council,1111/1001,Children and Young People,CYP,Third Party Payments,EGA,26/07/2016,04-16855," 26,168.25 ",[Redacted]
Nottinghamshire County Council,1111/1001,Children and Young People,CYP,Third Party Payments,EGA,26/07/2016,04-16861," 7,438.00 ",Progressive Care
Nottinghamshire County Council,1111/1001,Children and Young People,CYP,Third Party Payments,EGA,26/07/2016,04-16868," 1,061.10 ",Progressive Care
Nottinghamshire County Council,1111/1001,Children and Young People,CYP,Third Party Payments,EGA,26/07/2016,04-16871," 2,000.00 ",Social Home Choices
Nottinghamshire County Council,1111/1001,Children and Young People,CYP,Third Party Payments,EGA,27/07/2016,04-16292," 75,683.09 ",The National Fostering Agency
Nottinghamshire County Council,1111/1001,Children and Young People,CYP,Third Party Payments,EGA,27/07/2016,04-16459," 75,683.09 ",The National Fostering Agency
Nottinghamshire County Council,1111/1001,Children and Young People,CYP,Third Party Payments,EGA,27/07/2016,04-16461," 3,330.99 ",The National Fostering Agency
Nottinghamshire County Council,1111/1001,Children and Young People,CYP,Third Party Payments,EGA,27/07/2016,04-16765," 3,373.11 ",The National Fostering Agency
Nottinghamshire County Council,1111/1001,Children and Young People,CYP,Third Party Payments,EGA,27/07/2016,04-16877," 85,440.00 ",Castle Homes Care Ltd
Nottinghamshire County Council,1111/1001,Children and Young People,CYP,Third Party Payments,EGA,27/07/2016,04-16882," 4,207.01 ",Jani Homes CIC
Nottinghamshire County Council,1111/1001,Children and Young People,CYP,Third Party Payments,EGA,27/07/2016,04-16884," 68,083.33 ",Framework Housing Association
Nottinghamshire County Council,1111/1001,Children and Young People,CYP,Third Party Payments,EGA,27/07/2016,04-16885," 68,083.33 ",Framework Housing Association
Nottinghamshire County Council,1111/1001,Children and Young People,CYP,Third Party Payments,EGA,27/07/2016,04-16888," 19,994.40 ",Anglia Fostering Agency Ltd
Nottinghamshire County Council,1111/1001,Children and Young People,CYP,Third Party Payments,EGA,27/07/2016,04-16889," 3,100.00 ",Compass Fostering Central Ltd
Nottinghamshire County Council,1111/1001,Children and Young People,CYP,Third Party Payments,EGA,27/07/2016,04-16890," 3,007.00 ",Compass Fostering Central Ltd
Nottinghamshire County Council,1111/1001,Children and Young People,CYP,Third Party Payments,EGA,28/07/2016,04-16675," 118,503.70 ",Foster Care Associates Limited
Nottinghamshire County Council,1111/1001,Children and Young People,CYP,Third Party Payments,EGA,28/07/2016,04-16896," 7,438.00 ",Progressive Care
Nottinghamshire County Council,1111/1001,Children and Young People,CYP,Third Party Payments,EGA,28/07/2016,04-16898," 21,214.00 ",Progressive Care
Nottinghamshire County Council,1111/1001,Children and Young People,CYP,Third Party Payments,EGA,28/07/2016,04-16902," 1,223.88 ",Framework Housing Association
Nottinghamshire County Council,1111/1001,Children and Young People,CYP,Third Party Payments,EGA,28/07/2016,04-16903, 679.80 ,Framework Housing Association
Nottinghamshire County Council,1111/1001,Children and Young People,CYP,Third Party Payments,EGA,28/07/2016,04-16907," 30,930.31 ",Compass Fostering Central Ltd
Nottinghamshire County Council,1111/1001,Children and Young People,CYP,Third Party Payments,EGA,29/07/2016,04-16084, 535.50 ,Claremont Early Years Ltd
Nottinghamshire County Council,1111/1001,Children and Young People,CYP,Third Party Payments,EGA,29/07/2016,04-16085," 1,560.00 ",Bullpit Road Nursery
Nottinghamshire County Council,1111/1001,Children and Young People,CYP,Third Party Payments,EGA,29/07/2016,04-16086," 2,977.65 ",Little Kites Playgroup
Nottinghamshire County Council,1111/1001,Children and Young People,CYP,Third Party Payments,EGA,29/07/2016,04-16087, 780.00 ,[Redacted]
Nottinghamshire County Council,1111/1001,Children and Young People,CYP,Third Party Payments,EGA,29/07/2016,04-16088," 3,012.00 ",Kneesall Pre School Playgroup
Nottinghamshire County Council,1111/1001,Children and Young People,CYP,Third Party Payments,EGA,29/07/2016,04-16290," 107,611.35 ",G4S Care & Justice Services (UK) Li
Nottinghamshire County Council,1111/1001,Children and Young People,CYP,Third Party Payments,EGA,29/07/2016,04-16303, 505.85 ,Scope
Nottinghamshire County Council,1111/1001,Children and Young People,CYP,Third Party Payments,EGA,29/07/2016,04-16482, 875.80 ,Scope
Nottinghamshire County Council,1111/1001,Children and Young People,CYP,Third Party Payments,EGA,29/07/2016,04-16508," 26,679.49 ",Treehouse Care Fostering Solutions
Nottinghamshire County Council,1111/1001,Children and Young People,CYP,Third Party Payments,EGA,29/07/2016,04-16585," 6,557.10 ",Banya Family Placement Agency Ltd
Nottinghamshire County Council,1111/1001,Children and Young People,CYP,Third Party Payments,EGA,29/07/2016,04-16598," 41,918.58 ",The Place Young Peoples Company Ltd
Nottinghamshire County Council,1111/1001,Children and Young People,CYP,Third Party Payments,EGA,29/07/2016,04-16866," 3,322.20 ",TACT
Nottinghamshire County Council,1111/1001,Children and Young People,CYP,Third Party Payments,EGA,29/07/2016,04-16915," 1,470.00 ",A Place To Call Our Own Ltd
Nottinghamshire County Council,1111/1001,Children and Young People,CYP,Third Party Payments,EGA,29/07/2016,04-16916, 876.00 ,A Place To Call Our Own Ltd
Nottinghamshire County Council,1111/1001,Children and Young People,CYP,Third Party Payments,EGA,29/07/2016,04-16917," 14,175.00 ",Family Action
Nottinghamshire County Council,1111/1001,Children and Young People,CYP,Third Party Payments,EGA,29/07/2016,04-16919," 3,152.70 ",Parallel Parents
Nottinghamshire County Council,1111/1001,Children and Young People,CYP,Third Party Payments,EGA,29/07/2016,04-16920," 3,503.00 ",Parallel Parents
Nottinghamshire County Council,1111/1001,Children and Young People,CYP,Third Party Payments,EGA,29/07/2016,04-16921," 3,051.00 ",Parallel Parents
Nottinghamshire County Council,1111/1001,Children and Young People,CYP,Third Party Payments,EGA,29/07/2016,04-16922," 3,390.00 ",Parallel Parents
Nottinghamshire County Council,1111/1001,Children and Young People,CYP,Third Party Payments,EGA,29/07/2016,04-16923," 2,949.30 ",Parallel Parents
Nottinghamshire County Council,1111/1001,Children and Young People,CYP,Third Party Payments,EGA,29/07/2016,04-16944," 2,442.85 ",Swan Independent Living Ltd
Nottinghamshire County Council,1111/1001,Children and Young People,CYP,Third Party Payments,EGA,29/07/2016,04-16950," 11,851.92 ",Care Today
Nottinghamshire County Council,1111/1001,Children and Young People,CYP,Third Party Payments,EHA,19/07/2016,04-16509," 31,534.00 ",Barnardos
Nottinghamshire County Council,1111/1001,Children and Young People,CYP,Third Party Payments,EHA,25/07/2016,04-13671," 2,800.00 ",International Care & Assessment Ser
Nottinghamshire County Council,1111/1001,Children and Young People,CYP,Third Party Payments,EHA,29/07/2016,04-16929," 43,000.00 ",Faith In Families
Nottinghamshire County Council,1111/1001,Children and Young People,CYP,Transfer Payments,GAA,11/07/2016,04-16327, 857.47 ,Hitch N Hike Ltd
Nottinghamshire County Council,1111/1001,Children and Young People,CYP,Transfer Payments,GAA,20/07/2016,04-16609," 1,900.00 ",Staffordshire County Council
Nottinghamshire County Council,1111/1001,Children and Young People,CYP,Transfer Payments,GAA,21/07/2016,04-16677, 990.00 ,[Redacted]
Nottinghamshire County Council,1111/1001,Children and Young People,CYP,Transfer Payments,GAA,21/07/2016,04-16705," 1,160.00 ",Bookworm
Nottinghamshire County Council,1111/1001,Children and Young People,CYP,Transfer Payments,GAA,28/07/2016,04-16893, 990.00 ,[Redacted]
Nottinghamshire County Council,1111/1001,Children and Young People,CYP,Support Services,HAA,04/07/2016,04-10047," 2,111.71 ",Trent Motor Traction Company Ltd
Nottinghamshire County Council,1111/1001,Children and Young People,CYP,Support Services,HAA,05/07/2016,04-10267," 1,631.15 ",All Wayz Travel
Nottinghamshire County Council,1111/1001,Children and Young People,CYP,Support Services,HAA,05/07/2016,04-10268," 1,343.30 ",All Wayz Travel
Nottinghamshire County Council,1111/1001,Children and Young People,CYP,Support Services,HAA,05/07/2016,04-10330," 2,781.54 ",Nottingham Minibuses & Coaches
Nottinghamshire County Council,1111/1001,Children and Young People,CYP,Support Services,HAA,05/07/2016,04-10333," 1,857.63 ",Nottingham Minibuses & Coaches
Nottinghamshire County Council,1111/1001,Children and Young People,CYP,Support Services,HAA,05/07/2016,04-10340," 1,535.20 ",P & P Taxis
Nottinghamshire County Council,1111/1001,Children and Young People,CYP,Support Services,HAA,05/07/2016,04-10345," 2,660.00 ",Kettlewell Retford Ltd
Nottinghamshire County Council,1111/1001,Children and Young People,CYP,Support Services,HAA,05/07/2016,04-10346," 2,274.11 ",Kettlewell Retford Ltd
Nottinghamshire County Council,1111/1001,Children and Young People,CYP,Support Services,HAA,05/07/2016,04-10347," 2,350.87 ",Kettlewell Retford Ltd
Nottinghamshire County Council,1111/1001,Children and Young People,CYP,Support Services,HAA,05/07/2016,04-10348," 2,878.50 ",Kettlewell Retford Ltd
Nottinghamshire County Council,1111/1001,Children and Young People,CYP,Support Services,HAA,05/07/2016,04-10349," 2,101.40 ",Kettlewell Retford Ltd
Nottinghamshire County Council,1111/1001,Children and Young People,CYP,Support Services,HAA,05/07/2016,04-10350," 3,060.90 ",Kettlewell Retford Ltd
Nottinghamshire County Council,1111/1001,Children and Young People,CYP,Support Services,HAA,05/07/2016,04-10351," 6,840.00 ",Kettlewell Retford Ltd
Nottinghamshire County Council,1111/1001,Children and Young People,CYP,Support Services,HAA,05/07/2016,04-10352," 3,600.00 ",Kettlewell Retford Ltd
Nottinghamshire County Council,1111/1001,Children and Young People,CYP,Support Services,HAA,05/07/2016,04-10353," 2,466.01 ",Kettlewell Retford Ltd
Nottinghamshire County Council,1111/1001,Children and Young People,CYP,Support Services,HAA,05/07/2016,04-10354," 2,466.01 ",Kettlewell Retford Ltd
Nottinghamshire County Council,1111/1001,Children and Young People,CYP,Support Services,HAA,05/07/2016,04-10355," 3,240.91 ",C W Moxon Ltd
Nottinghamshire County Council,1111/1001,Children and Young People,CYP,Support Services,HAA,05/07/2016,04-10356," 6,332.70 ",C W Moxon Ltd
Nottinghamshire County Council,1111/1001,Children and Young People,CYP,Support Services,HAA,05/07/2016,04-10357," 3,262.30 ",C W Moxon Ltd
Nottinghamshire County Council,1111/1001,Children and Young People,CYP,Support Services,HAA,05/07/2016,04-10358," 2,794.35 ",C W Moxon Ltd
Nottinghamshire County Council,1111/1001,Children and Young People,CYP,Support Services,HAA,05/07/2016,04-10359," 3,346.70 ",C W Moxon Ltd
Nottinghamshire County Council,1111/1001,Children and Young People,CYP,Support Services,HAA,05/07/2016,04-10360," 2,574.35 ",C W Moxon Ltd
Nottinghamshire County Council,1111/1001,Children and Young People,CYP,Support Services,HAA,06/07/2016,04-10519," 2,720.03 ",Wrights Coaches
Nottinghamshire County Council,1111/1001,Children and Young People,CYP,Support Services,HAA,06/07/2016,04-10522, 805.00 ,Ace Of Mansfield Ltd
Nottinghamshire County Council,1111/1001,Children and Young People,CYP,Support Services,HAA,06/07/2016,04-10526," 2,218.25 ",Arnold Acorn Travel
Nottinghamshire County Council,1111/1001,Children and Young People,CYP,Support Services,HAA,06/07/2016,04-10529," 1,032.46 ",Acorn Contracts
Nottinghamshire County Council,1111/1001,Children and Young People,CYP,Support Services,HAA,06/07/2016,04-10534," 1,370.09 ",Fozcabs Newark Taxis
Nottinghamshire County Council,1111/1001,Children and Young People,CYP,Support Services,HAA,06/07/2016,04-10572," 3,070.40 ",AOT Coaches
Nottinghamshire County Council,1111/1001,Children and Young People,CYP,Support Services,HAA,06/07/2016,04-10573," 3,070.40 ",AOT Coaches
Nottinghamshire County Council,1111/1001,Children and Young People,CYP,Support Services,HAA,06/07/2016,04-10574," 2,164.00 ",AOT Coaches
Nottinghamshire County Council,1111/1001,Children and Young People,CYP,Support Services,HAA,06/07/2016,04-10575," 2,511.60 ",AOT Coaches
Nottinghamshire County Council,1111/1001,Children and Young People,CYP,Support Services,HAA,06/07/2016,04-10576," 2,619.55 ",AOT Coaches
Nottinghamshire County Council,1111/1001,Children and Young People,CYP,Support Services,HAA,06/07/2016,04-10590," 2,082.02 ",Nottingham Coaches
Nottinghamshire County Council,1111/1001,Children and Young People,CYP,Support Services,HAA,06/07/2016,04-10591," 2,859.31 ",Nottingham Coaches
Nottinghamshire County Council,1111/1001,Children and Young People,CYP,Support Services,HAA,06/07/2016,04-10592," 2,667.41 ",Nottingham Coaches
Nottinghamshire County Council,1111/1001,Children and Young People,CYP,Support Services,HAA,06/07/2016,04-10593," 3,039.21 ",Nottingham Coaches
Nottinghamshire County Council,1111/1001,Children and Young People,CYP,Support Services,HAA,06/07/2016,04-10595, 940.50 ,Forest Cars
Nottinghamshire County Council,1111/1001,Children and Young People,CYP,Support Services,HAA,07/07/2016,04-10634," 4,505.00 ",Glenn Ryder Coaches
Nottinghamshire County Council,1111/1001,Children and Young People,CYP,Support Services,HAA,07/07/2016,04-10636," 1,535.20 ",Wrights Coaches
Nottinghamshire County Council,1111/1001,Children and Young People,CYP,Support Services,HAA,07/07/2016,04-10646," 1,125.00 ",CBC Taxis Ltd
Nottinghamshire County Council,1111/1001,Children and Young People,CYP,Support Services,HAA,07/07/2016,04-10668, 686.80 ,Ng11 Cars
Nottinghamshire County Council,1111/1001,Children and Young People,CYP,Support Services,HAA,07/07/2016,04-10678," 2,475.51 ",F & J Marriott T/A Unity Coaches
Nottinghamshire County Council,1111/1001,Children and Young People,CYP,Support Services,HAA,07/07/2016,04-10692," 1,151.40 ",Abacus Cars
Nottinghamshire County Council,1111/1001,Children and Young People,CYP,Support Services,HAA,07/07/2016,04-10700, 866.58 ,Abacus Cars
Nottinghamshire County Council,1111/1001,Children and Young People,CYP,Support Services,HAA,07/07/2016,04-10707," 1,208.97 ",Meden Travel
Nottinghamshire County Council,1111/1001,Children and Young People,CYP,Support Services,HAA,07/07/2016,04-10709," 12,575.15 ",Travel Wright Ltd
Nottinghamshire County Council,1111/1001,Children and Young People,CYP,Support Services,HAA,07/07/2016,04-10711," 3,439.34 ",Travel Wright Ltd
Nottinghamshire County Council,1111/1001,Children and Young People,CYP,Support Services,HAA,07/07/2016,04-10713," 3,434.06 ",Travel Wright Ltd
Nottinghamshire County Council,1111/1001,Children and Young People,CYP,Support Services,HAA,07/07/2016,04-10714," 5,993.19 ",Travel Wright Ltd
Nottinghamshire County Council,1111/1001,Children and Young People,CYP,Support Services,HAA,07/07/2016,04-10716," 1,512.85 ",Travel Wright Ltd
Nottinghamshire County Council,1111/1001,Children and Young People,CYP,Support Services,HAA,07/07/2016,04-10718," 2,588.62 ",Travel Wright Ltd
Nottinghamshire County Council,1111/1001,Children and Young People,CYP,Support Services,HAA,07/07/2016,04-10720," 3,069.45 ",Travel Wright Ltd
Nottinghamshire County Council,1111/1001,Children and Young People,CYP,Support Services,HAA,07/07/2016,04-10724," 1,781.64 ",Wilfreda Beehive
Nottinghamshire County Council,1111/1001,Children and Young People,CYP,Support Services,HAA,07/07/2016,04-10727," 2,802.63 ",Freeway Coaches Ltd
Nottinghamshire County Council,1111/1001,Children and Young People,CYP,Support Services,HAA,07/07/2016,04-10728," 2,012.65 ",Freeway Coaches Ltd
Nottinghamshire County Council,1111/1001,Children and Young People,CYP,Support Services,HAA,07/07/2016,04-10729," 1,460.20 ",Freeway Coaches Ltd
Nottinghamshire County Council,1111/1001,Children and Young People,CYP,Support Services,HAA,07/07/2016,04-10730," 2,385.75 ",Freeway Coaches Ltd
Nottinghamshire County Council,1111/1001,Children and Young People,CYP,Support Services,HAA,07/07/2016,04-10734," 1,671.05 ",Wallis Coachways
Nottinghamshire County Council,1111/1001,Children and Young People,CYP,Support Services,HAA,07/07/2016,04-10739," 2,014.95 ",Travel Liner
Nottinghamshire County Council,1111/1001,Children and Young People,CYP,Support Services,HAA,07/07/2016,04-10755," 3,071.90 ",Johnson Bros Tours Ltd
Nottinghamshire County Council,1111/1001,Children and Young People,CYP,Support Services,HAA,07/07/2016,04-10756," 3,574.75 ",Johnson Bros Tours Ltd
Nottinghamshire County Council,1111/1001,Children and Young People,CYP,Support Services,HAA,07/07/2016,04-10757," 16,311.50 ",Johnson Bros Tours Ltd
Nottinghamshire County Council,1111/1001,Children and Young People,CYP,Support Services,HAA,07/07/2016,04-10759," 3,045.35 ",Johnson Bros Tours Ltd
Nottinghamshire County Council,1111/1001,Children and Young People,CYP,Support Services,HAA,07/07/2016,04-10760," 2,686.60 ",Johnson Bros Tours Ltd
Nottinghamshire County Council,1111/1001,Children and Young People,CYP,Support Services,HAA,07/07/2016,04-10761," 11,915.10 ",Johnson Bros Tours Ltd
Nottinghamshire County Council,1111/1001,Children and Young People,CYP,Support Services,HAA,07/07/2016,04-10762," 19,169.70 ",Johnson Bros Tours Ltd
Nottinghamshire County Council,1111/1001,Children and Young People,CYP,Support Services,HAA,07/07/2016,04-10763," 5,757.00 ",Johnson Bros Tours Ltd
Nottinghamshire County Council,1111/1001,Children and Young People,CYP,Support Services,HAA,07/07/2016,04-10861," 3,058.40 ",Gem Mini Travel Ltd
Nottinghamshire County Council,1111/1001,Children and Young People,CYP,Support Services,HAA,07/07/2016,04-10865," 1,996.33 ",Marshalls Of Sutton On Trent Ltd
Nottinghamshire County Council,1111/1001,Children and Young People,CYP,Support Services,HAA,07/07/2016,04-10874," 3,166.35 ",Marshalls Of Sutton On Trent Ltd
Nottinghamshire County Council,1111/1001,Children and Young People,CYP,Support Services,HAA,07/07/2016,04-10876," 1,899.81 ",Marshalls Of Sutton On Trent Ltd
Nottinghamshire County Council,1111/1001,Children and Young People,CYP,Support Services,HAA,07/07/2016,04-10877," 3,166.35 ",Marshalls Of Sutton On Trent Ltd
Nottinghamshire County Council,1111/1001,Children and Young People,CYP,Support Services,HAA,07/07/2016,04-10878," 1,967.16 ",Marshalls Of Sutton On Trent Ltd
Nottinghamshire County Council,1111/1001,Children and Young People,CYP,Support Services,HAA,07/07/2016,04-10883," 7,842.30 ",Freeway Coaches Ltd
Nottinghamshire County Council,1111/1001,Children and Young People,CYP,Support Services,HAA,08/07/2016,04-10898," 2,432.92 ",Gem Mini Travel Ltd
Nottinghamshire County Council,1111/1001,Children and Young People,CYP,Support Services,HAA,08/07/2016,04-10899," 1,090.80 ",K & R Cars
Nottinghamshire County Council,1111/1001,Children and Young People,CYP,Support Services,HAA,08/07/2016,04-10900, 513.57 ,Bassetlaw Action Centre
Nottinghamshire County Council,1111/1001,Children and Young People,CYP,Support Services,HAA,08/07/2016,04-10901," 2,279.81 ",Bassetlaw Action Centre
Nottinghamshire County Council,1111/1001,Children and Young People,CYP,Support Services,HAA,08/07/2016,04-10933," 1,339.50 ",A2B Licensed Taxis
Nottinghamshire County Council,1111/1001,Children and Young People,CYP,Support Services,HAA,11/07/2016,04-13594, 270.00 ,200 Cars Ltd
Nottinghamshire County Council,1111/1001,Children and Young People,CYP,Support Services,HAA,12/07/2016,04-13607," 4,983.00 ",Butler Brothers Ltd
Nottinghamshire County Council,1111/1001,Children and Young People,CYP,Support Services,HAA,12/07/2016,04-13612," 5,158.76 ",Stagecoach Services Ltd
Nottinghamshire County Council,1111/1001,Children and Young People,CYP,Support Services,HAA,12/07/2016,04-13619," 5,731.05 ",Stagecoach Services Ltd
Nottinghamshire County Council,1111/1001,Children and Young People,CYP,Support Services,HAA,12/07/2016,04-13621," 4,597.90 ",Stagecoach Services Ltd
Nottinghamshire County Council,1111/1001,Children and Young People,CYP,Support Services,HAA,12/07/2016,04-13630," 4,142.95 ",Stagecoach Services Ltd
Nottinghamshire County Council,1111/1001,Children and Young People,CYP,Support Services,HAA,12/07/2016,04-13635," 4,344.73 ",Stagecoach Services Ltd
Nottinghamshire County Council,1111/1001,Children and Young People,CYP,Support Services,HAA,12/07/2016,04-13636," 2,699.42 ",Stagecoach Services Ltd
Nottinghamshire County Council,1111/1001,Children and Young People,CYP,Support Services,HAA,12/07/2016,04-13641," 3,055.01 ",Stagecoach Services Ltd
Nottinghamshire County Council,1111/1001,Children and Young People,CYP,Support Services,HAA,12/07/2016,04-13643," 2,669.88 ",Stagecoach Services Ltd
Nottinghamshire County Council,1111/1001,Children and Young People,CYP,Support Services,HAA,12/07/2016,04-13666," 4,492.17 ",Isle Coaches
Nottinghamshire County Council,1111/1001,Children and Young People,CYP,Support Services,HAA,12/07/2016,04-13669," 1,111.00 ",Broadsword Cars
Nottinghamshire County Council,1111/1001,Children and Young People,CYP,Support Services,HAA,12/07/2016,04-13695, 585.39 ,Ng11 Cars
Nottinghamshire County Council,1111/1001,Children and Young People,CYP,Support Services,HAA,14/07/2016,04-13927, 950.00 ,D G Private Hire Ltd
Nottinghamshire County Council,1111/1001,Children and Young People,CYP,Support Services,HAA,14/07/2016,04-13928," 1,064.00 ",D G Private Hire Ltd
Nottinghamshire County Council,1111/1001,Children and Young People,CYP,Support Services,HAA,14/07/2016,04-13935, 261.00 ,D G Private Hire Ltd
Nottinghamshire County Council,1111/1001,Children and Young People,CYP,Support Services,HAA,15/07/2016,04-14116," 1,516.01 ",Paul S Winson Coaches
Nottinghamshire County Council,1111/1001,Children and Young People,CYP,Support Services,HAA,15/07/2016,04-14121," 11,557.50 ",Advanced Learning
Nottinghamshire County Council,1111/1001,Children and Young People,CYP,Support Services,HAA,15/07/2016,04-14122," 11,557.50 ",Advanced Learning
Nottinghamshire County Council,1111/1001,Children and Young People,CYP,Support Services,HAA,15/07/2016,04-14123," 3,759.60 ",Advanced Learning
Nottinghamshire County Council,1111/1001,Children and Young People,CYP,Support Services,HAA,19/07/2016,04-14503," 2,390.62 ",Sharpes Of Nottingham
Nottinghamshire County Council,1111/1001,Children and Young People,CYP,Support Services,HAA,19/07/2016,04-14504," 2,842.87 ",Sharpes Of Nottingham
Nottinghamshire County Council,1111/1001,Children and Young People,CYP,Support Services,HAA,19/07/2016,04-14505," 2,939.87 ",Sharpes Of Nottingham
Nottinghamshire County Council,1111/1001,Children and Young People,CYP,Support Services,HAA,19/07/2016,04-14506," 2,549.87 ",Sharpes Of Nottingham
Nottinghamshire County Council,1111/1001,Children and Young People,CYP,Support Services,HAA,19/07/2016,04-14507," 2,864.87 ",Sharpes Of Nottingham
Nottinghamshire County Council,1111/1001,Children and Young People,CYP,Support Services,HAA,19/07/2016,04-14508," 2,939.87 ",Sharpes Of Nottingham
Nottinghamshire County Council,1111/1001,Children and Young People,CYP,Support Services,HAA,19/07/2016,04-14509," 5,199.52 ",Sharpes Of Nottingham
Nottinghamshire County Council,1111/1001,Children and Young People,CYP,Support Services,HAA,19/07/2016,04-14510," 2,939.87 ",Sharpes Of Nottingham
Nottinghamshire County Council,1111/1001,Children and Young People,CYP,Support Services,HAA,19/07/2016,04-14511," 2,704.50 ",Sharpes Of Nottingham
Nottinghamshire County Council,1111/1001,Children and Young People,CYP,Support Services,HAA,19/07/2016,04-14512," 2,153.66 ",Sharpes Of Nottingham
Nottinghamshire County Council,1111/1001,Children and Young People,CYP,Support Services,HAA,19/07/2016,04-14513," 2,879.27 ",Sharpes Of Nottingham
Nottinghamshire County Council,1111/1001,Children and Young People,CYP,Support Services,HAA,21/07/2016,04-13653," 2,736.00 ",Tiger European Uk Ltd
Nottinghamshire County Council,1111/1001,Children and Young People,CYP,Support Services,HAA,21/07/2016,04-13654," 3,550.15 ",Tiger European Uk Ltd
Nottinghamshire County Council,1111/1001,Children and Young People,CYP,Support Services,HAA,21/07/2016,04-13655," 3,401.00 ",Tiger European Uk Ltd
Nottinghamshire County Council,1111/1001,Children and Young People,CYP,Support Services,HAA,21/07/2016,04-13656," 2,837.50 ",Tiger European Uk Ltd
Nottinghamshire County Council,1111/1001,Children and Young People,CYP,Support Services,HAA,21/07/2016,04-13657," 3,032.21 ",Tiger European Uk Ltd
Nottinghamshire County Council,1111/1001,Children and Young People,CYP,Support Services,HAA,21/07/2016,04-13658," 3,462.10 ",Tiger European Uk Ltd
Nottinghamshire County Council,1111/1001,Children and Young People,CYP,Support Services,HAA,21/07/2016,04-13659," 2,732.21 ",Tiger European Uk Ltd
Nottinghamshire County Council,1111/1001,Children and Young People,CYP,Support Services,HAA,21/07/2016,04-13660," 3,041.90 ",Tiger European Uk Ltd
Nottinghamshire County Council,1111/1001,Children and Young People,CYP,Support Services,HAA,21/07/2016,04-13661," 1,639.70 ",Tiger European Uk Ltd
Nottinghamshire County Council,1111/1001,Children and Young People,CYP,Support Services,HAA,21/07/2016,04-13662," 2,572.41 ",Tiger European Uk Ltd
Nottinghamshire County Council,1111/1001,Children and Young People,CYP,Support Services,HAA,21/07/2016,04-13663," 2,782.55 ",Tiger European Uk Ltd
Nottinghamshire County Council,1111/1001,Children and Young People,CYP,Support Services,HAA,21/07/2016,04-13664," 2,688.50 ",Tiger European Uk Ltd
Nottinghamshire County Council,1111/1001,Children and Young People,CYP,Support Services,HAA,21/07/2016,04-13665," 2,859.31 ",Tiger European Uk Ltd
Nottinghamshire County Council,1111/1001,Children and Young People,CYP,Support Services,HAA,21/07/2016,04-13697," 2,530.00 ",Jb Tours Watnall Ltd
Nottinghamshire County Council,1111/1001,Children and Young People,CYP,Support Services,HAA,21/07/2016,04-13698," 2,596.88 ",Jb Tours Watnall Ltd
Nottinghamshire County Council,1111/1001,Children and Young People,CYP,Support Services,HAA,21/07/2016,04-13699," 2,256.11 ",Jb Tours Watnall Ltd
Nottinghamshire County Council,1111/1001,Children and Young People,CYP,Support Services,HAA,21/07/2016,04-14662," 3,165.92 ",Gem Mini Travel Ltd
Nottinghamshire County Council,1111/1001,Children and Young People,CYP,Support Services,HAA,21/07/2016,04-14663," 11,162.50 ",Silverdale Tours Nottm Ltd
Nottinghamshire County Council,1111/1001,Children and Young People,CYP,Support Services,HAA,21/07/2016,04-14665," 2,467.00 ",Silverdale Tours Nottm Ltd
Nottinghamshire County Council,1111/1001,Children and Young People,CYP,Support Services,HAA,21/07/2016,04-14666," 3,014.42 ",Silverdale Tours Nottm Ltd
Nottinghamshire County Council,1111/1001,Children and Young People,CYP,Support Services,HAA,21/07/2016,04-14667," 2,679.72 ",Silverdale Tours Nottm Ltd
Nottinghamshire County Council,1111/1001,Children and Young People,CYP,Support Services,HAA,21/07/2016,04-14668," 2,412.72 ",Silverdale Tours Nottm Ltd
Nottinghamshire County Council,1111/1001,Children and Young People,CYP,Support Services,HAA,21/07/2016,04-14669," 2,014.42 ",Silverdale Tours Nottm Ltd
Nottinghamshire County Council,1111/1001,Children and Young People,CYP,Support Services,HAA,21/07/2016,04-14670," 2,658.81 ",Silverdale Tours Nottm Ltd
Nottinghamshire County Council,1111/1001,Children and Young People,CYP,Support Services,HAA,21/07/2016,04-14671," 2,850.56 ",Silverdale Tours Nottm Ltd
Nottinghamshire County Council,1111/1001,Children and Young People,CYP,Support Services,HAA,21/07/2016,04-14672," 2,384.62 ",Silverdale Tours Nottm Ltd
Nottinghamshire County Council,1111/1001,Children and Young People,CYP,Support Services,HAA,21/07/2016,04-14673," 2,663.55 ",Silverdale Tours Nottm Ltd
Nottinghamshire County Council,1111/1001,Children and Young People,CYP,Support Services,HAA,25/07/2016,04-15003, 760.00 ,SJW (Muskham) Ltd T/A Z Cars
Nottinghamshire County Council,1111/1001,Children and Young People,CYP,Support Services,HAA,25/07/2016,04-15014," 2,708.50 ",Tiger European Uk Ltd
Nottinghamshire County Council,1111/1001,Children and Young People,CYP,Income,JBA,22/07/2016,04-10036," 2,125.00 ",[Redacted]
Nottinghamshire County Council,1111/1001,Adult Social Care and Health,ASCH,Employee Related,ABA,20/07/2016,04-16149," 2,625.00 ",East Midlands Training Services
Nottinghamshire County Council,1111/1001,Adult Social Care and Health,ASCH,Employee Related,ABA,28/07/2016,04-16545," 1,260.00 ",IESE Transformation Ltd
Nottinghamshire County Council,1111/1001,Adult Social Care and Health,ASCH,Premises Related,BAA,01/07/2016,04-10110, 794.50 ,Cw Plumbing Heating & Gas Services
Nottinghamshire County Council,1111/1001,Adult Social Care and Health,ASCH,Premises Related,BAA,01/07/2016,04-10112, 527.50 ,R Evans Decorators & Maintenance Se
Nottinghamshire County Council,1111/1001,Adult Social Care and Health,ASCH,Premises Related,BAA,04/07/2016,04-10122, 589.50 ,S & L Warren
Nottinghamshire County Council,1111/1001,Adult Social Care and Health,ASCH,Premises Related,BAA,04/07/2016,04-10215, 523.00 ,Helping Hands (Notts) Ltd
Nottinghamshire County Council,1111/1001,Adult Social Care and Health,ASCH,Premises Related,BAA,08/07/2016,04-10941, 735.00 ,Cw Plumbing Heating & Gas Services
Nottinghamshire County Council,1111/1001,Adult Social Care and Health,ASCH,Premises Related,BAA,12/07/2016,04-13692, 748.50 ,Elf Property Care
Nottinghamshire County Council,1111/1001,Adult Social Care and Health,ASCH,Premises Related,BAA,14/07/2016,04-13942, 670.00 ,Beardsall Builders Ltd
Nottinghamshire County Council,1111/1001,Adult Social Care and Health,ASCH,Premises Related,BAA,25/07/2016,04-14821, 684.50 ,Handyman Plus
Nottinghamshire County Council,1111/1001,Adult Social Care and Health,ASCH,Premises Related,BAA,25/07/2016,04-16786," 11,966.00 ",Slack & Co Floorcoverings
Nottinghamshire County Council,1111/1001,Adult Social Care and Health,ASCH,Premises Related,BAA,27/07/2016,04-15025," 3,009.66 ",ARC Property Services Partnership L
Nottinghamshire County Council,1111/1001,Adult Social Care and Health,ASCH,Premises Related,BAA,29/07/2016,04-16089," 15,419.53 ",ARC Property Services Partnership L
Nottinghamshire County Council,1111/1001,Adult Social Care and Health,ASCH,Premises Related,BAA,29/07/2016,04-16777," 9,588.37 ",Prism Medical Uk
Nottinghamshire County Council,1111/1001,Adult Social Care and Health,ASCH,Premises Related,BCA,14/07/2016,04-16512," 1,116.03 ",Hargreaves (UK) Services Ltd - Mine
Nottinghamshire County Council,1111/1001,Adult Social Care and Health,ASCH,Premises Related,BDA,13/07/2016,04-16481," 36,250.00 ",Trustees Of The Sherwood Press Pens
Nottinghamshire County Council,1111/1001,Adult Social Care and Health,ASCH,Premises Related,BDA,29/07/2016,04-16615, 618.00 ,Mansfield Community Voluntary Serv
Nottinghamshire County Council,1111/1001,Adult Social Care and Health,ASCH,Premises Related,BGA,19/07/2016,04-16571," 1,540.39 ",Dawson Rentals Portable Cold Storag
Nottinghamshire County Council,1111/1001,Adult Social Care and Health,ASCH,Premises Related,BGA,19/07/2016,04-16572," 1,540.39 ",Dawson Rentals Portable Cold Storag
Nottinghamshire County Council,1111/1001,Adult Social Care and Health,ASCH,Premises Related,BJA,22/07/2016,04-16249," 3,564.00 ",ESPO Leicestershire County Council
Nottinghamshire County Council,1111/1001,Adult Social Care and Health,ASCH,Transport Related,CAA,29/07/2016,04-16615, 90.25 ,Mansfield Community Voluntary Serv
Nottinghamshire County Council,1111/1001,Adult Social Care and Health,ASCH,Transport Related,CBA,05/07/2016,04-10319," 3,728.34 ",Vallances Coaches
Nottinghamshire County Council,1111/1001,Adult Social Care and Health,ASCH,Transport Related,CBA,07/07/2016,04-10758," 3,718.00 ",Johnson Bros Tours Ltd
Nottinghamshire County Council,1111/1001,Adult Social Care and Health,ASCH,Transport Related,CBA,07/07/2016,04-10856," 2,534.18 ",Ja Travel Ltd
Nottinghamshire County Council,1111/1001,Adult Social Care and Health,ASCH,Transport Related,CBA,19/07/2016,04-14525," 2,618.00 ",Aj Travel
Nottinghamshire County Council,1111/1001,Adult Social Care and Health,ASCH,Transport Related,CCA,07/07/2016,04-10840, 730.93 ,Arrow Specialised Transport Ltd
Nottinghamshire County Council,1111/1001,Adult Social Care and Health,ASCH,Transport Related,CCA,11/07/2016,04-13569," 2,245.23 ",F4Control Ltd (t/a First4care)
Nottinghamshire County Council,1111/1001,Adult Social Care and Health,ASCH,Transport Related,CCA,11/07/2016,04-13576, 171.77 ,F4Control Ltd (t/a First4care)
Nottinghamshire County Council,1111/1001,Adult Social Care and Health,ASCH,Transport Related,CDA,05/07/2016,04-10254," 2,777.50 ",Taxicover Uk Ltd
Nottinghamshire County Council,1111/1001,Adult Social Care and Health,ASCH,Transport Related,CDA,05/07/2016,04-10269, 943.52 ,All Wayz Travel
Nottinghamshire County Council,1111/1001,Adult Social Care and Health,ASCH,Transport Related,CDA,05/07/2016,04-10273," 2,594.60 ",Alpha Cars
Nottinghamshire County Council,1111/1001,Adult Social Care and Health,ASCH,Transport Related,CDA,05/07/2016,04-10277," 1,153.88 ",Bridges Transport Services
Nottinghamshire County Council,1111/1001,Adult Social Care and Health,ASCH,Transport Related,CDA,05/07/2016,04-10278," 3,576.32 ",Bridges Transport Services
Nottinghamshire County Council,1111/1001,Adult Social Care and Health,ASCH,Transport Related,CDA,05/07/2016,04-10279," 2,209.46 ",Bridges Transport Services
Nottinghamshire County Council,1111/1001,Adult Social Care and Health,ASCH,Transport Related,CDA,05/07/2016,04-10280, 556.29 ,Bridges Transport Services
Nottinghamshire County Council,1111/1001,Adult Social Care and Health,ASCH,Transport Related,CDA,05/07/2016,04-10281, 927.18 ,Bridges Transport Services
Nottinghamshire County Council,1111/1001,Adult Social Care and Health,ASCH,Transport Related,CDA,05/07/2016,04-10282," 1,174.39 ",Bridges Transport Services
Nottinghamshire County Council,1111/1001,Adult Social Care and Health,ASCH,Transport Related,CDA,05/07/2016,04-10283," 1,318.79 ",Bridges Transport Services
Nottinghamshire County Council,1111/1001,Adult Social Care and Health,ASCH,Transport Related,CDA,05/07/2016,04-10285," 3,286.36 ",Bridges Transport Services
Nottinghamshire County Council,1111/1001,Adult Social Care and Health,ASCH,Transport Related,CDA,05/07/2016,04-10286, 741.78 ,Bridges Transport Services
Nottinghamshire County Council,1111/1001,Adult Social Care and Health,ASCH,Transport Related,CDA,05/07/2016,04-10311, 840.00 ,Bridges Transport Services
Nottinghamshire County Council,1111/1001,Adult Social Care and Health,ASCH,Transport Related,CDA,05/07/2016,04-10312," 2,251.70 ",Bridges Transport Services
Nottinghamshire County Council,1111/1001,Adult Social Care and Health,ASCH,Transport Related,CDA,05/07/2016,04-10313, 770.00 ,Galaxy Cabs
Nottinghamshire County Council,1111/1001,Adult Social Care and Health,ASCH,Transport Related,CDA,05/07/2016,04-10336," 3,036.00 ",P & P Taxis
Nottinghamshire County Council,1111/1001,Adult Social Care and Health,ASCH,Transport Related,CDA,05/07/2016,04-10341, 617.11 ,P & P Taxis
Nottinghamshire County Council,1111/1001,Adult Social Care and Health,ASCH,Transport Related,CDA,05/07/2016,04-10342," 1,356.00 ",P & P Taxis
Nottinghamshire County Council,1111/1001,Adult Social Care and Health,ASCH,Transport Related,CDA,05/07/2016,04-10363, 76.64 ,Diamond Cars
Nottinghamshire County Council,1111/1001,Adult Social Care and Health,ASCH,Transport Related,CDA,06/07/2016,04-10520," 1,030.20 ",Ace Of Mansfield Ltd
Nottinghamshire County Council,1111/1001,Adult Social Care and Health,ASCH,Transport Related,CDA,06/07/2016,04-10527," 1,156.27 ",Acorn Contracts
Nottinghamshire County Council,1111/1001,Adult Social Care and Health,ASCH,Transport Related,CDA,06/07/2016,04-10530," 1,398.01 ",Acorn Contracts
Nottinghamshire County Council,1111/1001,Adult Social Care and Health,ASCH,Transport Related,CDA,06/07/2016,04-10540," 1,530.00 ",Fozcabs Newark Taxis
Nottinghamshire County Council,1111/1001,Adult Social Care and Health,ASCH,Transport Related,CDA,06/07/2016,04-10541," 2,775.74 ",Midfield Travel
Nottinghamshire County Council,1111/1001,Adult Social Care and Health,ASCH,Transport Related,CDA,06/07/2016,04-10558, 231.80 ,Sprays Transport Ltd
Nottinghamshire County Council,1111/1001,Adult Social Care and Health,ASCH,Transport Related,CDA,06/07/2016,04-10579," 1,355.18 ",Beechwood Taxis
Nottinghamshire County Council,1111/1001,Adult Social Care and Health,ASCH,Transport Related,CDA,06/07/2016,04-10584, 315.24 ,Town Cars (UK) Ltd
Nottinghamshire County Council,1111/1001,Adult Social Care and Health,ASCH,Transport Related,CDA,06/07/2016,04-10588," 2,766.50 ",Town Cars (UK) Ltd
Nottinghamshire County Council,1111/1001,Adult Social Care and Health,ASCH,Transport Related,CDA,07/07/2016,04-10642, 692.58 ,CBC Taxis Ltd
Nottinghamshire County Council,1111/1001,Adult Social Care and Health,ASCH,Transport Related,CDA,07/07/2016,04-10643," 1,025.27 ",CBC Taxis Ltd
Nottinghamshire County Council,1111/1001,Adult Social Care and Health,ASCH,Transport Related,CDA,07/07/2016,04-10644, 753.72 ,CBC Taxis Ltd
Nottinghamshire County Council,1111/1001,Adult Social Care and Health,ASCH,Transport Related,CDA,07/07/2016,04-10645, 558.18 ,CBC Taxis Ltd
Nottinghamshire County Council,1111/1001,Adult Social Care and Health,ASCH,Transport Related,CDA,07/07/2016,04-10659, 812.16 ,Ace Of Mansfield Ltd
Nottinghamshire County Council,1111/1001,Adult Social Care and Health,ASCH,Transport Related,CDA,07/07/2016,04-10663," 2,663.76 ",Hawkins Taxis & Transport
Nottinghamshire County Council,1111/1001,Adult Social Care and Health,ASCH,Transport Related,CDA,07/07/2016,04-10680," 1,790.00 ",Abacus Cars
Nottinghamshire County Council,1111/1001,Adult Social Care and Health,ASCH,Transport Related,CDA,07/07/2016,04-10681," 1,630.40 ",Abacus Cars
Nottinghamshire County Council,1111/1001,Adult Social Care and Health,ASCH,Transport Related,CDA,07/07/2016,04-10683, 824.20 ,Abacus Cars
Nottinghamshire County Council,1111/1001,Adult Social Care and Health,ASCH,Transport Related,CDA,07/07/2016,04-10684, 605.16 ,Abacus Cars
Nottinghamshire County Council,1111/1001,Adult Social Care and Health,ASCH,Transport Related,CDA,07/07/2016,04-10685," 1,390.00 ",Abacus Cars
Nottinghamshire County Council,1111/1001,Adult Social Care and Health,ASCH,Transport Related,CDA,07/07/2016,04-10686, 540.04 ,Abacus Cars
Nottinghamshire County Council,1111/1001,Adult Social Care and Health,ASCH,Transport Related,CDA,07/07/2016,04-10687," 1,080.00 ",Abacus Cars
Nottinghamshire County Council,1111/1001,Adult Social Care and Health,ASCH,Transport Related,CDA,07/07/2016,04-10688, 577.08 ,Abacus Cars
Nottinghamshire County Council,1111/1001,Adult Social Care and Health,ASCH,Transport Related,CDA,07/07/2016,04-10689, 956.28 ,Abacus Cars
Nottinghamshire County Council,1111/1001,Adult Social Care and Health,ASCH,Transport Related,CDA,07/07/2016,04-10693, 612.06 ,Abacus Cars
Nottinghamshire County Council,1111/1001,Adult Social Care and Health,ASCH,Transport Related,CDA,07/07/2016,04-10697, 864.00 ,Abacus Cars
Nottinghamshire County Council,1111/1001,Adult Social Care and Health,ASCH,Transport Related,CDA,07/07/2016,04-10703, 830.96 ,Abacus Cars
Nottinghamshire County Council,1111/1001,Adult Social Care and Health,ASCH,Transport Related,CDA,07/07/2016,04-10708, 952.00 ,Tims Taxi
Nottinghamshire County Council,1111/1001,Adult Social Care and Health,ASCH,Transport Related,CDA,07/07/2016,04-10738, 828.37 ,In Taxis
Nottinghamshire County Council,1111/1001,Adult Social Care and Health,ASCH,Transport Related,CDA,07/07/2016,04-10807," 2,577.52 ",Arrow Specialised Transport Ltd
Nottinghamshire County Council,1111/1001,Adult Social Care and Health,ASCH,Transport Related,CDA,07/07/2016,04-10819, 393.68 ,Arrow Specialised Transport Ltd
Nottinghamshire County Council,1111/1001,Adult Social Care and Health,ASCH,Transport Related,CDA,07/07/2016,04-10821, 298.98 ,Arrow Specialised Transport Ltd
Nottinghamshire County Council,1111/1001,Adult Social Care and Health,ASCH,Transport Related,CDA,07/07/2016,04-10823, 790.62 ,Arrow Specialised Transport Ltd
Nottinghamshire County Council,1111/1001,Adult Social Care and Health,ASCH,Transport Related,CDA,07/07/2016,04-10831," 3,124.00 ",Arrow Specialised Transport Ltd
Nottinghamshire County Council,1111/1001,Adult Social Care and Health,ASCH,Transport Related,CDA,07/07/2016,04-10847," 3,498.00 ",Arrow Specialised Transport Ltd
Nottinghamshire County Council,1111/1001,Adult Social Care and Health,ASCH,Transport Related,CDA,07/07/2016,04-10857, 959.00 ,Aaeron Cars
Nottinghamshire County Council,1111/1001,Adult Social Care and Health,ASCH,Transport Related,CDA,07/07/2016,04-10858, 638.00 ,Aaeron Cars
Nottinghamshire County Council,1111/1001,Adult Social Care and Health,ASCH,Transport Related,CDA,07/07/2016,04-10859, 971.62 ,Abacus Cars
Nottinghamshire County Council,1111/1001,Adult Social Care and Health,ASCH,Transport Related,CDA,07/07/2016,04-10886," 3,088.58 ",Ace Cars
Nottinghamshire County Council,1111/1001,Adult Social Care and Health,ASCH,Transport Related,CDA,08/07/2016,04-10909, 707.00 ,Ace Cars
Nottinghamshire County Council,1111/1001,Adult Social Care and Health,ASCH,Transport Related,CDA,08/07/2016,04-10910, 808.00 ,Ace Cars
Nottinghamshire County Council,1111/1001,Adult Social Care and Health,ASCH,Transport Related,CDA,08/07/2016,04-10923, 377.62 ,Ace Cars
Nottinghamshire County Council,1111/1001,Adult Social Care and Health,ASCH,Transport Related,CDA,08/07/2016,04-10925, 298.12 ,Ace Cars
Nottinghamshire County Council,1111/1001,Adult Social Care and Health,ASCH,Transport Related,CDA,08/07/2016,04-16281," 1,300.00 ",The Oaklands
Nottinghamshire County Council,1111/1001,Adult Social Care and Health,ASCH,Transport Related,CDA,11/07/2016,04-13567," 1,823.36 ",F4Control Ltd (t/a First4care)
Nottinghamshire County Council,1111/1001,Adult Social Care and Health,ASCH,Transport Related,CDA,11/07/2016,04-13569, 249.47 ,F4Control Ltd (t/a First4care)
Nottinghamshire County Council,1111/1001,Adult Social Care and Health,ASCH,Transport Related,CDA,11/07/2016,04-13571, 239.78 ,F4Control Ltd (t/a First4care)
Nottinghamshire County Council,1111/1001,Adult Social Care and Health,ASCH,Transport Related,CDA,11/07/2016,04-13573, 168.88 ,F4Control Ltd (t/a First4care)
Nottinghamshire County Council,1111/1001,Adult Social Care and Health,ASCH,Transport Related,CDA,11/07/2016,04-13576," 1,259.67 ",F4Control Ltd (t/a First4care)
Nottinghamshire County Council,1111/1001,Adult Social Care and Health,ASCH,Transport Related,CDA,11/07/2016,04-13585, 626.00 ,F4Control Ltd (t/a First4care)
Nottinghamshire County Council,1111/1001,Adult Social Care and Health,ASCH,Transport Related,CDA,11/07/2016,04-13586," 1,313.18 ",F4Control Ltd (t/a First4care)
Nottinghamshire County Council,1111/1001,Adult Social Care and Health,ASCH,Transport Related,CDA,12/07/2016,04-13603, 516.10 ,Alpha Cars
Nottinghamshire County Council,1111/1001,Adult Social Care and Health,ASCH,Transport Related,CDA,12/07/2016,04-13611," 2,189.54 ",Abacus Cars
Nottinghamshire County Council,1111/1001,Adult Social Care and Health,ASCH,Transport Related,CDA,12/07/2016,04-13667, 76.64 ,Diamond Cars
Nottinghamshire County Council,1111/1001,Adult Social Care and Health,ASCH,Transport Related,CDA,12/07/2016,04-13702, 141.60 ,Forest Cars
Nottinghamshire County Council,1111/1001,Adult Social Care and Health,ASCH,Transport Related,CDA,14/07/2016,04-13920, 630.00 ,D G Private Hire Ltd
Nottinghamshire County Council,1111/1001,Adult Social Care and Health,ASCH,Transport Related,CDA,14/07/2016,04-13922, 777.70 ,D G Private Hire Ltd
Nottinghamshire County Council,1111/1001,Adult Social Care and Health,ASCH,Transport Related,CDA,14/07/2016,04-13925, 540.00 ,D G Private Hire Ltd
Nottinghamshire County Council,1111/1001,Adult Social Care and Health,ASCH,Transport Related,CDA,14/07/2016,04-13926," 1,058.48 ",D G Private Hire Ltd
Nottinghamshire County Council,1111/1001,Adult Social Care and Health,ASCH,Transport Related,CDA,14/07/2016,04-13930," 1,560.00 ",D G Private Hire Ltd
Nottinghamshire County Council,1111/1001,Adult Social Care and Health,ASCH,Transport Related,CDA,14/07/2016,04-16511, 832.00 ,The Oaklands
Nottinghamshire County Council,1111/1001,Adult Social Care and Health,ASCH,Transport Related,CDA,15/07/2016,04-14114, 790.56 ,Abacus Cars
Nottinghamshire County Council,1111/1001,Adult Social Care and Health,ASCH,Transport Related,CDA,19/07/2016,04-14533," 1,032.00 ",Nottingham Cars Ltd
Nottinghamshire County Council,1111/1001,Adult Social Care and Health,ASCH,Transport Related,CDA,19/07/2016,04-16597, 832.00 ,The Oaklands
Nottinghamshire County Council,1111/1001,Adult Social Care and Health,ASCH,Transport Related,CDA,21/07/2016,04-14661," 1,727.81 ",Carlton Cars Ltd T/A Trent Cars
Nottinghamshire County Council,1111/1001,Adult Social Care and Health,ASCH,Transport Related,CDA,21/07/2016,04-14674," 1,571.40 ",AAA Cabs
Nottinghamshire County Council,1111/1001,Adult Social Care and Health,ASCH,Transport Related,CDA,21/07/2016,04-14676," 2,163.42 ",[Redacted]
Nottinghamshire County Council,1111/1001,Adult Social Care and Health,ASCH,Transport Related,CDA,21/07/2016,04-16162," 17,179.47 ",Thera East Midlands
Nottinghamshire County Council,1111/1001,Adult Social Care and Health,ASCH,Transport Related,CDA,22/07/2016,04-16756, 832.00 ,The Oaklands
Nottinghamshire County Council,1111/1001,Adult Social Care and Health,ASCH,Transport Related,CDA,22/07/2016,04-16784," 1,466.52 ",F4Control Ltd (t/a First4care)
Nottinghamshire County Council,1111/1001,Adult Social Care and Health,ASCH,Transport Related,CDA,25/07/2016,04-15005, 668.48 ,SJW (Muskham) Ltd T/A Z Cars
Nottinghamshire County Council,1111/1001,Adult Social Care and Health,ASCH,Transport Related,CDA,25/07/2016,04-15008, 777.28 ,SJW (Muskham) Ltd T/A Z Cars
Nottinghamshire County Council,1111/1001,Adult Social Care and Health,ASCH,Transport Related,CDA,26/07/2016,04-15017," 1,199.88 ",P & P Taxis
Nottinghamshire County Council,1111/1001,Adult Social Care and Health,ASCH,Transport Related,CDA,29/07/2016,04-16154," 17,179.47 ",Thera East Midlands
Nottinghamshire County Council,1111/1001,Adult Social Care and Health,ASCH,Transport Related,CDA,29/07/2016,04-16431," 17,179.47 ",Thera East Midlands
Nottinghamshire County Council,1111/1001,Adult Social Care and Health,ASCH,Supplies & Services,DAA,06/07/2016,04-16217," 1,719.70 ",Sarabec Ltd
Nottinghamshire County Council,1111/1001,Adult Social Care and Health,ASCH,Supplies & Services,DAA,08/07/2016,04-16318," 2,979.00 ",Tunstall Healthcare Uk Ltd
Nottinghamshire County Council,1111/1001,Adult Social Care and Health,ASCH,Supplies & Services,DAA,14/07/2016,04-16504," 1,249.07 ",Tunstall Healthcare Uk Ltd
Nottinghamshire County Council,1111/1001,Adult Social Care and Health,ASCH,Supplies & Services,DAA,15/07/2016,04-16532," 4,270.00 ",Tunstall Healthcare Uk Ltd
Nottinghamshire County Council,1111/1001,Adult Social Care and Health,ASCH,Supplies & Services,DAA,15/07/2016,04-16538," 1,180.00 ",Bees Knees
Nottinghamshire County Council,1111/1001,Adult Social Care and Health,ASCH,Supplies & Services,DAA,18/07/2016,04-16558, 638.56 ,Ppl Public Performance Licence
Nottinghamshire County Council,1111/1001,Adult Social Care and Health,ASCH,Supplies & Services,DAA,20/07/2016,04-16531," 4,270.00 ",Tunstall Healthcare Uk Ltd
Nottinghamshire County Council,1111/1001,Adult Social Care and Health,ASCH,Supplies & Services,DAA,20/07/2016,04-16588," 6,015.68 ",Nutri Pack Uk Ltd
Nottinghamshire County Council,1111/1001,Adult Social Care and Health,ASCH,Supplies & Services,DAA,21/07/2016,04-16696," 45,995.70 ",The Corrugated Case Company Ltd
Nottinghamshire County Council,1111/1001,Adult Social Care and Health,ASCH,Supplies & Services,DAA,22/07/2016,04-16113," 17,359.03 ",British Red Cross Society
Nottinghamshire County Council,1111/1001,Adult Social Care and Health,ASCH,Supplies & Services,DAA,22/07/2016,04-16127," 7,541.95 ",British Red Cross Society
Nottinghamshire County Council,1111/1001,Adult Social Care and Health,ASCH,Supplies & Services,DAA,22/07/2016,04-16128," 49,224.19 ",British Red Cross Society
Nottinghamshire County Council,1111/1001,Adult Social Care and Health,ASCH,Supplies & Services,DAA,22/07/2016,04-16716," 7,095.90 ",Custom Group Ltd
Nottinghamshire County Council,1111/1001,Adult Social Care and Health,ASCH,Supplies & Services,DAA,22/07/2016,04-16725, 513.00 ,Hearing Products International Ltd
Nottinghamshire County Council,1111/1001,Adult Social Care and Health,ASCH,Supplies & Services,DAA,25/07/2016,04-16795," 3,961.02 ",Geo Hanson & Sons (Hucknall) Limite
Nottinghamshire County Council,1111/1001,Adult Social Care and Health,ASCH,Supplies & Services,DAA,29/07/2016,04-16214," 8,664.00 ",Arjo Huntleigh
Nottinghamshire County Council,1111/1001,Adult Social Care and Health,ASCH,Supplies & Services,DAA,29/07/2016,04-16258, 817.82 ,Nottingham Rehab Ltd
Nottinghamshire County Council,1111/1001,Adult Social Care and Health,ASCH,Supplies & Services,DAA,29/07/2016,04-16878, 650.00 ,Calandine Lifts Ltd
Nottinghamshire County Council,1111/1001,Adult Social Care and Health,ASCH,Supplies & Services,DBA,05/07/2016,04-10237, 263.23 ,Millside Barrowcliffe Limited
Nottinghamshire County Council,1111/1001,Adult Social Care and Health,ASCH,Supplies & Services,DBA,05/07/2016,04-10239, 229.25 ,Millside Barrowcliffe Limited
Nottinghamshire County Council,1111/1001,Adult Social Care and Health,ASCH,Supplies & Services,DBA,05/07/2016,04-10368," 3,611.49 ",John Palin (Wholesale) Ltd
Nottinghamshire County Council,1111/1001,Adult Social Care and Health,ASCH,Supplies & Services,DBA,06/07/2016,04-10618," 1,488.26 ",John Palin (Wholesale) Ltd
Nottinghamshire County Council,1111/1001,Adult Social Care and Health,ASCH,Supplies & Services,DBA,13/07/2016,04-13814," 1,730.52 ",Brake Bros Ltd
Nottinghamshire County Council,1111/1001,Adult Social Care and Health,ASCH,Supplies & Services,DBA,13/07/2016,04-13817," 1,475.18 ",Brake Bros Ltd
Nottinghamshire County Council,1111/1001,Adult Social Care and Health,ASCH,Supplies & Services,DBA,13/07/2016,04-13820," 1,029.40 ",Brake Bros Ltd
Nottinghamshire County Council,1111/1001,Adult Social Care and Health,ASCH,Supplies & Services,DBA,14/07/2016,04-13954, 83.45 ,Brake Bros Ltd
Nottinghamshire County Council,1111/1001,Adult Social Care and Health,ASCH,Supplies & Services,DBA,14/07/2016,04-13957, 763.30 ,Brake Bros Ltd
Nottinghamshire County Council,1111/1001,Adult Social Care and Health,ASCH,Supplies & Services,DBA,14/07/2016,04-13960, 203.85 ,Brake Bros Ltd
Nottinghamshire County Council,1111/1001,Adult Social Care and Health,ASCH,Supplies & Services,DBA,14/07/2016,04-13963, 302.44 ,Brake Bros Ltd
Nottinghamshire County Council,1111/1001,Adult Social Care and Health,ASCH,Supplies & Services,DBA,14/07/2016,04-13967," 2,854.54 ",Brake Bros Ltd
Nottinghamshire County Council,1111/1001,Adult Social Care and Health,ASCH,Supplies & Services,DBA,14/07/2016,04-13975, 256.37 ,Brake Bros Ltd
Nottinghamshire County Council,1111/1001,Adult Social Care and Health,ASCH,Supplies & Services,DBA,15/07/2016,04-14126, 149.02 ,Brake Bros Ltd
Nottinghamshire County Council,1111/1001,Adult Social Care and Health,ASCH,Supplies & Services,DBA,20/07/2016,04-14614, 937.45 ,Brake Bros Ltd
Nottinghamshire County Council,1111/1001,Adult Social Care and Health,ASCH,Supplies & Services,DBA,20/07/2016,04-14616," 1,403.60 ",Brake Bros Ltd
Nottinghamshire County Council,1111/1001,Adult Social Care and Health,ASCH,Supplies & Services,DBA,20/07/2016,04-14623," 1,891.41 ",Brake Bros Ltd
Nottinghamshire County Council,1111/1001,Adult Social Care and Health,ASCH,Supplies & Services,DBA,20/07/2016,04-14629, 154.31 ,Brake Bros Ltd
Nottinghamshire County Council,1111/1001,Adult Social Care and Health,ASCH,Supplies & Services,DBA,20/07/2016,04-16630, 927.90 ,Mkg Food Products Ltd
Nottinghamshire County Council,1111/1001,Adult Social Care and Health,ASCH,Supplies & Services,DBA,20/07/2016,04-16631, 835.28 ,Mkg Food Products Ltd
Nottinghamshire County Council,1111/1001,Adult Social Care and Health,ASCH,Supplies & Services,DBA,21/07/2016,04-16618, 597.20 ,F Smales & Son Fish Merchants Ltd
Nottinghamshire County Council,1111/1001,Adult Social Care and Health,ASCH,Supplies & Services,DBA,25/07/2016,04-14830, 974.18 ,Brake Bros Ltd
Nottinghamshire County Council,1111/1001,Adult Social Care and Health,ASCH,Supplies & Services,DBA,25/07/2016,04-14834, 93.10 ,Brake Bros Ltd
Nottinghamshire County Council,1111/1001,Adult Social Care and Health,ASCH,Supplies & Services,DBA,25/07/2016,04-14838,-3.14 ,Brake Bros Ltd
Nottinghamshire County Council,1111/1001,Adult Social Care and Health,ASCH,Supplies & Services,DBA,28/07/2016,04-16099, 668.10 ,Nestle Uk Ltd
Nottinghamshire County Council,1111/1001,Adult Social Care and Health,ASCH,Supplies & Services,DBA,28/07/2016,04-16619, 555.20 ,F Smales & Son Fish Merchants Ltd
Nottinghamshire County Council,1111/1001,Adult Social Care and Health,ASCH,Supplies & Services,DBA,29/07/2016,04-16936, 778.74 ,Mkg Food Products Ltd
Nottinghamshire County Council,1111/1001,Adult Social Care and Health,ASCH,Supplies & Services,DBA,29/07/2016,04-16943, 573.83 ,Mkg Food Products Ltd
Nottinghamshire County Council,1111/1001,Adult Social Care and Health,ASCH,Supplies & Services,DBA,29/07/2016,04-16945, 739.70 ,Mkg Food Products Ltd
Nottinghamshire County Council,1111/1001,Adult Social Care and Health,ASCH,Supplies & Services,DEA,01/07/2016,04-16105," 2,489.00 ",Age Uk Nottm & Notts
Nottinghamshire County Council,1111/1001,Adult Social Care and Health,ASCH,Supplies & Services,DEA,05/07/2016,04-16195," 10,000.00 ",Awbery Management Centre Ltd
Nottinghamshire County Council,1111/1001,Adult Social Care and Health,ASCH,Supplies & Services,DEA,05/07/2016,04-16197," 2,489.00 ",Age Uk Nottm & Notts
Nottinghamshire County Council,1111/1001,Adult Social Care and Health,ASCH,Supplies & Services,DEA,07/07/2016,04-16234," 2,489.00 ",Age Uk Nottm & Notts
Nottinghamshire County Council,1111/1001,Adult Social Care and Health,ASCH,Supplies & Services,DEA,13/07/2016,04-16437," 1,181.45 ",[Redacted]
Nottinghamshire County Council,1111/1001,Adult Social Care and Health,ASCH,Supplies & Services,DEA,13/07/2016,04-16460," 1,396.50 ",House Clearance Uk Ltd
Nottinghamshire County Council,1111/1001,Adult Social Care and Health,ASCH,Supplies & Services,DEA,14/07/2016,04-16501," 3,333.00 ",Notts Deaf Society Ltd
Nottinghamshire County Council,1111/1001,Adult Social Care and Health,ASCH,Supplies & Services,DEA,21/07/2016,04-16428," 1,238.00 ",Medaco Ltd
Nottinghamshire County Council,1111/1001,Adult Social Care and Health,ASCH,Supplies & Services,DEA,27/07/2016,04-16874," 10,000.00 ",Derbyshire County Council
Nottinghamshire County Council,1111/1001,Adult Social Care and Health,ASCH,Supplies & Services,DEA,29/07/2016,04-13971, 144.56 ,Security Plus Ltd
Nottinghamshire County Council,1111/1001,Adult Social Care and Health,ASCH,Supplies & Services,DEA,29/07/2016,04-16089, 257.56 ,ARC Property Services Partnership L
Nottinghamshire County Council,1111/1001,Adult Social Care and Health,ASCH,Supplies & Services,DEA,29/07/2016,04-16530," 5,000.00 ",Skills For Care
Nottinghamshire County Council,1111/1001,Adult Social Care and Health,ASCH,Supplies & Services,DFA,01/07/2016,04-10094," 1,159.42 ",Adept Telecom
Nottinghamshire County Council,1111/1001,Adult Social Care and Health,ASCH,Supplies & Services,DFA,11/07/2016,04-10956," 1,208.42 ",Lantec Services Ltd
Nottinghamshire County Council,1111/1001,Adult Social Care and Health,ASCH,Supplies & Services,DFA,20/07/2016,04-14595," 1,194.42 ",Adept Telecom
Nottinghamshire County Council,1111/1001,Adult Social Care and Health,ASCH,Supplies & Services,DFA,22/07/2016,04-16391, 965.29 ,Reliance High-Tech Ltd
Nottinghamshire County Council,1111/1001,Adult Social Care and Health,ASCH,Supplies & Services,DFA,29/07/2016,04-16321," 12,721.13 ",Care Monitoring 2000 Ltd
Nottinghamshire County Council,1111/1001,Adult Social Care and Health,ASCH,Supplies & Services,DFA,29/07/2016,04-16441, 965.29 ,Reliance High-Tech Ltd
